{"text_format":"1","workbook":"xlsx","n_sheets":12,"sheets":["Préparation de terrain","Régénération artificielle","Éducation de peuplement","Éclaircie commerciale EAF","Martelage","Travaux de planification","Dispersion UAF_2017-2018","Calculs grille","Traitements admissibles","Menus","Formules","Majorations applicables"],"not_rendered":{"charts":0,"images":3,"macros":1,"external_links":1,"defined_names":112,"comments":0,"pivot_tables":0},"unopened":[],"bounds":{"document_bytes":16777216,"sheet_cells":100000,"rows_first":2000,"rows_last":500,"rows_between":2000,"halvings":0,"cell_chars":16384,"cell_head_chars":4096},"cells_cut":0,"cells_raw":0,"read":"whole","date_system":"1900"}

{"sheet":"Préparation de terrain","index":0,"n_rows":277,"n_cols":24,"rows_kept":277,"cut":false,"hidden":false,"merged":[[46,1,46,2],[63,5,63,6],[150,0,150,5],[137,0,137,5],[201,0,201,5],[227,0,227,5],[245,0,245,6],[222,0,222,5],[8,0,8,3],[8,4,8,6],[9,0,9,3],[9,4,9,6],[11,0,11,4],[13,0,13,5],[14,0,14,5],[15,2,15,6],[17,0,17,6],[39,3,39,4],[44,3,44,4],[45,3,45,4],[46,3,46,4],[47,3,47,4],[43,1,43,2],[42,0,42,6],[40,0,40,2],[46,5,46,6],[216,0,216,5],[62,5,62,6],[257,2,258,4],[244,0,244,6],[223,0,223,5],[224,0,224,5],[126,1,126,5],[213,0,213,5],[240,0,240,5],[180,0,180,5],[165,0,165,6],[152,0,152,5],[153,0,153,5],[154,0,154,5],[155,0,155,5],[135,0,135,6],[179,0,179,6],[141,0,141,5],[252,0,252,5],[250,6,251,6],[250,0,251,5],[142,0,142,5],[143,0,143,5],[144,0,144,5],[228,0,228,5],[205,0,205,5],[200,0,200,5],[246,6,248,6],[246,0,248,5],[249,0,249,5],[81,5,81,6],[58,0,58,2],[72,3,72,4],[82,5,82,6],[83,5,83,6],[162,0,162,5],[163,0,163,5],[172,0,172,5],[184,0,184,5],[138,0,138,5],[139,0,139,5],[140,0,140,5],[81,0,81,1],[158,0,158,5],[159,0,159,5],[156,0,156,5],[242,0,242,5],[212,0,212,5],[82,0,82,1],[84,5,84,6],[85,0,85,1],[255,0,255,4],[112,0,112,6],[209,0,209,5],[53,5,53,6],[53,3,53,4],[243,0,243,5],[236,0,236,5],[235,0,235,5],[234,0,234,5],[233,0,233,5],[232,0,232,5],[231,0,231,5],[229,0,229,5],[226,0,226,5],[230,0,230,6],[86,0,86,6],[84,0,84,1],[241,0,241,5],[225,0,225,5],[101,3,101,4],[91,5,91,6],[83,0,83,1],[92,5,92,6],[90,1,90,2],[91,1,91,2],[91,3,91,4],[89,1,89,2],[87,5,87,6],[85,5,85,6],[87,1,87,2],[132,0,132,6],[120,0,120,5],[97,1,97,2],[98,1,98,2],[98,3,98,4],[98,5,98,6],[116,0,116,6],[107,0,107,6],[93,0,93,6],[122,4,125,4],[97,3,97,4],[97,5,97,6],[95,3,95,4],[96,3,96,4],[131,0,131,5],[99,1,99,2],[102,0,102,6],[101,0,101,1],[95,1,95,2],[122,0,126,0],[94,0,94,6],[100,5,100,6],[106,0,106,6],[103,0,103,6],[49,0,49,2],[52,1,52,2],[49,3,49,4],[52,5,52,6],[74,1,74,2],[80,0,80,1],[65,0,65,1],[66,0,66,1],[76,0,76,6],[58,5,58,6],[49,5,49,6],[57,1,57,2],[57,5,57,6],[57,3,57,4],[68,0,68,1],[69,0,69,6],[78,0,78,6],[79,0,79,1],[74,5,74,6],[75,5,75,6],[62,0,62,1],[65,5,65,6],[73,3,73,4],[239,0,239,5],[146,0,146,5],[237,0,237,5],[238,0,238,5],[130,0,130,5],[108,0,108,5],[104,0,104,5],[111,0,111,5],[113,0,113,4],[114,0,114,4],[105,0,105,5],[147,0,147,5],[151,0,151,6],[189,0,189,5],[122,1,122,3],[123,1,123,3],[124,1,124,3],[125,1,125,3],[177,0,177,5],[198,0,198,5],[214,0,214,5],[210,0,210,5],[208,0,208,5],[145,0,145,5],[0,0,0,6],[2,0,2,6],[3,0,3,6],[5,0,5,3],[6,0,6,3],[7,0,7,3],[1,0,1,5],[30,5,30,6],[31,5,31,6],[4,0,4,3],[4,4,4,6],[5,4,5,6],[6,4,6,6],[7,4,7,6],[25,0,25,6],[15,0,15,1],[24,0,24,5],[10,0,10,6],[28,0,28,6],[16,0,16,6],[12,0,12,4],[18,1,18,3],[19,1,19,3],[20,1,20,3],[22,1,22,3],[26,0,26,6],[53,1,53,2],[48,5,48,6],[48,1,48,2],[47,1,47,2],[40,5,40,6],[43,3,43,4],[47,5,47,6],[40,3,40,4],[41,0,41,6],[45,5,45,6],[39,5,39,6],[39,1,39,2],[44,1,44,2],[45,1,45,2],[43,5,43,6],[44,5,44,6],[38,3,38,4],[33,0,33,6],[35,1,35,2],[36,1,36,2],[48,3,48,4],[37,1,37,2],[37,5,37,6],[38,5,38,6],[27,0,27,6],[38,1,38,2],[34,1,34,2],[34,5,34,6],[35,5,35,6],[36,5,36,6],[32,0,32,6],[34,3,34,4],[35,3,35,4],[36,3,36,4],[29,0,29,4],[30,0,30,4],[31,0,31,4],[29,5,29,6],[37,3,37,4],[221,0,221,5],[220,0,220,5],[219,0,219,5],[217,0,217,5],[218,0,218,6],[185,0,185,5],[192,0,192,5],[188,0,188,5],[203,0,203,5],[196,0,196,5],[197,0,197,5],[204,0,204,5],[186,0,186,5],[202,0,202,5],[195,0,195,5],[190,0,190,5],[191,0,191,5],[194,0,194,5],[215,0,215,5],[187,0,187,5],[207,0,207,6],[206,0,206,5],[199,0,199,5],[211,0,211,5],[133,0,133,4],[134,0,134,4],[136,0,136,6],[174,0,174,5],[175,0,175,5],[176,0,176,5],[193,0,193,6],[181,0,181,5],[182,0,182,5],[161,0,161,5],[183,0,183,5],[166,0,166,5],[167,0,167,5],[164,0,164,5],[160,0,160,5],[168,0,168,5],[169,0,169,5],[170,0,170,5],[157,0,157,5],[173,0,173,5],[171,0,171,5],[178,0,178,5],[148,0,148,5],[149,0,149,5],[70,5,70,6],[80,5,80,6],[61,0,61,6],[67,0,67,1],[71,1,71,2],[72,1,72,2],[67,5,67,6],[68,5,68,6],[70,3,70,4],[71,3,71,4],[71,5,71,6],[72,5,72,6],[79,5,79,6],[75,3,75,4],[75,1,75,2],[74,3,74,4],[73,5,73,6],[73,1,73,2],[64,5,64,6],[77,0,77,6],[66,5,66,6],[70,1,70,2],[63,0,63,1],[64,0,64,1],[50,0,50,6],[60,0,60,6],[59,0,59,6],[54,1,54,2],[54,5,54,6],[55,5,55,6],[56,5,56,6],[56,1,56,2],[52,3,52,4],[55,1,55,2],[51,0,51,6],[54,3,54,4],[58,3,58,4],[55,3,55,4],[56,3,56,4],[121,0,121,5],[128,0,128,5],[127,0,127,6],[129,0,129,6],[109,0,109,5],[110,0,110,5],[118,0,118,5],[117,0,117,5],[119,0,119,6],[115,0,115,6],[100,1,100,2],[101,5,101,6],[100,3,100,4],[99,3,99,4],[87,3,87,4],[88,3,88,4],[89,3,89,4],[88,5,88,6],[88,1,88,2],[90,3,90,4],[92,3,92,4],[99,5,99,6],[92,1,92,2],[95,5,95,6],[96,5,96,6],[96,1,96,2],[90,5,90,6],[89,5,89,6]]}
[]
["Annexe au calcul des taux des traitements non commerciaux                                2017-2018                                                                                                                                                                                                                                                                                                                                                                                                                                                                                                                                                 Préparation de terrain"]
[" *** Veuillez saisir les informations dans les cellules blanches seulement ***"]
["Identification"]
["UAF"]
["Secteur d'intervention"]
["Unité de compilation"]
["Numéro de la prescription"]
["Traitement (code DICA)"]
["Traitement (code RATF)"]
["Traitement de préparation de terrain"]
["Traitement",null,null,null,null,{"$f":"IF(G12=Menus!A4,Menus!B4,IF(G12=Menus!A5,Menus!B5,IF(G12=Menus!A6,Menus!B6,IF(G12=Menus!A7,Menus!B7,IF(G12=Menus!A8,Menus!B8,IF(G12=Menus!A9,Menus!B9,IF(G12=Menus!A10,Menus!B10,IF(G12=Menus!A11,Menus!B11,IF(G12=Menus!A12,Menus!B12,\"\")))))))))","v":"PRT_Inscrire_une_valeur"},"Inscrire une valeur"]
["Équipement",null,null,null,null,{"$f":"IF(G13=Menus!D10,Menus!E10,IF(G13=Menus!D11,Menus!E11,\"\"))","v":""},"Inscrire une valeur",null,""]
["Taux de base",null,null,null,null,null,{"$f":"IF(G13=Menus!D4,Menus!H4,IF(G13=Menus!D5,Menus!H5,IF(G13=Menus!D6,Menus!H6,IF(G13=Menus!D7,Menus!H7,IF(G13=Menus!D8,Menus!H8,IF(G13=Menus!D9,Menus!H9,IF(G13=Menus!D10,Menus!H10,IF(G13=Menus!D11,Menus!H11,IF(G13=Menus!D12,Menus!H12,IF(G13=Menus!D13,Menus!H13,IF(G13=Menus!D14,Menus!H14,IF(G13=Menus!D15,Menus!H15,IF(G13=Menus!D16,Menus!H16,IF(G13=Menus!D17,Menus!H17,IF(G13=Menus!D18,Menus!H18,IF(G13=Menus!D19,Menus!H19,IF(G13=Menus!D20,Menus!H20,\"\")))))))))))))))))","v":0},null,null,""]
["Unité de mesure",null,null,null,null,null,{"$f":"IF(G13=Menus!D4,Menus!I4,IF(G13=Menus!D5,Menus!I5,IF(G13=Menus!D6,Menus!I6,IF(G13=Menus!D7,Menus!I7,IF(G13=Menus!D8,Menus!I8,IF(G13=Menus!D9,Menus!I9,IF(G13=Menus!D10,Menus!I10,IF(G13=Menus!D11,Menus!I11,IF(G13=Menus!D12,Menus!I12,IF(G13=Menus!D13,Menus!I13,IF(G13=Menus!D14,Menus!I14,IF(G13=Menus!D15,Menus!I15,IF(G13=Menus!D16,Menus!I16,IF(G13=Menus!D17,Menus!I17,IF(G13=Menus!D18,Menus!I18,IF(G13=Menus!D19,Menus!I19,IF(G13=Menus!D20,Menus!I20,\"\")))))))))))))))))","v":"-"}]
[{"$f":"\"Formule (e = Constante \"&Menus!C42&\")\"","v":"Formule (e = Constante 2,718)"},null,{"$f":"IF(G13=Formules!B8,Formules!D8,IF(G13=Formules!B9,Formules!D9,\"\"))","v":""}]
[{"$f":"\"Valeurs spécifiques à remplir selon le traitement\"&\" - \"&G12&\" - \"&G13","v":"Valeurs spécifiques à remplir selon le traitement - Inscrire une valeur - Inscrire une valeur"}]
["Taux variable - Déblaiement des résidus de coupe par placeau et Scarifiage par monticule ou inversion par placeau ou décapage par placeau"]
["R","Superficie préparé",null,null,{"$f":"IF(G13=Menus!D10,Menus!E10,IF(G13=Menus!D11,Menus!E11,\"\"))","v":""},{"$f":"IF(G19=Menus!B43,Menus!C43,IF(G19=Menus!B44,Menus!C44,IF(G19=Menus!B45,Menus!C45,IF(G19=Menus!B46,Menus!C46,\"\"))))","v":""},null,null,null,""]
["TP","Type de couvert",null,null,{"$f":"IF(G13=Menus!D10,Menus!F10,IF(G13=Menus!D11,Menus!F11,\"\"))","v":""},{"$f":"IF(G20=Menus!B47,Menus!C47,IF(G20=Menus!B48,Menus!C48,IF(G20=Menus!B49,Menus!C49,\"\")))","v":""}]
["TR","Type de procédé de récolte",null,null,{"$f":"IF(G21=Menus!B50,Menus!D50,IF(G21=Menus!B51,Menus!D51,IF(G21=Menus!B52,Menus!D52,IF(G21=Menus!B53,Menus!D53,\"\"))))","v":""},{"$f":"IF(G21=Menus!B50,Menus!C50,IF(G21=Menus!B51,Menus!C51,IF(G21=Menus!B52,Menus!C52,IF(G21=Menus!B53,Menus!C53,\"\"))))","v":""}]
["PER","Type de perturbation",null,null,null,{"$f":"IF(G22=Menus!B54,Menus!C54,IF(G22=Menus!B55,Menus!C55,\"\"))","v":""}]
["VEH","Type d'engin forestier",null,null,{"$f":"IF(G13=Menus!D10,Menus!G10,IF(G13=Menus!D11,Menus!G11,\"\"))","v":""},{"$f":"IF(G23=Menus!B56,Menus!C56,IF(G23=Menus!B57,Menus!C57,IF(G23=Menus!B58,Menus!C58,\"\")))","v":""}]
["Valeur","VEH utilisée dans la formule",null,null,{"$f":"IF(G20=Menus!B47,Menus!D47,IF(G20=Menus!B48,Menus!D48,IF(G20=Menus!B49,Menus!D49,\"\")))","v":""},{"$f":"IF(ISERR(IF(F23=3,0.33,IF(F23=2,1,(1/(1.4063*POWER(F19,0.069))*0.85))))=TRUE,\"\",IF(F23=3,0.33,IF(F23=2,1,(1/(1.4063*POWER(F19,0.069))*0.85))))","v":""}]
["Taux calculé à partir de l'équation et des variables reliées au traitement",null,null,null,null,null,{"$f":"IF(ISERR((('Calculs grille'!I15*'Préparation de terrain'!F19)/EXP(1.683*'Préparation de terrain'!F19-0.299*'Préparation de terrain'!F20-0.313*'Préparation de terrain'!F21+0.17*'Préparation de terrain'!F22+2.014))*'Préparation de terrain'!F24),0,((('Calculs grille'!I15*'Préparation de terrain'!F19)/EXP(1.683*'Préparation de terrain'!F19-0.299*'Préparation de terrain'!F20-0.313*'Préparation de terrain'!F21+0.17*'Préparation de terrain'!F22+2.014))*'Préparation de terrain'!F24))","v":0}]
[{"$f":"\"Majoration(s) et réduction applicable(s) à l'exécution - \"&G12&\" - \"&G13","v":"Majoration(s) et réduction applicable(s) à l'exécution - Inscrire une valeur - Inscrire une valeur"}]
[{"$f":"IF(G13='Majorations applicables'!C2,'Majorations applicables'!K2,IF(G13='Majorations applicables'!C3,'Majorations applicables'!K3,IF(G13='Majorations applicables'!C4,'Majorations applicables'!K4,IF(G13='Majorations applicables'!C5,'Majorations applicables'!K5,IF(G13='Majorations applicables'!C6,'Majorations applicables'!K6,IF(G13='Majorations applicables'!C7,'Majorations applicables'!K7,IF(G13='Majorations applicables'!C8,'Majorations applicables'!K8,IF(G13='Majorations applicables'!C9,'Majorations applicables'!K9,IF(G13='Majorations applicables'!C10,'Majorations applicables'!K10,IF(G13='Majorations applicables'!C11,'Majorations applicables'!K11,IF(G13='Majorations applicables'!C12,'Majorations applicables'!K12,IF(G13='Majorations applicables'!C13,'Majorations applicables'!K13,IF(G13='Majorations applicables'!C14,'Majorations applicables'!K14,IF(G13='Majorations applicables'!C15,'Majorations applicables'!K15,IF(G13='Majorations applicables'!C16,'Majorations applicables'!K16,IF(G13='Majorations applicables'!C17,'Majorations applicables'!K17,\"\"))))))))))))))))","v":""}]
["Majoraration ou réduction selon la distance entre les passages (PA0)"]
["Majoraration ou réduction selon la distance entre les passages (PA0) - Disque-Bracke-Wadell"]
["Distance entre les passages de l'engin forestier"]
["Nombre de microsite par hectare désiré calculé à partir d'une valeur standard de distance entre les passages de l'engin forestier",null,null,null,null,{"$f":"IF(ISERR(IF(F30=\"\",\"\",IF('Préparation de terrain'!F30=Menus!A24,Menus!B24,IF('Préparation de terrain'!F30=Menus!A25,Menus!B25,IF('Préparation de terrain'!F30=Menus!A26,Menus!B26,IF('Préparation de terrain'!F30=Menus!A27,Menus!B27,\"La valeur de distance entre les passages est différente des valeurs pré-établies, calcul à titre indicatif seulement «\"&ROUND(10000/F30,0)&\"» microsites par hectare\")))))),\"\",IF(F30=\"\",\"\",IF('Préparation de terrain'!F30=Menus!A24,Menus!B24,IF('Préparation de terrain'!F30=Menus!A25,Menus!B25,IF('Préparation de terrain'!F30=Menus!A26,Menus!B26,IF('Préparation de terrain'!F30=Menus!A27,Menus!B27,\"La valeur de distance entre les passages est différente des valeurs pré-établies, calcul à titre indicatif seulement «\"&ROUND(10000/F30,0)&\"» microsites par hectare\"))))))","v":""}]
["Ajustement du taux d'exécution calculé à partir de la valeur inscrite de distance entre les passages de l'engin forestier",null,null,null,null,{"$f":"IF(ISERR(4/F30),0,4/F30)","v":0}]
["Majoraration ou réduction selon la distance entre les passages (PE1)"]
["Majoraration ou réduction selon la distance entre les passages (PE1) - Disque-Bracke-Wadell-M36"]
["Classe de pente\nnumérique","Taux calculé",null,"Écart",null,"Superficie (ha)"]
["Pente A",{"$f":"$G$14*(1+0)","v":0},null,{"$f":"B36-$G$14","v":0}]
["Pente B",{"$f":"$G$14*(1+0)","v":0},null,{"$f":"B37-$G$14","v":0}]
["Pente C",{"$f":"$G$14*(1+0.051)","v":0},null,{"$f":"B38-$G$14","v":0}]
["Pente D",{"$f":"$G$14*(1+0.45)","v":0},null,{"$f":"B39-$G$14","v":0}]
["Pente E",{"$f":"$G$14*(1+1.46)","v":0},null,{"$f":"B40-$G$14","v":0}]
[null,null,null,"Total",null,{"$f":"SUM(F36:G40)","v":0}]
["Majoraration ou réduction selon la distance entre les passages (PE2)"]
["Majoraration ou réduction selon la distance entre les passages (PE2) - Abatteuse-Rouleau"]
["Classe de pente numérique","Taux calculé",null,"Écart",null,"Superficie (ha)"]
["Pente A",{"$f":"$G$14*(1+0)","v":0},null,{"$f":"B45-$G$14","v":0}]
["Pente B",{"$f":"$G$14*(1+0)","v":0},null,{"$f":"B46-$G$14","v":0}]
["Pente C",{"$f":"$G$14*(1+0.007)","v":0},null,{"$f":"B47-$G$14","v":0}]
["Pente D",{"$f":"$G$14*(1+0.026)","v":0},null,{"$f":"B48-$G$14","v":0}]
["Pente E",{"$f":"$G$14*(1+0.061)","v":0},null,{"$f":"B49-$G$14","v":0}]
[null,null,null,"Total",null,{"$f":"SUM(F45:G49)","v":0}]
["Majoraration ou réduction selon la distance entre les passages (PE4)"]
["Majoraration ou réduction selon la distance entre les passages (PE4) - Bouteur"]
["Classe de pente numérique","Taux calculé",null,"Écart",null,"Superficie (ha)"]
["Pente A",{"$f":"$G$14*(1+0)","v":0},null,{"$f":"B54-$G$14","v":0}]
["Pente B",{"$f":"$G$14*(1+0)","v":0},null,{"$f":"B55-$G$14","v":0}]
["Pente C",{"$f":"$G$14*(1+0.05)","v":0},null,{"$f":"B56-$G$14","v":0}]
["Pente D",{"$f":"$G$14*(1+0.15)","v":0},null,{"$f":"B57-$G$14","v":0}]
["Pente E",{"$f":"$G$14*(1+0.19)","v":0},null,{"$f":"B58-$G$14","v":0}]
[null,null,null,"Total",null,{"$f":"SUM(F54:G58)","v":0}]
["Majoration passage et pente (PA1, PE1)"]
["Majoration passage et pente (PA1, PE1) - Disque-Bracke-Wadell"]
["Superficie  (hectares)"]
["Classe de pente numérique",null,"Simple passage ","Double passage","Triple passage","Total"]
["Pente A",null,null,null,null,{"$f":"SUM(C64:E64)","v":0}]
["Pente B",null,null,null,null,{"$f":"SUM(C65:E65)","v":0}]
["Pente C",null,null,null,null,{"$f":"SUM(C66:E66)","v":0}]
["Pente D",null,null,null,null,{"$f":"SUM(C67:E67)","v":0}]
["Pente E",null,null,null,null,{"$f":"SUM(C68:E68)","v":0}]
["Total",null,{"$f":"SUM(C64:C68)","v":0},{"$f":"SUM(D64:D68)","v":0},{"$f":"SUM(E64:E68)","v":0},{"$f":"SUM(F64:G68)","v":0}]
["Taux calculé ($/hectare)"]
["Nombre de passage",1,null,2,null,3]
["Pente A",{"$f":"($G$138+$G$139)*(1+0)*(($B$71-1)+0.89^(1-1))","v":0},null,{"$f":"($G$138+$G$139)*(1+0)*(($D$71-1)+0.89^($D$71-1))","v":0},null,{"$f":"($G$138+$G$139)*(1+0)*(($F$71-1)+0.89^($F$71-1))","v":0}]
["Pente B",{"$f":"($G$138+$G$139)*(1+0)*(($B$71-1)+0.89^(($B$71-1)))","v":0},null,{"$f":"($G$138+$G$139)*(1+0)*(($D$71-1)+0.89^($D$71-1))","v":0},null,{"$f":"($G$138+$G$139)*(1+0)*(($F$71-1)+0.89^($F$71-1))","v":0}]
["Pente C",{"$f":"($G$138+$G$139)*(1+0.051)*(($B$71-1)+0.89^($B$71-1))","v":0},null,{"$f":"($G$138+$G$139)*(1+0.051)*(($D$71-1)+0.89^($D$71-1))","v":0},null,{"$f":"($G$138+$G$139)*(1+0.051)*(($F$71-1)+0.89^($F$71-1))","v":0}]
["Pente D",{"$f":"($G$138+$G$139)*(1+0.45)*(($B$71-1)+0.89^($B$71-1))","v":0},null,{"$f":"($G$138+$G$139)*(1+0.45)*(($D$71-1)+0.89^($D$71-1))","v":0},null,{"$f":"($G$138+$G$139)*(1+0.45)*(($F$71-1)+0.89^($F$71-1))","v":0}]
["Pente E",{"$f":"($G$138+$G$139)*(1+1.46)*(($B$71-1)+0.89^($B$71-1))","v":0},null,{"$f":"($G$138+$G$139)*(1+1.46)*(($D$71-1)+0.89^($D$71-1))","v":0},null,{"$f":"($G$138+$G$139)*(1+1.46)*(($F$71-1)+0.89^($F$71-1))","v":0}]
["Majoration passage et pente (PA2, PE2)"]
["Majoration passage et pente (PA2, PE2) - Herse"]
["Superficie (hectares)"]
["Classe de pente numérique",null,"Simple passage ","Double passage","Triple passage","Total"]
["Pente A",null,null,null,null,{"$f":"SUM(C81:E81)","v":0}]
["Pente B",null,null,null,null,{"$f":"SUM(C82:E82)","v":0}]
["Pente C",null,null,null,null,{"$f":"SUM(C83:E83)","v":0}]
["Pente D",null,null,null,null,{"$f":"SUM(C84:E84)","v":0}]
["Pente E",null,null,null,null,{"$f":"SUM(C85:E85)","v":0}]
["Total",null,{"$f":"SUM(C81:C85)","v":0},{"$f":"SUM(D81:D85)","v":0},{"$f":"SUM(E81:E85)","v":0},{"$f":"SUM(F81:G85)","v":0}]
["Taux calculé ($/hectare)"]
["Nombre de passage",1,null,2,null,3]
["Pente A",{"$f":"$G$14*(1+0)*(($B$88-1)+0.79^($B$88-1))","v":0},null,{"$f":"$G$14*(1+0)*(($D$88-1)+0.79^($D$88-1))","v":0},null,{"$f":"$G$14*(1+0)*(($F$88-1)+0.79^($F$88-1))","v":0}]
["Pente B",{"$f":"$G$14*(1+0)*(($B$88-1)+0.79^($B$88-1))","v":0},null,{"$f":"$G$14*(1+0)*(($D$88-1)+0.79^($D$88-1))","v":0},null,{"$f":"$G$14*(1+0)*(($F$88-1)+0.79^($F$88-1))","v":0}]
["Pente C",{"$f":"$G$14*(1+0.007)*(($B$88-1)+0.79^($B$88-1))","v":0},null,{"$f":"$G$14*(1+0.007)*(($D$88-1)+0.79^($D$88-1))","v":0},null,{"$f":"$G$14*(1+0.007)*(($F$88-1)+0.79^($F$88-1))","v":0}]
["Pente D",{"$f":"$G$14*(1+0.026)*(($B$88-1)+0.79^($B$88-1))","v":0},null,{"$f":"$G$14*(1+0.026)*(($D$88-1)+0.79^($D$88-1))","v":0},null,{"$f":"$G$14*(1+0.026)*(($F$88-1)+0.79^($F$88-1))","v":0}]
["Pente E",{"$f":"$G$14*(1+0.061)*(($B$88-1)+0.79^($B$88-1))","v":0},null,{"$f":"$G$14*(1+0.061)*(($D$88-1)+0.79^($D$88-1))","v":0},null,{"$f":"$G$14*(1+0.061)*(($F$88-1)+0.79^($F$88-1))","v":0}]
["Majoration passage et pente (PE2 ou PE3 selon le type d'équipement)"]
["Majoration passage et pente (PE2 ou PE3) - Variable"]
["Classe de pente numérique","Taux calculé",null,"Écart",null,"Superficie (hectare)"]
["Pente A",{"$f":"IF($F$23=1,G25*(1+0),G25*(1+0))","v":0},null,{"$f":"B97-$G$25","v":0}]
["Pente B",{"$f":"IF($F$23=1,G25*(1+0),G25*(1+0))","v":0},null,{"$f":"B98-$G$25","v":0}]
["Pente C",{"$f":"IF($F$23=1,G25*(1+0.11),G25*(1+0.007))","v":0},null,{"$f":"B99-$G$25","v":0}]
["Pente D",{"$f":"IF($F$23=1,G25*(1+0.19),G25*(1+0.026))","v":0},null,{"$f":"B100-$G$25","v":0}]
["Pente E",{"$f":"IF($F$23=1,G25*(1+0.23),G25*(1+0.061))","v":0},null,{"$f":"B101-$G$25","v":0}]
[null,null,null,"Total",null,{"$f":"SUM(F97:G101)","v":0}]
[{"$f":"\"Unités de mesure pour le traitement \"&D13","v":"Unités de mesure pour le traitement "}]
["Unité de mesure - Drainage-Taupe-pioche"]
["Nombre de kilomètres ou Mm³"]
["Nombre de milliers de microsites"]
["Majoration en fonction de l'indice de dispersion (DISP1, DISP2) - Tous sauf Taupe"]
["Majoration en fonction de l'indice de dispersion (DISP1 ou DISP2)"]
["UAF ",null,null,null,null,null,{"$f":"IF(E5<>\"\",E5,\"\")","v":""}]
["Indice de dispersion",null,null,null,null,null,{"$f":"IF(ISERROR(VLOOKUP(G109,'Dispersion UAF_2017-2018'!A27:B98,2,FALSE))=TRUE,0,VLOOKUP(G109,'Dispersion UAF_2017-2018'!A27:B98,2,FALSE))","v":0}]
["Majoration DISP1",null,null,null,null,null,{"$f":"IF(G110>9,0.038*9,IF(G110>1,0.038*ROUNDUP((G110-1),0),0))","v":0}]
["Majoration DISP2",null,null,null,null,null,{"$f":"IF(G110>19,0.014*15,IF(G110>4,0.014*ROUNDUP((G110-4),0),0))","v":0}]
["Majoration pour l'hébergement et la distance du secteur intervention (H1 et D200)"]
["Hébergement (H1)",null,null,null,null,{"$f":"IF(G114=Menus!A30,Menus!B30,IF(G114=Menus!A31,Menus!B31,\"\"))","v":""}]
["Distance du secteur d'intervention (D200)",null,null,null,null,{"$f":"IF(G115=Menus!$A$38,Menus!$B$38,IF(G115=Menus!$A$39,Menus!$B$39,\"\"))","v":""}]
["Vérification"]
["Vérification - Tous"]
["Délimitation des secteurs (taux par kilomètre délimité)"]
["Nombre de kilomètres délimités"]
["Vérification - Disque-Bracke-Wadell/M36/Variable/Herse/Bouteur/Abatteuse-Rouleau"]
["Inventaire après traitement (taux par placette inventoriée)"]
["Nombre de placettes inventoriées"]
["Critère 1","Dénombrement des microsites",null,null,{"$f":"SUM(F123:F126)*'Calculs grille'!$I$88","v":0},{"$f":"IF(G123=\"Oui\",1,IF(G123=\"Non\",0,\"\"))","v":""}]
[null,"Mesure des distances entre les sillons",null,null,null,{"$f":"IF(G124=\"Oui\",1,IF(G124=\"Non\",0,\"\"))","v":""}]
[null,"Qualification des microsite",null,null,null,{"$f":"IF(G125=\"Oui\",1,IF(G125=\"Non\",0,\"\"))","v":""}]
[null,"Évaluation du type de plants, de l'essence reboisée et du choix de site",null,null,null,{"$f":"IF(G126=\"Oui\",1,IF(G126=\"Non\",0,\"\"))","v":""}]
[null,"Nombre total de critères",null,null,null,null,{"$f":"SUM(F123:F126)","v":0}]
["Vérification - Drainage"]
["Inventaire après traitement (taux par kilomètre ou millier de mètres cubes)"]
["Vérification - Taupe"]
["Inventaire après traitement (taux par placette inventoriée)"]
["Nombre de placettes inventoriées"]
["Vérification - Majoration hébergement et distance secteur intervention (H3 et D200)"]
["Hébergement (H3)",null,null,null,null,{"$f":"IF(G134=Menus!A34,Menus!B34,IF(G134=Menus!A35,Menus!B35,\"\"))","v":""}]
["Distance du secteur d'intervention (D200)",null,null,null,null,{"$f":"IF(G135=Menus!$A$38,Menus!$B$38,IF(G135=Menus!$A$39,Menus!$B$39,\"\"))","v":""}]
["Total"]
["Calculs - Disque-Bracke-Wadell"]
["Taux d'exécution de base",null,null,null,null,null,{"$f":"IF(ISERR(IF($G$14=\"\",0,$G$14)),0,IF($G$14=\"\",0,$G$14))","v":0}]
["Taux PA0",null,null,null,null,null,{"$f":"IF(ISERR(IF(F30=\"\",0,-(G14*(1-F32)))),0,IF(F30=\"\",0,-(G14*(1-F32))))","v":0}]
["Taux PA1 et PE1",null,null,null,null,null,{"$f":"IF(ISERR(((SUMPRODUCT($B$72:$B$76,$C$64:$C$68)+SUMPRODUCT($D$72:$D$76,$D$64:$D$68)+SUMPRODUCT($F$72:$F$76,$E$64:$E$68))/$F$69)-($G$138+$G$139)),0,((SUMPRODUCT($B$72:$B$76,$C$64:$C$68)+SUMPRODUCT($D$72:$D$76,$D$64:$D$68)+SUMPRODUCT($F$72:$F$76,$E$64:$E$68))/$F$69)-($G$138+$G$139))","v":0}]
["Taux sous-total exécution",null,null,null,null,null,{"$f":"IF(ISERR(ROUND(SUM(G138:G140),2)),0,ROUND(SUM(G138:G140),2))","v":0}]
["Taux DISP1",null,null,null,null,null,{"$f":"IF(ISERR(G141*G111),0,G141*G111)","v":0}]
["Taux H1",null,null,null,null,null,{"$f":"IF(ISERR(G141*$F$114),0,G141*$F$114)","v":0}]
["Taux exécution total et majoration admissibles",null,null,null,null,null,{"$f":"IF(ISERR(ROUND(SUM(G141,G142,G143),2)),0,ROUND(SUM(G141,G142,G143),2))","v":0}]
["Taux vérification",null,null,null,null,null,{"$f":"IF(ISERR(((G118*G119)+($G$121+($G$127*'Calculs grille'!I88))*$G$122)/G148),0,((G118*G119)+($G$121+($G$127*'Calculs grille'!I88))*$G$122)/G148)","v":0}]
["Taux H3 et/ou D200",null,null,null,null,null,{"$f":"IF(ISERR((SUM(F134:F135)*G145)),0,(SUM(F134:F135)*G145))","v":0}]
["Taux exécution et vérification total",null,null,null,null,null,{"$f":"IF(ISERR(ROUND(SUM(G144:G146),2)),0,ROUND(SUM(G144:G146),2))","v":0}]
["Superficie (hectares)",null,null,null,null,null,{"$f":"IF(ISERR(ROUND(F69,2)),0,ROUND(F69,2))","v":0}]
["Total exécution",null,null,null,null,null,{"$f":"IF(ISERR(G144*G148),0,G144*G148)","v":0}]
["Total vérification",null,null,null,null,null,{"$f":"IF(ISERR(ROUND(SUM(G145:G146),2)*G148),0,ROUND(SUM(G145:G146),2)*G148)","v":0}]
["Grand total admissible",null,null,null,null,null,{"$f":"IF(ISERR(SUM(G149:G150)),0,SUM(G149:G150))","v":0}]
["Calculs - M36"]
["Taux d'exécution de base",null,null,null,null,null,{"$f":"IF(ISERR(IF($G$14=\"\",0,$G$14)),0,IF($G$14=\"\",0,$G$14))","v":0}]
["Taux PE1",null,null,null,null,null,{"$f":"IF(ISERR(IF(F41=0,0,SUMPRODUCT($D$36:$D$40,$F$36:$F$40)/$F$41)),0,IF(F41=0,0,SUMPRODUCT($D$36:$D$40,$F$36:$F$40)/$F$41))","v":0}]
["Taux sous-total exécution",null,null,null,null,null,{"$f":"IF(ISERR(SUM(G153:G154)),0,SUM(G153:G154))","v":0}]
["Taux DISP1",null,null,null,null,null,{"$f":"IF(ISERR(G155*G111),0,G155*G111)","v":0}]
["Taux H1",null,null,null,null,null,{"$f":"IF(ISERR(G155*$F$114),0,G155*$F$114)","v":0}]
["Taux exécution total et majoration(s) admissible(s)",null,null,null,null,null,{"$f":"IF(ISERR(ROUND(SUM(G155,G156,G157),2)),0,ROUND(SUM(G155,G156,G157),2))","v":0}]
["Taux vérification",null,null,null,null,null,{"$f":"IF(ISERR(IF(G127=\"Maximum 3 critères\",G127,((G118*G119)+($G$121+($G$127*'Calculs grille'!I88))*$G$122)/G162)),0,IF(G127=\"Maximum 3 critères\",\"Maximum 3 critères\",((G118*G119)+($G$121+($G$127*'Calculs grille'!I88))*$G$122)/G162))","v":0}]
["Taux H3 et/ou D200",null,null,null,null,null,{"$f":"IF(ISERR((SUM(F134:F135)*G159)),0,(SUM(F134:F135)*G159))","v":0}]
["Taux exécution et vérification total",null,null,null,null,null,{"$f":"IF(ISERR(ROUND(SUM(G158:G160),2)),0,ROUND(SUM(G158:G160),2))","v":0}]
["Nombre d'hectares",null,null,null,null,null,{"$f":"IF(ISERR(ROUND(F41,2)),0,ROUND(F41,2))","v":0}]
["Total exécution",null,null,null,null,null,{"$f":"IF(ISERR(G158*G162),0,G158*G162)","v":0}]
["Total vérification",null,null,null,null,null,{"$f":"IF(ISERR(ROUND(SUM(G159:G160),2)*G162),0,ROUND(SUM(G159:G160),2)*G162)","v":0}]
["Grand total admissible",null,null,null,null,null,{"$f":"IF(ISERR(SUM(G163:G164)),0,SUM(G163:G164))","v":0}]
["Calculs - Herse"]
["Taux d'exécution de base",null,null,null,null,null,{"$f":"IF(ISERR(IF($G$14=\"\",0,$G$14)),0,IF($G$14=\"\",0,$G$14))","v":0}]
["Taux PA2 et PE2",null,null,null,null,null,{"$f":"IF(ISERR(IF(F86=0,0,((SUMPRODUCT($B$89:$B$93,$C$81:$C$85)+SUMPRODUCT($D$89:$D$93,$D$81:$D$85)+SUMPRODUCT($F$89:$F$93,$E$81:$E$85))/$F$86)-($G$167))),0,IF(F86=0,0,((SUMPRODUCT($B$89:$B$93,$C$81:$C$85)+SUMPRODUCT($D$89:$D$93,$D$81:$D$85)+SUMPRODUCT($F$89:$F$93,$E$81:$E$85))/$F$86)-($G$167)))","v":0}]
["Taux sous-total exécution",null,null,null,null,null,{"$f":"IF(ISERR(ROUND(SUM(G167:G168),2)),0,ROUND(SUM(G167:G168),2))","v":0}]
["Taux DISP1",null,null,null,null,null,{"$f":"IF(ISERR(G169*G111),0,G169*G111)","v":0}]
["Taux H1",null,null,null,null,null,{"$f":"IF(ISERR(G169*$F$114),0,G169*$F$114)","v":0}]
["Taux exécution total et majoration(s) admissible(s)",null,null,null,null,null,{"$f":"IF(ISERR(ROUND(SUM(G138,G168,G170,G171),2)),0,ROUND(SUM(G138,G168,G170,G171),2))","v":0}]
["Taux vérification",null,null,null,null,null,{"$f":"IF(ISERR(IF(G127=\"Maximum 3 critères\",G127,((G118*G119)+($G$121+($G$127*'Calculs grille'!I88))*$G$122)/G176)),0,IF(G127=\"Maximum 3 critères\",\"Maximum 3 critères\",((G118*G119)+($G$121+($G$127*'Calculs grille'!I88))*$G$122)/G176))","v":0}]
["Taux H3 et/ou D200",null,null,null,null,null,{"$f":"IF(ISERR((SUM(F134:F135)*G173)),0,(SUM(F134:F135)*G173))","v":0}]
["Taux exécution et vérification total",null,null,null,null,null,{"$f":"IF(ISERR(ROUND(SUM(G172:G174),2)),0,ROUND(SUM(G172:G174),2))","v":0}]
["Superficie (hectares)",null,null,null,null,null,{"$f":"IF(ISERR(ROUND(F86,2)),0,ROUND(F86,2))","v":0}]
["Total exécution",null,null,null,null,null,{"$f":"IF(ISERR(G172*G176),0,G172*G176)","v":0}]
["Total vérification",null,null,null,null,null,{"$f":"IF(ISERR(ROUND(SUM(G173:G174),2)*G176),0,ROUND(SUM(G173:G174),2)*G176)","v":0}]
["Grand total admissible",null,null,null,null,null,{"$f":"IF(ISERR(SUM(G177:G178)),0,SUM(G177:G178))","v":0}]
["Calculs - Bouteur"]
["Taux d'exécution de base",null,null,null,null,null,{"$f":"IF(ISERR(IF($G$14=\"\",0,$G$14)),0,IF($G$14=\"\",0,$G$14))","v":0}]
["Taux PE4",null,null,null,null,null,{"$f":"IF(ISERR(SUMPRODUCT($D$54:$D$58,$F$54:$F$58)/$F$59),0,SUMPRODUCT($D$54:$D$58,$F$54:$F$58)/$F$59)","v":0}]
["Taux sous-total exécution",null,null,null,null,null,{"$f":"IF(ISERR(SUM(G181:G182)),0,SUM(G181:G182))","v":0}]
["Taux DISP2",null,null,null,null,null,{"$f":"IF(ISERR(G183*G112),0,G183*G112)","v":0}]
["Taux H1",null,null,null,null,null,{"$f":"IF(ISERR(G183*$F$114),0,G183*$F$114)","v":0}]
["Taux exécution total  et majoration(s) admissible(s)",null,null,null,null,null,{"$f":"IF(ISERR(ROUND(SUM(G183,G184,G185),2)),0,ROUND(SUM(G183,G184,G185),2))","v":0}]
["Taux vérification",null,null,null,null,null,{"$f":"IF(ISERR(IF(G127=\"Maximum 3 critères\",G127,((G118*G119)+($G$121+($G$127*'Calculs grille'!I88))*$G$122)/G190)),0,IF(G127=\"Maximum 3 critères\",\"Maximum 3 critères\",((G118*G119)+($G$121+($G$127*'Calculs grille'!I88))*$G$122)/G190))","v":0}]
["Taux H3 et/ou D200",null,null,null,null,null,{"$f":"IF(ISERR((SUM(F134:F135)*G187)),0,(SUM(F134:F135)*G187))","v":0}]
["Taux exécution et vérification total",null,null,null,null,null,{"$f":"IF(ISERR(ROUND(SUM(G186:G188),2)),0,ROUND(SUM(G186:G188),2))","v":0}]
["Superficie (hectares)",null,null,null,null,null,{"$f":"IF(ISERR(ROUND(F59,2)),0,ROUND(F59,2))","v":0}]
["Total exécution",null,null,null,null,null,{"$f":"IF(ISERR(G186*G190),0,G186*G190)","v":0}]
["Total vérification",null,null,null,null,null,{"$f":"IF(ISERR(ROUND(SUM(G187:G188),2)*G190),0,ROUND(SUM(G187:G188),2)*G190)","v":0}]
["Grand total admissible",null,null,null,null,null,{"$f":"IF(ISERR(SUM(G191:G192)),0,SUM(G191:G192))","v":0}]
["Calculs - Abatteuse/Rouleau"]
["Taux d'exécution de base",null,null,null,null,null,{"$f":"IF(ISERR(IF($G$14=\"\",0,$G$14)),0,IF($G$14=\"\",0,$G$14))","v":0}]
["Taux PE2",null,null,null,null,null,{"$f":"IF(ISERR(SUMPRODUCT($D$45:$D$49,$F$45:$F$49)/$F$50),0,SUMPRODUCT($D$45:$D$49,$F$45:$F$49)/$F$50)","v":0}]
["Taux sous-total exécution",null,null,null,null,null,{"$f":"IF(ISERR(ROUND(SUM(G195:G196),2)),0,ROUND(SUM(G195:G196),2))","v":0}]
["Taux DISP2",null,null,null,null,null,{"$f":"IF(ISERR(G197*G112),0,G197*G112)","v":0}]
["Taux H1",null,null,null,null,null,{"$f":"IF(ISERR(G197*$F$114),0,G197*$F$114)","v":0}]
["Taux exécution total  et majoration(s) admissible(s)",null,null,null,null,null,{"$f":"IF(ISERR(ROUND(SUM(G138,G196,G198,G199),2)),0,ROUND(SUM(G138,G196,G198,G199),2))","v":0}]
["Taux vérification",null,null,null,null,null,{"$f":"IF(ISERR(IF(G127=\"Maximum 3 critères\",G127,((G118*G119)+($G$121+($G$127*'Calculs grille'!I88))*$G$122)/G204)),0,IF(G127=\"Maximum 3 critères\",\"Maximum 3 critères\",((G118*G119)+($G$121+($G$127*'Calculs grille'!I88))*$G$122)/G204))","v":0}]
["Taux H3 et/ou D200",null,null,null,null,null,{"$f":"IF(ISERR((SUM(F134:F135)*G201)),0,(SUM(F134:F135)*G201))","v":0}]
["Taux exécution et vérification total",null,null,null,null,null,{"$f":"IF(ISERR(ROUND(SUM(G200:G202),2)),0,ROUND(SUM(G200:G202),2))","v":0}]
["Superficie (hectares)",null,null,null,null,null,{"$f":"IF(ISERR(ROUND(F50,2)),0,ROUND(F50,2))","v":0}]
["Total exécution",null,null,null,null,null,{"$f":"IF(ISERR(G200*G204),0,G200*G204)","v":0}]
["Total vérification",null,null,null,null,null,{"$f":"IF(ISERR(ROUND(SUM(G201:G202),2)*G204),0,ROUND(SUM(G201:G202),2)*G204)","v":0}]
["Grand total admissible",null,null,null,null,null,{"$f":"IF(ISERR(SUM(G205:G206)),0,SUM(G205:G206))","v":0}]
["Calculs - Drainage"]
["Taux d'exécution de base",null,null,null,null,null,{"$f":"IF(ISERR(IF($G$14=\"\",0,$G$14)),0,IF($G$14=\"\",0,$G$14))","v":0}]
["Taux H1",null,null,null,null,null,{"$f":"IF(ISERR(G209*F114),0,G209*F114)","v":0}]
["Taux exécution total et majoration(s) admissible(s)",null,null,null,null,null,{"$f":"IF(ISERR(ROUND(G209+G210,2)),0,ROUND(G209+G210,2))","v":0}]
["Taux vérification",null,null,null,null,null,{"$f":"IF(ISERR(((G118*G119)+(G129*G215))/G215),0,((G118*G119)+(G129*G215))/G215)","v":0}]
["Taux H3 et/ou D200",null,null,null,null,null,{"$f":"IF(ISERR((SUM(F134:F135)*G212)),0,(SUM(F134:F135)*G212))","v":0}]
["Taux exécution et vérification total",null,null,null,null,null,{"$f":"IF(ISERR(ROUND(SUM(G211:G213),2)),0,ROUND(SUM(G211:G213),2))","v":0}]
["Nombre de kilomètres ou Mm³",null,null,null,null,null,{"$f":"IF(ISERR(G105),0,G105)","v":0}]
["Total exécution",null,null,null,null,null,{"$f":"IF(ISERR(G211*G215),0,G211*G215)","v":0}]
["Total vérification",null,null,null,null,null,{"$f":"IF(ISERR(ROUND(SUM(G212:G213),2)*G215),0,ROUND(SUM(G212:G213),2)*G215)","v":0}]
["Grand total admissible",null,null,null,null,null,{"$f":"IF(ISERR(G214*G215),0,G214*G215)","v":0}]
["Calculs - Taupe"]
["Taux d'exécution de base",null,null,null,null,null,{"$f":"IF(ISERR(IF($G$14=\"\",0,$G$14)),0,IF($G$14=\"\",0,$G$14))","v":0}]
["Taux H1",null,null,null,null,null,{"$f":"IF(ISERR(F114*G220),0,F114*G220)","v":0}]
["Taux D200",null,null,null,null,null,{"$f":"IF(ISERR(F115*G220),0,F115*G220)","v":0}]
["Taux exécution total  et majoration(s) admissible(s)",null,null,null,null,null,{"$f":"IF(ISERR(ROUND(SUM(G220:G222),2)),0,ROUND(SUM(G220:G222),2))","v":0}]
["Taux vérification",null,null,null,null,null,{"$f":"IF(ISERR(((G118*G119)+(G131*G132))/G227),0,((G118*G119)+(G131*G132))/G227)","v":0}]
["Taux H3 et/ou D200",null,null,null,null,null,{"$f":"IF(ISERR((SUM(F134:F135)*G224)),0,(SUM(F134:F135)*G224))","v":0}]
["Taux exécution et vérification total",null,null,null,null,null,{"$f":"IF(ISERR(ROUND(SUM(G223:G225),2)),0,ROUND(SUM(G223:G225),2))","v":0}]
["Nombre de microsites",null,null,null,null,null,{"$f":"IF(ISERR(G106),0,G106)","v":0}]
["Total exécution",null,null,null,null,null,{"$f":"IF(ISERR(G223*G227),0,G223*G227)","v":0}]
["Total vérification",null,null,null,null,null,{"$f":"IF(ISERR(ROUND(SUM(G224:G225),2)*G227),0,ROUND(SUM(G224:G225),2)*G227)","v":0}]
["Grand total admissible",null,null,null,null,null,{"$f":"IF(ISERR(SUM(G228:G229)),0,SUM(G228:G229))","v":0}]
["Calculs - Variable"]
["Taux d'exécution de base",null,null,null,null,null,{"$f":"IF(ISERR($G$25),0,$G$25)","v":0}]
["Taux PE2 ou PE3",null,null,null,null,null,{"$f":"IF(ISERR(IF($F$102=0,0,(SUMPRODUCT(D97:D101,F97:F101)/$F$102))),0,IF($F$102=0,0,(SUMPRODUCT(D97:D101,F97:F101)/$F$102)))","v":0}]
["Taux sous-total exécution",null,null,null,null,null,{"$f":"IF(ISERR(SUM(G232:G233)),0,SUM(G232:G233))","v":0}]
["Taux DISP2",null,null,null,null,null,{"$f":"IF(ISERR(G234*G112),0,G234*G112)","v":0}]
["Taux H1",null,null,null,null,null,{"$f":"IF(ISERR(G234*$F$114),0,G234*$F$114)","v":0}]
["Taux exécution total et majoration(s) admissible(s)",null,null,null,null,null,{"$f":"IF(ISERR(ROUND(SUM(G234:G236),2)),0,ROUND(SUM(G234:G236),2))","v":0}]
["Taux vérification",null,null,null,null,null,{"$f":"IF(ISERR(((G118*G119)+($G$121+($G$127*'Calculs grille'!I88))*$G$122)/G241),0,((G118*G119)+($G$121+($G$127*'Calculs grille'!I88))*$G$122)/G241)","v":0}]
["Taux H3 et/ou D200",null,null,null,null,null,{"$f":"IF(ISERR((SUM(F134:F135)*G238)),0,(SUM(F134:F135)*G238))","v":0}]
["Taux exécution et vérification total",null,null,null,null,null,{"$f":"IF(ISERR(ROUND(SUM(G237:G239),2)),0,ROUND(SUM(G237:G239),2))","v":0}]
["Nombre d'hectares",null,null,null,null,null,{"$f":"IF(ISERR(F102),0,F102)","v":0}]
["Total exécution",null,null,null,null,null,{"$f":"IF(ISERR(G237*G241),0,G237*G241)","v":0}]
["Total vérification",null,null,null,null,null,{"$f":"IF(ISERR(ROUND(SUM(G238:G239),2)*G241),0,ROUND(SUM(G238:G239),2)*G241)","v":0}]
["Grand total admissible",null,null,null,null,null,{"$f":"IF(ISERR(SUM(G242:G243)),0,SUM(G242:G243))","v":0}]
[]
["J'atteste que les renseignements fournis dans ce document afin de calculer l'aide financière sont complets et conformes à la vérité, au meilleur de mes connaissances."]
[]
[]
[]
["Nom et prénom de l'ingénieur forestier",null,null,null,null,null,"No de permis"]
[null,null,null,null,null,null,{"$f":"TODAY()","v":"2017-02-13"}]
[null,null,null,null,null,null,null,null,null,null,null,null,null,null,null,null,null,null,null,null,null,{"$f":"N252&H252","v":""},{"$f":"J252&H252","v":""},{"$f":"P252&H252","v":""}]
["Signature de l'ingénieur forestier",null,null,null,null,null,"Date (AAAA-MM-JJ)",null,null,null,null,null,null,null,null,null,null,null,null,null,null,"","",""]
[null,null,null,null,null,null,null,null,null,null,null,null,null,null,null,null,null,null,null,null,null,"","",""]
[]
["Section réservée au suivi du contrat",null,null,null,null,null,null,null,null,null,null,null,null,null,null,null,null,null,null,null,null,"","",""]
[null,null,null,null,null,null,null,null,null,null,null,null,null,null,null,null,null,null,null,null,null,"","",""]
[null,"Numéro de la prescription :",{"$f":"IF(E8<>\"\",E8,\"\")","v":""},null,null,null,null,null,null,null,null,null,null,null,null,null,null,null,null,null,null,"","",""]
[null,null,null,null,null,null,null,null,null,null,null,null,null,null,null,null,null,null,null,null,null,"","",""]
[null,"Numéro du contrat :",null,null,null,null,null,null,null,null,null,null,null,null,null,null,null,null,null,null,null,"","",""]
[null,"Numéro du projet :",null,null,null,null,null,null,null,null,null,null,null,null,null,null,null,null,null,null,null,"",{"$f":"J261&H261","v":""},{"$f":"P261&H261","v":""}]
[null,"U.G. :",null,null,null,null,null,null,null,null,null,null,null,null,null,null,null,null,null,null,null,"","",""]
[null,"MRC :",null,null,null,null,null,null,null,null,null,null,null,null,null,null,null,null,null,null,null,"","",""]
[null,"Code de traitement DICA :",{"$f":"IF(E9<>\"\",E9,\"\")","v":""},null,null,null,null,null,null,null,null,null,null,null,null,null,null,null,null,null,null,"","",""]
[null,"Code de traitement RATF :",{"$f":"IF(E10<>\"\",E10,\"\")","v":""},null,null,null,null,null,null,null,null,null,null,null,null,null,null,null,null,null,null,"","",""]
[null,"Type d'attribution :",null,null,null,null,null,null,null,null,null,null,null,null,null,null,null,null,null,null,null,"","",""]
[null,"Taux AOP :",null,null,null,null,null,null,null,null,null,null,null,null,null,null,null,null,null,null,null,"","",""]
[null,"Nom de l'entrepreneur :",null,null,null,null,null,null,null,null,null,null,null,null,null,null,null,null,null,null,null,"","",""]
[null,"Numéro de fournisseur :",null,null,null,null,null,null,null,null,null,null,null,null,null,null,null,null,null,null,null,"","",""]
[null,"Date de début :",null,null,null,null,null,null,null,null,null,null,null,null,null,null,null,null,null,null,null,"","",""]
[null,"Date de fin :",null,null,null,null,null,null,null,null,null,null,null,null,null,null,null,null,null,null,null,"","",""]
[null,"Commentaires :",null,null,null,null,null,null,null,null,null,null,null,null,null,null,null,null,null,null,null,"","",""]
[null,null,null,null,null,null,null,null,null,null,null,null,null,null,null,null,null,null,null,null,null,"","",""]
[null,null,null,null,null,null,null,null,null,null,null,null,null,null,null,null,null,null,null,null,null,"","",""]
[null,null,null,null,null,null,null,null,null,null,null,null,null,null,null,null,null,null,null,null,null,"","",""]
[null,null,null,null,null,null,null,null,null,null,null,null,null,null,null,null,null,null,null,null,null,"","",""]
[null,null,null,null,null,null,null,null,null,null,null,null,null,null,null,null,null,null,null,null,null,"","",""]

{"sheet":"Régénération artificielle","index":1,"n_rows":184,"n_cols":7,"rows_kept":184,"cut":false,"hidden":false,"merged":[[69,4,70,4],[70,1,70,3],[69,1,69,3],[169,2,170,4],[59,0,59,2],[74,0,74,3],[9,0,9,3],[9,4,9,6],[47,0,47,4],[44,5,44,6],[44,0,44,4],[57,1,57,2],[57,3,57,4],[57,5,57,6],[58,1,58,2],[58,3,58,4],[58,5,58,6],[56,3,56,4],[56,5,56,6],[53,1,53,2],[53,3,53,4],[55,1,55,2],[48,5,48,6],[48,0,48,4],[47,5,47,6],[46,5,46,6],[46,0,46,4],[19,1,19,4],[147,0,147,5],[69,0,70,0],[60,0,60,6],[156,0,156,6],[157,0,157,6],[103,0,103,6],[97,0,97,5],[88,0,88,5],[83,0,83,5],[85,0,85,5],[84,0,84,5],[96,0,96,5],[145,0,145,5],[136,0,136,5],[140,0,140,5],[141,0,141,5],[135,0,135,5],[137,0,137,5],[138,0,138,5],[139,0,139,5],[100,0,100,5],[101,0,101,5],[167,0,167,4],[154,0,154,5],[155,0,155,5],[144,0,144,5],[116,0,116,5],[152,0,152,5],[153,0,153,5],[149,0,149,5],[150,0,150,5],[151,0,151,5],[131,0,131,5],[122,0,122,5],[123,0,123,5],[125,0,125,5],[126,0,126,5],[124,0,124,5],[120,0,120,5],[117,0,117,6],[118,0,118,5],[148,0,148,5],[146,0,146,5],[142,0,142,6],[143,0,143,5],[104,0,104,5],[105,0,105,5],[106,0,106,5],[107,0,107,5],[108,0,108,5],[109,0,109,5],[111,0,111,5],[112,0,112,5],[134,0,134,5],[133,0,133,5],[132,0,132,5],[21,5,21,6],[20,2,20,3],[23,0,23,4],[25,1,25,3],[31,0,31,4],[0,0,0,6],[1,0,1,4],[2,0,2,6],[3,0,3,6],[4,0,4,3],[4,4,4,6],[5,0,5,3],[5,4,5,6],[6,0,6,3],[6,4,6,6],[21,1,21,3],[23,5,23,6],[7,0,7,3],[7,4,7,6],[15,0,15,6],[16,0,16,6],[8,0,8,3],[18,5,18,6],[19,5,19,6],[31,5,31,6],[30,1,30,3],[22,5,22,6],[22,0,22,4],[24,0,24,6],[25,5,25,6],[26,5,26,6],[30,5,30,6],[32,0,32,4],[32,5,32,6],[26,1,26,4],[27,2,27,4],[27,1,29,1],[8,4,8,6],[10,0,10,6],[11,4,11,6],[14,0,14,6],[17,0,17,6],[12,0,12,3],[12,4,12,6],[13,0,13,3],[13,4,13,6],[18,1,18,3],[49,0,49,6],[50,0,50,6],[11,0,11,3],[39,0,39,4],[34,0,34,6],[35,5,35,6],[36,5,36,6],[38,5,38,6],[37,2,37,3],[45,0,45,6],[43,0,43,6],[39,5,39,6],[37,5,37,6],[41,0,41,4],[42,0,42,4],[41,5,41,6],[42,5,42,6],[28,2,28,3],[29,2,29,3],[36,2,36,4],[36,1,37,1],[36,0,37,0],[33,0,33,4],[20,5,20,6],[59,5,59,6],[61,0,61,3],[95,0,95,5],[79,0,79,5],[80,0,80,5],[65,0,65,5],[66,0,66,5],[77,0,77,6],[78,0,78,5],[74,5,74,6],[75,0,75,3],[89,0,89,5],[82,0,82,5],[71,0,71,6],[72,0,72,6],[64,0,64,6],[67,0,67,5],[68,0,68,5],[91,0,91,5],[94,0,94,5],[86,0,86,5],[90,0,90,6],[62,0,62,3],[38,1,38,3],[73,0,73,3],[76,0,76,6],[130,0,130,6],[51,0,51,6],[52,0,52,6],[127,0,127,5],[128,0,128,5],[129,0,129,5],[121,0,121,5],[73,5,73,6],[114,0,114,5],[115,0,115,5],[75,5,75,6],[87,0,87,5],[81,0,81,5],[110,0,110,5],[113,0,113,5],[98,0,98,5],[99,0,99,5],[61,5,61,6],[62,5,62,6],[63,0,63,6],[119,0,119,5],[35,1,35,4],[59,3,59,4],[158,0,160,5],[158,6,160,6],[161,0,161,5],[162,0,163,5],[162,6,163,6],[164,0,164,5],[27,5,27,6],[27,0,29,0],[28,5,29,6],[102,0,102,5],[92,0,92,5],[93,0,93,5],[55,3,55,4],[55,5,55,6],[56,1,56,2],[53,5,53,6],[54,1,54,2],[54,3,54,4],[54,5,54,6],[33,5,33,6],[40,0,40,4],[40,5,40,6]]}
[]
["Annexe au calcul des taux des traitements non commerciaux                                                                                                                                                                                                                                           2017-2018                                                                                                                                                                                                                                                                              Régénération artificielle"]
[" *** Veuillez saisir les informations dans les cellules blanches seulement ***"]
["Identification"]
["UAF"]
["Secteur d'intervention"]
["Unité de compilation"]
["Numéro de la prescription"]
["Traitement (code DICA)"]
["Traitement (code RATF)"]
["Traitement d'éducation de peuplement à taux variable"]
["Traitement",null,null,null,"Inscrire une valeur"]
["Taux de base",null,null,null,{"$f":"IF(E12=Menus!A254,Menus!B254,IF(E12=Menus!A255,Menus!B255,IF(E12=Menus!A257,Menus!B257,IF(E12=Menus!A258,Menus!B258,IF(E12=Menus!A259,Menus!B259,IF(E12=Menus!A256,Menus!B256,IF(E12=Menus!A260,Menus!B260,\"\")))))))","v":0}]
["Unité de mesure",null,null,null,{"$f":"IF(E12=Menus!A254,Menus!C254,IF(E12=Menus!A255,Menus!C255,IF(E12=Menus!A257,Menus!C257,IF(E12=Menus!A258,Menus!C258,IF(E12=Menus!A259,Menus!C259,IF(E12=Menus!A256,Menus!C256,IF(E12=Menus!A260,Menus!C260,\"\")))))))","v":"-"}]
["Taux d'exécution à déterminer selon la formule suivante"]
[{"$f":"IF(E12=Formules!B10,Formules!D10,IF(E12=Formules!B11,Formules!D11,IF(E12=Formules!B12,Formules!D12,\"\")))","v":""}]
[{"$f":"\"Valeurs spécifiques à remplir selon le traitement\"&\" - \"&E12","v":"Valeurs spécifiques à remplir selon le traitement - Inscrire une valeur"}]
["Valeurs spécifiques à remplir selon le traitement - Plantation uniforme et regarni en plein manuel sauf PEH"]
["PR","Préparation de terrain",null,null,{"$f":"IF(F19=Menus!A263,Menus!B263,IF(F19=Menus!A264,Menus!B264,\"\"))","v":""}]
["DE","Densité totale (nombre de plants à mettre en terre par hectare)"]
["DS","Distance entre les rangées de plants","Outil de calcul de la valeur de la variable «DS» dans la cellule à droite en fonction de la valeur inscrite pour la variable «DE». Une valeur différente peut être inscrite.",null,{"$f":"IF(ISERR(ROUND(SQRT(10000/F20),2)),0,ROUND(SQRT(10000/F20),2))","v":0}]
["Gabarit","Constante liée au gabarit retenu",null,null,{"$f":"IF(F22=Menus!A267,Menus!B267,IF(F22=Menus!A268,Menus!B268,IF(F22=Menus!A269,Menus!B269,IF(F22=Menus!A270,Menus!B270,IF(F22=Menus!A271,Menus!B271,IF(F22=Menus!A272,Menus!B272,\"\"))))))","v":""}]
["Nombre total de milliers de plants à mettre en terre"]
["Taux calculé à partir de l'équation et des variables reliées au traitement",null,null,null,null,{"$f":"IF(ISERR('Calculs grille'!I21+'Calculs grille'!I22*E19+('Calculs grille'!I23/(F20*F21))+E22),0,'Calculs grille'!I21+'Calculs grille'!I22*E19+('Calculs grille'!I23/(F20*F21))+E22)","v":0}]
["Valeurs spécifiques à remplir selon le traitement - Regarni de sentier et enrichissement manuel sauf PEH"]
["PR","Préparation de terrain",null,null,{"$f":"IF(F26=Menus!A263,Menus!B263,IF(F26=Menus!A264,Menus!B264,\"\"))","v":""}]
["DE","Densité totale (nombre de plants à mettre en terre par hectare)"]
["DS","Distance entre les rangées de plants","Objectif de densité de plantation à terme : Outil de calcul afin de permettre d'afficher une valeur suggérée pour DS"]
[null,null,"DS : Outil de calcul, en fonction de «Objectif de densité de plantation à terme». Une valeur différente peut être inscrite",null,{"$f":"IF(ISERR(ROUND(SQRT(10000/F28),2)),0,ROUND(SQRT(10000/F28),2))","v":0}]
[null,null,"DSA : Outil de calcul de la distance ajustée entre les plants, en fonction de «Objectif de densité de plantation à terme» et de «Pourcentage d'occupation des sentiers, dans le cas du regarni de sentier SEULEMENT»",null,{"$f":"IF(ISERR(E29/F32),0,E29/F32)","v":0}]
["Gabarit","Constante liée au gabarit retenu",null,null,{"$f":"IF(F31=Menus!A267,Menus!B267,IF(F31=Menus!A268,Menus!B268,IF(F31=Menus!A269,Menus!B269,IF(F31=Menus!A270,Menus!B270,IF(F31=Menus!A271,Menus!B271,IF(F31=Menus!A272,Menus!B272,\"\"))))))","v":""}]
["Pourcentage d'occupation des sentiers (regarni) ou proportion de la superficie traitée (enrichissement)"]
["Nombre total de milliers de plants à mettre en terre"]
["Taux calculé à partir de l'équation et des variables reliées au traitement",null,null,null,null,{"$f":"IF(ISERR(IF(F32=\"\",('Calculs grille'!I21+'Calculs grille'!I22*E26+('Calculs grille'!I23/(F27*F29))+E31),('Calculs grille'!I21+'Calculs grille'!I22*E26+('Calculs grille'!I23/(F27*E30))+E31)*(1+((('Calculs grille'!I21+'Calculs grille'!I22*E26+('Calculs grille'!I23/(F28*F29))+E31)-('Calculs grille'!I21+'Calculs grille'!I22*E26+('Calculs grille'!I23/(F28*E30))+E31))/('Calculs grille'!I21+'Calculs grille'!I22*E26+('Calculs grille'!I23/(F28*E30))+E31))))),0,IF(F32=\"\",('Calculs grille'!I21+'Calculs grille'!I22*E26+('Calculs grille'!I23/(F27*F29))+E31),('Calculs grille'!I21+'Calculs grille'!I22*E26+('Calculs grille'!I23/(F27*E30))+E31)*(1+((('Calculs grille'!I21+'Calculs grille'!I22*E26+('Calculs grille'!I23/(F28*F29))+E31)-('Calculs grille'!I21+'Calculs grille'!I22*E26+('Calculs grille'!I23/(F28*E30))+E31))/('Calculs grille'!I21+'Calculs grille'!I22*E26+('Calculs grille'!I23/(F28*E30))+E31)))))","v":0}]
["Valeurs spécifiques à remplir selon le traitement - Plantation uniforme et regarni en plein manuel sentier préparé sauf PEH"]
["DE","Densité totale (indiquer le nombre de plants à mettre en terre par hectare)"]
["DS","Distance entre les rangées de plants","Objectif de densité de plantation à terme : Outil de calcul afin de permettre d'afficher une valeur suggérée pour DS"]
[null,null,"DS : Outil de calcul, en fonction de «Objectif de densité de plantation à terme». Une valeur différente peut être inscrite",null,{"$f":"IF(ISERR(ROUND(SQRT(10000/F37),2)),0,ROUND(SQRT(10000/F37),2))","v":0}]
["Gabarit","Constante liée au gabarit retenu",null,null,{"$f":"IF(F39=Menus!A267,Menus!B267,IF(F39=Menus!A268,Menus!B268,IF(F39=Menus!A269,Menus!B269,IF(F39=Menus!A270,Menus!B270,IF(F39=Menus!A271,Menus!B271,IF(F39=Menus!A272,Menus!B272,\"\"))))))","v":""}]
["Nombre total de milliers de plants à mettre en terre dans les SENTIERS"]
["Nombre totalde milliers de plants à mettre en terre dans les BANDES"]
["Taux calculé à partir de l'équation et des variables reliées au traitement AVEC préparation de terrain",null,null,null,null,{"$f":"IF(ISERR('Calculs grille'!I21+'Calculs grille'!I22*1+('Calculs grille'!I23/(F36*F38))+E39),0,'Calculs grille'!I21+'Calculs grille'!I22*1+('Calculs grille'!I23/(F36*F38))+E39)","v":0}]
["Taux calculé à partir de l'équation et des variables reliées au traitement SANS préparation de terrain",null,null,null,null,{"$f":"IF(ISERR('Calculs grille'!I21+'Calculs grille'!I22*0+('Calculs grille'!I23/(F36*F38))+E39),0,'Calculs grille'!I21+'Calculs grille'!I22*0+('Calculs grille'!I23/(F36*F38))+E39)","v":0}]
["Valeurs spécifiques à remplir selon le traitement - Plantation uniforme PEH"]
["Nombre de milliers de plants à mettre en terre"]
["Valeurs spécifiques à remplir selon le traitement - Plantation uniforme et regarni mécanique (Scarificateur-planteur Bracke P-11a)"]
["Traitement"]
["Nombre de milliers de plants à mettre en terre"]
["Taux",null,null,null,null,{"$f":"IF(F47=Menus!A275,Menus!B275,IF(F47=Menus!A276,Menus!B276,IF(F47=Menus!A277,Menus!B277,IF(F47=Menus!A278,Menus!B278,0))))","v":0}]
[{"$f":"\"Majoration(s) et réduction applicable(s) à l'exécution - \"&E12","v":"Majoration(s) et réduction applicable(s) à l'exécution - Inscrire une valeur"}]
[{"$f":"IF(E12='Majorations applicables'!C24,'Majorations applicables'!K24,IF(E12='Majorations applicables'!C25,'Majorations applicables'!K25,IF(E12='Majorations applicables'!C26,'Majorations applicables'!K26,IF(E12='Majorations applicables'!C27,'Majorations applicables'!K27,IF(E12='Majorations applicables'!C28,'Majorations applicables'!K28,IF(E12='Majorations applicables'!C29,'Majorations applicables'!K29,\"\"))))))","v":""}]
["Majoration passage et pente (PE2)"]
["Majoration passage et pente (PE2) - Ensemencement terrestre manuel"]
["Classe de pente numérique","Taux calculé",null,"Écart",null,"Superficie (hectare)"]
["Pente A",{"$f":"$E$13*(1+0)","v":0},{"$f":"B55-$E$12","v":{"$error":"#VALUE!"}},{"$f":"B55-$E$13","v":0}]
["Pente B",{"$f":"$E$13*(1+0)","v":0},{"$f":"B56-$E$12","v":{"$error":"#VALUE!"}},{"$f":"B56-$E$13","v":0}]
["Pente C",{"$f":"$E$13*(1+0.007)","v":0},{"$f":"B57-$E$12","v":{"$error":"#VALUE!"}},{"$f":"B57-$E$13","v":0}]
["Pente D",{"$f":"$E$13*(1+0.026)","v":0},{"$f":"B58-$E$12","v":{"$error":"#VALUE!"}},{"$f":"B58-$E$13","v":0}]
["Pente E",{"$f":"$E$13*(1+0.061)","v":0},{"$f":"B59-$E$12","v":{"$error":"#VALUE!"}},{"$f":"B59-$E$13","v":0}]
[null,null,null,"Total",null,{"$f":"SUM(F55:G59)","v":0}]
["Majoration hébergement et distance secteur intervention (H2 et D200)"]
["Hébergement (H2)",null,null,null,{"$f":"IF(F62=Menus!A284,Menus!B284,IF(F62=Menus!A285,Menus!B285,\"\"))","v":""}]
["Distance du secteur d'intervention (D200)",null,null,null,{"$f":"IF(F63=Menus!A292,Menus!B292,IF(F63=Menus!A293,Menus!B293,\"\"))","v":""}]
["Vérification"]
["Vérification - Tous"]
["Délimitation des secteurs (taux par kilomètre délimité)"]
["Nombre de kilomètres délimité"]
["Inventaire après traitement (taux par placette inventoriée)"]
["Nombre de placettes inventoriées"]
["Critères 2","Coefficient de distribution de placette en partie ou en totalité sur un andain",null,null,{"$f":"SUM(F70:F71)*'Calculs grille'!$I$92","v":0},{"$f":"IF(G70=\"Oui\",1,IF(G70=\"Non\",0,\"\"))","v":""}]
[null,"Évaluation qualitative de l'alignement des plants",null,null,null,{"$f":"IF(G71=\"Oui\",1,IF(G71=\"Non\",0,\"\"))","v":""}]
["Vérification - Majoration hébergement et distance secteur intervention (H3, D200 et TRA) - Tous sauf TRA pour Ensemencement terrestre manuel"]
["Vérification - Majoration hébergement, distance secteur intervention et traçabilité des plants (H3, D200 et TRA)"]
["Hébergement (H3)",null,null,null,{"$f":"IF(F74=Menus!$A$288,Menus!$B$288,IF(F74=Menus!$A$289,Menus!$B$289,\"\"))","v":""}]
["Distance du secteur d'intervention (D200)",null,null,null,{"$f":"IF(F75=Menus!$A$38,Menus!$B$38,IF(F75=Menus!$A$39,Menus!$B$39,\"\"))","v":""}]
["Traçabilité (TRA) taux par milliers de plants",null,null,null,{"$f":"IF(F76=Menus!$A$308,Menus!$B$308,IF(F76=Menus!$A$309,Menus!$B$309,\"\"))","v":""}]
["Total"]
["Calculs -  Plantation uniforme et regarni en plein manuel sauf PEH"]
["Taux d'exécution de base",null,null,null,null,null,{"$f":"IF(ISERR(F24),0,F24)","v":0}]
["Taux H2",null,null,null,null,null,{"$f":"IF(ISERR(G79*E62),0,G79*E62)","v":0}]
["Taux D200",null,null,null,null,null,{"$f":"IF(ISERR(G79*E63),0,G79*E63)","v":0}]
["Taux exécution total et majoration(s) admissible(s)",null,null,null,null,null,{"$f":"IF(ISERR(ROUND(SUM(G79:G81),2)),0,ROUND(SUM(G79:G81),2))","v":0}]
["Taux vérification",null,null,null,null,null,{"$f":"IF(ISERR((($G$66*$G$67)+(($G$68+(SUM($F$70:$F$71)*'Calculs grille'!$I$92))*$G$69))/G87),0,(($G$66*$G$67)+(($G$68+(SUM($F$70:$F$71)*'Calculs grille'!$I$92))*$G$69))/G87)","v":0}]
["Taux H3 et/ou D200",null,null,null,null,null,{"$f":"IF(ISERR(G83*SUM(E74:E75)),0,G83*SUM(E74:E75))","v":0}]
["Taux traçabilité des plant",null,null,null,null,null,{"$f":"IF(ISERR(IF($E$76<>\"\",$E$76,0)),0,IF($E$76<>\"\",$E$76,0))","v":0}]
["Taux exécution et vérification total",null,null,null,null,null,{"$f":"IF(ISERR(ROUND(SUM(G82:G85),2)),0,ROUND(SUM(G82:G85),2))","v":0}]
["Nombre de millers de plants",null,null,null,null,null,{"$f":"IF(ISERR(F23),0,F23)","v":0}]
["Total exécution",null,null,null,null,null,{"$f":"IF(ISERR(G82*G87),0,G82*G87)","v":0}]
["Total vérification",null,null,null,null,null,{"$f":"IF(ISERR(ROUND(SUM(G83:G85),2)*G87),0,ROUND(SUM(G83:G85),2)*G87)","v":0}]
["Grand total admissible",null,null,null,null,null,{"$f":"IF(ISERR(SUM(G88:G89)),0,SUM(G88:G89))","v":0}]
["Calculs -  Regarni de sentier et enrichissement manuel sauf PEH"]
["Taux d'exécution de base",null,null,null,null,null,{"$f":"IF(ISERR(F34),0,F34)","v":0}]
["Taux H2",null,null,null,null,null,{"$f":"IF(ISERR(G92*E62),0,G92*E62)","v":0}]
["Taux D200",null,null,null,null,null,{"$f":"IF(ISERR(G92*E63),0,G92*E63)","v":0}]
["Taux exécution total et majoration(s) admissible(s)",null,null,null,null,null,{"$f":"IF(ISERR(ROUND(SUM(G92:G94),2)),0,ROUND(SUM(G92:G94),2))","v":0}]
["Taux vérification",null,null,null,null,null,{"$f":"IF(ISERR((($G$66*$G$67)+(($G$68+(SUM($F$70:$F$71)*'Calculs grille'!$I$92))*$G$69))/G100),0,(($G$66*$G$67)+(($G$68+(SUM($F$70:$F$71)*'Calculs grille'!$I$92))*$G$69))/G100)","v":0}]
["Taux H3 et/ou D200",null,null,null,null,null,{"$f":"IF(ISERR(G96*SUM(E74:E75)),0,G96*SUM(E74:E75))","v":0}]
["Taux traçabilité des plant",null,null,null,null,null,{"$f":"IF($E$76<>\"\",$E$76,0)","v":0}]
["Taux exécution et vérification total",null,null,null,null,null,{"$f":"IF(ISERR(ROUND(SUM(G95:G98),2)),0,ROUND(SUM(G95:G98),2))","v":0}]
["Nombre de millers de plants",null,null,null,null,null,{"$f":"IF(ISERR(F33),0,F33)","v":0}]
["Total exécution",null,null,null,null,null,{"$f":"IF(ISERR(G95*G100),0,G95*G100)","v":0}]
["Total vérification",null,null,null,null,null,{"$f":"IF(ISERR(ROUND(SUM(G96:G98),2)*G100),0,ROUND(SUM(G96:G98),2)*G100)","v":0}]
["Grand total admissible",null,null,null,null,null,{"$f":"IF(ISERR(SUM(G101:G102)),0,SUM(G101:G102))","v":0}]
["Calculs -  Plantation uniforme et regarni en plein manuel sentier préparé sauf PEH"]
["Taux d'exécution de base",null,null,null,null,null,{"$f":"IF(ISERR(SUMPRODUCT($F$40:$G$41,$F$42:$G$43)/SUM($F$40:$G$41)),0,SUMPRODUCT($F$40:$G$41,$F$42:$G$43)/SUM($F$40:$G$41))","v":0}]
["Taux H2",null,null,null,null,null,{"$f":"IF(ISERR(G105*E62),0,G105*E62)","v":0}]
["Taux D200",null,null,null,null,null,{"$f":"IF(ISERR(G105*E63),0,G105*E63)","v":0}]
["Taux exécution total et majoration(s) admissible(s)",null,null,null,null,null,{"$f":"IF(ISERR(ROUND(SUM(G105:G107),2)),0,ROUND(SUM(G105:G107),2))","v":0}]
["Taux vérification",null,null,null,null,null,{"$f":"IF(ISERR((($G$66*$G$67)+(($G$68+(SUM($F$70:$F$71)*'Calculs grille'!$I$92))*$G$69))/SUM(G113:G114)),0,(($G$66*$G$67)+(($G$68+(SUM($F$70:$F$71)*'Calculs grille'!$I$92))*$G$69))/SUM(G113:G114))","v":0}]
["Taux H3 et/ou D200",null,null,null,null,null,{"$f":"IF(ISERR(G109*SUM(E74:E75)),0,G109*SUM(E74:E75))","v":0}]
["Taux traçabilité des plant",null,null,null,null,null,{"$f":"IF(ISERR(IF($E$76<>\"\",$E$76,0)),0,IF($E$76<>\"\",$E$76,0))","v":0}]
["Taux exécution et vérification total",null,null,null,null,null,{"$f":"IF(ISERR(ROUND(SUM(G108:G111),2)),0,ROUND(SUM(G108:G111),2))","v":0}]
["Nombre de millers de plants dans les SENTIERS",null,null,null,null,null,{"$f":"IF(ISERR(F40),0,F40)","v":0}]
["Nombre de millers de plants dans les BANDES",null,null,null,null,null,{"$f":"IF(ISERR(F41),0,F41)","v":0}]
["Total exécution",null,null,null,null,null,{"$f":"IF(ISERR(G108*SUM(G113:G114)),0,G108*SUM(G113:G114))","v":0}]
["Total vérification",null,null,null,null,null,{"$f":"IF(ISERR(ROUND(SUM(G109:G111),2)*SUM(G113:G114)),0,ROUND(SUM(G109:G111),2)*SUM(G113:G114))","v":0}]
["Grand total admissible",null,null,null,null,null,{"$f":"IF(ISERR(SUM(G115:G116)),0,SUM(G115:G116))","v":0}]
["Calculs - Plantation uniforme PEH"]
["Taux d'exécution de base",null,null,null,null,null,{"$f":"IF(ISERR(E13),0,E13)","v":0}]
["Taux H2",null,null,null,null,null,{"$f":"IF(ISERR(G119*E62),0,G119*E62)","v":0}]
["Taux D200",null,null,null,null,null,{"$f":"IF(ISERR(G119*E63),0,G119*E63)","v":0}]
["Taux exécution total et majoration(s) admissible(s)",null,null,null,null,null,{"$f":"IF(ISERR(ROUND(SUM(G119:G121),2)),0,ROUND(SUM(G119:G121),2))","v":0}]
["Taux vérification",null,null,null,null,null,{"$f":"IF(ISERR((($G$66*$G$67)+(($G$68+(SUM($F$70:$F$71)*'Calculs grille'!$I$92))*$G$69))/G127),0,(($G$66*$G$67)+(($G$68+(SUM($F$70:$F$71)*'Calculs grille'!$I$92))*$G$69))/G127)","v":0}]
["Taux H3 et/ou D200",null,null,null,null,null,{"$f":"IF(ISERR(G123*SUM(E74:E75)),0,G123*SUM(E74:E75))","v":0}]
["Taux traçabilité des plant",null,null,null,null,null,{"$f":"IF(ISERR(IF($E$76<>\"\",$E$76,0)),0,IF($E$76<>\"\",$E$76,0))","v":0}]
["Taux exécution et vérification total",null,null,null,null,null,{"$f":"IF(ISERR(ROUND(SUM(G122:G125),2)),0,ROUND(SUM(G122:G125),2))","v":0}]
["Nombre de millers de plants",null,null,null,null,null,{"$f":"IF(ISERR($F$45),0,$F$45)","v":0}]
["Total exécution",null,null,null,null,null,{"$f":"IF(ISERR(G122*G127),0,G122*G127)","v":0}]
["Total vérification",null,null,null,null,null,{"$f":"IF(ISERR(ROUND(SUM(G123:G125),2)*G127),0,ROUND(SUM(G123:G125),2)*G127)","v":0}]
["Grand total admissible",null,null,null,null,null,{"$f":"IF(ISERR(SUM(G128:G129)),0,SUM(G128:G129))","v":0}]
["Calculs - Plantation uniforme et regarni mécanique (Scarificateur-planteur Bracke P-11a)"]
["Taux d'exécution de base",null,null,null,null,null,{"$f":"IF(ISERR(IF(F49=\"\",0,F49)),0,IF(F49=\"\",0,F49))","v":0}]
["Taux H2",null,null,null,null,null,{"$f":"IF(ISERR(G132*E62),0,G132*E62)","v":0}]
["Taux exécution total et majoration(s) admissible(s)",null,null,null,null,null,{"$f":"IF(ISERR(ROUND(SUM(G132:G133),2)),0,ROUND(SUM(G132:G133),2))","v":0}]
["Taux vérification",null,null,null,null,null,{"$f":"IF(ISERR(((G66*G67)+(($G$68+((SUM($F$70:$F$71)))*'Calculs grille'!$I$92)*$G$69))/$G$139),0,((G66*G67)+(($G$68+((SUM($F$70:$F$71)))*'Calculs grille'!$I$92)*$G$69))/$G$139)","v":0}]
["Taux H3 et/ou D200",null,null,null,null,null,{"$f":"IF(ISERR(G135*SUM(E74:E75)),0,G135*SUM(E74:E75))","v":0}]
["Taux traçabilité des plant",null,null,null,null,null,{"$f":"IF(ISERR(IF($E$76<>\"\",$E$76,0)),0,IF($E$76<>\"\",$E$76,0))","v":0}]
["Taux exécution et vérification total",null,null,null,null,null,{"$f":"IF(ISERR(ROUND(SUM(G134:G137),2)),0,ROUND(SUM(G134:G137),2))","v":0}]
["Nombre de millers de plants",null,null,null,null,null,{"$f":"IF(ISERR(F48),0,F48)","v":0}]
["Total exécution",null,null,null,null,null,{"$f":"IF(ISERR(G134*G139),0,G134*G139)","v":0}]
["Total vérification",null,null,null,null,null,{"$f":"IF(ISERR(ROUND(SUM(G135:G137),2)*G139),0,ROUND(SUM(G135:G137),2)*G139)","v":0}]
["Grand total admissible",null,null,null,null,null,{"$f":"IF(ISERR(SUM(G140:G141)),0,SUM(G140:G141))","v":0}]
["Calculs -  Ensemencement terrestre manuel"]
["Taux d'exécution de base",null,null,null,null,null,{"$f":"IF(ISERR(E13),0,E13)","v":0}]
["Taux PE2",null,null,null,null,null,{"$f":"IF(ISERR(SUMPRODUCT(D55:D59,F55:F59)/F60),0,SUMPRODUCT(D55:D59,F55:F59)/F60)","v":0}]
["Taux sous-total exécution",null,null,null,null,null,{"$f":"IF(ISERR(SUM(G144:G145)),0,SUM(G144:G145))","v":0}]
["Taux H2",null,null,null,null,null,{"$f":"IF(ISERR(G146*E62),0,G146*E62)","v":0}]
["Taux D200",null,null,null,null,null,{"$f":"IF(ISERR(G146*E63),0,G146*E63)","v":0}]
["Taux exécution total et majoration(s) admissible(s)",null,null,null,null,null,{"$f":"IF(ISERR(ROUND(SUM(G146:G148),2)),0,ROUND(SUM(G146:G148),2))","v":0}]
["Taux vérification",null,null,null,null,null,{"$f":"IF(ISERR(((G66*G67)+(($G$68+((SUM($F$70:$F$71)))*'Calculs grille'!$I$92)*$G$69))/$G$153),0,((G66*G67)+(($G$68+((SUM($F$70:$F$71)))*'Calculs grille'!$I$92)*$G$69))/$G$153)","v":0}]
["Taux H3 et/ou D200",null,null,null,null,null,{"$f":"IF(ISERR(G150*(SUM(E74:E75))),0,G150*SUM((E74:E75)))","v":0}]
["Taux exécution et vérification total",null,null,null,null,null,{"$f":"IF(ISERR(ROUND(SUM(G149:G151),2)),0,ROUND(SUM(G149:G151),2))","v":0}]
["Nombre dhectare",null,null,null,null,null,{"$f":"IF(ISERR(ROUND(F60,2)),0,ROUND(F60,2))","v":0}]
["Total exécution",null,null,null,null,null,{"$f":"IF(ISERR(G149*G153),0,G149*G153)","v":0}]
["Total vérification",null,null,null,null,null,{"$f":"IF(ISERR(ROUND(SUM(G150:G151),2)*G153),0,ROUND(SUM(G150:G151),2)*G153)","v":0}]
["Grand total admissible",null,null,null,null,null,{"$f":"IF(ISERR(SUM(G154:G155)),0,SUM(G154:G155))","v":0}]
[]
["J'atteste que les renseignements fournis dans ce document afin de calculer l'aide financière sont complets et conformes à la vérité, au meilleur de mes connaissances."]
[]
[]
[]
["Nom et prénom de l'ingénieur forestier",null,null,null,null,null,"No de permis"]
[null,null,null,null,null,null,{"$f":"TODAY()","v":"2017-02-13"}]
[]
["Signature de l'ingénieur forestier",null,null,null,null,null,"Date (AAAA-MM-JJ)"]
[]
[]
["Section réservée au suivi du contrat"]
[]
[null,"Numéro de la prescription :",{"$f":"IF(E8<>\"\",E8,\"\")","v":""}]
[]
[null,"Numéro du contrat :"]
[null,"Numéro du projet :"]
[null,"U.G. :"]
[null,"MRC :"]
[null,"Code de traitement DICA :",{"$f":"IF(E9<>\"\",E9,\"\")","v":""}]
[null,"Code de traitement RATF :",{"$f":"IF(E10<>\"\",E10,\"\")","v":""}]
[null,"Type d'attribution : "]
[null,"Taux AOP : "]
[null,"Nom de l'entrepreneur : "]
[null,"Numéro de fournisseur : "]
[null,"Date de début :"]
[null,"Date de fin :"]
[null,"Commentaires :"]

{"sheet":"Éducation de peuplement","index":2,"n_rows":241,"n_cols":7,"rows_kept":241,"cut":false,"hidden":false,"merged":[[110,4,111,4],[112,4,115,4],[116,4,118,4],[110,1,110,3],[111,1,111,3],[112,1,112,3],[113,1,113,3],[114,1,114,3],[115,1,115,3],[116,1,116,3],[117,1,117,3],[118,1,118,3],[11,4,11,6],[11,0,11,3],[8,0,8,3],[8,4,8,6],[9,0,9,3],[9,4,9,6],[26,5,26,6],[16,1,16,4],[17,1,17,4],[16,5,16,6],[17,5,17,6],[18,1,18,3],[26,2,26,4],[25,0,25,6],[24,0,24,4],[21,5,21,6],[22,5,22,6],[23,5,23,6],[106,0,106,5],[122,5,122,6],[123,5,123,6],[204,0,204,5],[205,0,205,5],[209,0,209,5],[184,0,184,5],[186,0,186,5],[187,0,187,5],[185,0,185,6],[188,0,188,5],[162,0,162,5],[179,0,179,5],[168,0,168,5],[156,0,156,5],[182,0,182,5],[125,0,125,6],[183,0,183,5],[144,0,144,5],[145,0,145,5],[146,0,146,5],[171,0,171,5],[177,0,177,5],[207,0,207,5],[208,0,208,5],[178,0,178,5],[210,0,210,5],[211,0,211,5],[215,0,217,5],[215,6,217,6],[218,0,218,5],[219,0,220,5],[203,0,203,5],[199,0,199,6],[189,0,189,5],[190,0,190,5],[191,0,191,5],[195,0,195,5],[192,0,192,5],[193,0,193,5],[194,0,194,5],[196,0,196,5],[224,0,224,4],[219,6,220,6],[221,0,221,5],[226,2,227,4],[167,0,167,5],[154,0,154,5],[140,0,140,6],[139,0,139,5],[136,0,136,5],[137,0,137,5],[138,0,138,5],[151,0,151,5],[175,0,175,5],[148,0,148,5],[157,0,157,5],[159,0,159,5],[160,0,160,5],[166,0,166,5],[147,0,147,5],[180,0,180,5],[181,0,181,5],[174,0,174,5],[212,0,212,5],[198,0,198,5],[96,0,96,1],[97,0,97,1],[98,0,98,1],[99,0,99,1],[87,4,87,6],[89,0,89,1],[90,0,90,1],[107,0,107,5],[110,0,111,0],[95,4,95,6],[96,4,96,6],[99,4,99,6],[97,4,97,6],[98,4,98,6],[102,0,102,3],[103,0,103,3],[109,0,109,5],[100,0,100,2],[108,0,108,5],[102,5,102,6],[103,5,103,6],[104,0,104,6],[105,0,105,6],[95,0,95,1],[0,0,0,6],[2,0,2,6],[3,0,3,6],[4,0,4,3],[4,4,4,6],[5,4,5,6],[50,0,50,6],[6,0,6,3],[7,0,7,3],[10,0,10,6],[12,0,12,6],[13,0,13,6],[6,4,6,6],[7,4,7,6],[39,5,39,6],[43,0,43,4],[22,3,22,4],[19,5,19,6],[19,0,19,4],[21,2,21,4],[24,5,24,6],[18,5,18,6],[31,5,31,6],[32,5,32,6],[1,0,1,4],[5,0,5,3],[47,1,47,4],[48,1,48,4],[213,0,213,6],[40,1,40,3],[15,0,15,6],[14,0,14,6],[38,0,38,6],[101,0,101,6],[53,0,53,6],[51,0,51,6],[44,0,44,6],[30,0,30,6],[40,5,40,6],[41,5,41,6],[23,1,23,2],[134,0,134,5],[20,0,20,6],[22,1,22,2],[61,0,61,6],[69,0,69,6],[39,1,39,4],[41,1,41,4],[143,0,143,5],[142,0,142,5],[126,0,126,5],[127,0,127,5],[122,0,122,3],[123,0,123,3],[129,0,129,5],[130,0,130,5],[131,0,131,5],[135,0,135,5],[132,0,132,5],[133,0,133,5],[112,0,115,0],[116,0,118,0],[121,0,121,6],[124,0,124,6],[141,0,141,5],[119,0,119,5],[197,0,197,5],[206,0,206,5],[214,0,214,6],[165,0,165,5],[120,0,120,6],[128,0,128,5],[149,0,149,5],[152,0,152,5],[176,0,176,5],[172,0,172,5],[173,0,173,5],[150,0,150,5],[153,0,153,5],[158,0,158,5],[155,0,155,6],[170,0,170,6],[169,0,169,5],[161,0,161,5],[163,0,163,5],[164,0,164,5],[200,0,200,5],[201,0,201,5],[202,0,202,5],[49,0,49,4],[49,5,49,6],[45,5,45,6],[46,5,46,6],[47,5,47,6],[48,5,48,6],[45,1,45,4],[46,1,46,4],[63,0,63,1],[54,0,54,1],[55,0,55,1],[56,0,56,1],[57,0,57,1],[58,0,58,1],[59,0,59,1],[62,0,62,1],[52,0,52,6],[60,0,60,2],[100,4,100,6],[84,0,84,2],[70,0,70,1],[74,0,74,1],[75,0,75,1],[76,0,76,2],[78,0,78,1],[80,0,80,1],[81,0,81,1],[83,0,83,1],[77,0,77,6],[82,0,82,1],[94,4,94,6],[64,0,64,1],[71,0,71,1],[88,4,88,6],[89,4,89,6],[91,0,91,1],[94,0,94,1],[86,4,86,6],[72,0,72,1],[73,0,73,1],[85,0,85,6],[92,4,92,6],[91,4,91,6],[93,0,93,6],[90,4,90,6],[86,0,86,1],[87,0,87,1],[88,0,88,1],[79,0,79,1],[92,0,92,2],[65,0,65,1],[66,0,66,1],[67,0,67,1],[68,0,68,2],[27,5,27,6],[27,2,27,3],[28,5,28,6],[28,2,28,3],[33,1,33,4],[34,1,34,4],[42,5,42,6],[43,5,43,6],[32,0,32,3],[31,0,31,3],[42,1,42,3],[35,1,35,3],[33,5,33,6],[34,5,34,6],[36,5,36,6],[37,5,37,6],[37,0,37,3],[36,0,36,4],[35,5,35,6],[29,5,29,6],[29,0,29,4]]}
[]
["Annexe au calcul des taux des traitements non commerciaux                                                                                                                                                                                                                                           2017-2018                                                                                                                                                                                                                                                                              Éducation de peuplement"]
[" *** Veuillez saisir les informations dans les cellules blanches seulement ***"]
["Identification"]
["UAF"]
["Secteur d'intervention"]
["Unité de compilation"]
["Numéro de la prescription"]
["Traitement (code DICA)"]
["Traitement (code RATF)"]
["Traitement d'éducation de peuplement à taux variable"]
["Traitement",null,null,null,"Inscrire une valeur"]
["Taux d'exécution à déterminer selon la formule suivante"]
[{"$f":"IF(E12=Formules!B2,Formules!D2,IF(E12=Formules!B3,Formules!D3,IF(E12=Formules!B4,Formules!D4,IF(E12=Formules!B5,Formules!D5,IF(E12=Formules!B6,Formules!D6,IF(E12=Formules!B7,Formules!D7,\"\"))))))","v":""}]
[{"$f":"\"Valeurs spécifiques à remplir selon le traitement\"&\" - \"&E12","v":"Valeurs spécifiques à remplir selon le traitement - Inscrire une valeur"}]
["Valeurs spécifiques à remplir selon le traitement - Dégagement mécanique"]
["RECFE"," Pourcentage de superficie couverte par le framboisier, fougère et épilobe"]
["DI","Densité initiale à l'hectare soit le dénombrement de toutes les tiges de 1 m et plus de hauteur  "]
["MODE","Mode d'établissement de la régénération",null,null,{"$f":"IF(F19=Menus!B159,Menus!C159,IF(F19=Menus!B160,Menus!C160,\"\"))","v":""}]
["Taux calculé à partir de l'équation et des variables reliées au traitement",null,null,null,null,{"$f":"IF(ISERR((('Calculs grille'!I39+('Calculs grille'!I40*'Éducation de peuplement'!F17*100)+('Calculs grille'!I41*'Éducation de peuplement'!F18)+('Calculs grille'!I42*'Éducation de peuplement'!E19)))),0,(('Calculs grille'!I39+('Calculs grille'!I40*'Éducation de peuplement'!F17*100)+('Calculs grille'!I41*'Éducation de peuplement'!F18)+('Calculs grille'!I42*'Éducation de peuplement'!E19))))","v":0}]
["Valeurs spécifiques à remplir selon le traitement - Gaulis I"]
["DI","Densité totale (tiges/hectare)","Dénombrement de toutes les tiges dont le diamètre à hauteur de souche (15 cm) est supérieure à 1.5 cm. Inventaire un an avant exécution: Résineux + de 1,0 m et Feuillus + de 1,6 m de hauteur. Inventaire même année qu'exécution: Résineux + de 1,2 m et Feuillus + de 1,8 m de hauteur. NB: Le dénombrement des tiges peut être effectué à partir de la hauteur de la tige ou du diamètre à hauteur de souche après entente avec les autorités."]
["SRLC","Stocking résineux libre de croître (%)",null,"Nombre de placettes contenant un résineux libre de croître sur le nombre total de placettes"]
["CP","Composition de peuplement",null,"Facteur d'ajustement",{"$f":"IF(F24=Menus!B163,Menus!C163,IF(F24=Menus!B164,Menus!C164,IF(F24=Menus!B165,Menus!C165,IF(F24=Menus!B166,Menus!C166,\"\"))))","v":""}]
["Taux calculé à partir de l'équation et des variables reliées au traitement",null,null,null,null,{"$f":"IF(ISERR((('Calculs grille'!I45+('Calculs grille'!I46*'Éducation de peuplement'!F22)-('Calculs grille'!I47*'Éducation de peuplement'!F23))*'Éducation de peuplement'!E24)),0,(('Calculs grille'!I45+('Calculs grille'!I46*'Éducation de peuplement'!F22)-(ABS('Calculs grille'!I47)*'Éducation de peuplement'!F23))*'Éducation de peuplement'!E24))","v":0}]
["Valeurs spécifiques à remplir selon le traitement - Gaulis II"]
["DI","Densité totale (tiges/hectare)","Dénombrement de toutes les tiges dont le diamètre à hauteur de souche (15 cm) est supérieure à 1.5 cm. Inventaire un an avant exécution: Résineux + de 1,0 m et Feuillus + de 1,6 m de hauteur. Inventaire même année qu'exécution: Résineux + de 1,2 m et Feuillus + de 1,8 m de hauteur. NB: Le dénombrement des tiges peut être effectué à partir de la hauteur de la tige ou du diamètre à hauteur de souche après entente avec les autorités."]
["TP","Type de composition visée","Facteur d'ajustement",null,{"$f":"IF(F28=Menus!B169,Menus!C169,IF(F28=Menus!B170,Menus!C170,IF(F28=Menus!B171,Menus!C171,\"\")))","v":""}]
["CP","Composition de peuplement","Facteur d'ajustement",null,{"$f":"IF(F29=Menus!B172,Menus!C172,IF(F29=Menus!B173,Menus!C173,IF(F29=Menus!B174,Menus!C174,IF(F29=Menus!B175,Menus!C175,\"\"))))","v":""}]
["Taux calculé à partir de l'équation et des variables reliées au traitement",null,null,null,null,{"$f":"IF(ISERR(('Calculs grille'!I50*LN(F27)-'Calculs grille'!I51)*E28*E29)=TRUE,0,(('Calculs grille'!I50*LN(F27)-'Calculs grille'!I51)*E28*E29))","v":0}]
["Valeurs spécifiques à remplir selon le traitement - EPC Puit lumière"]
["Éclaircie précommerciale",null,null,null,{"$f":"IF(F32=Menus!B186,Menus!C186,IF(F32=Menus!B187,Menus!C187,\"\"))","v":""}]
["Martelage",null,null,null,{"$f":"IF(F33=Menus!B182,Menus!C182,IF(F33=Menus!B183,Menus!C183,\"\"))","v":""}]
["DENSTIGE","Densité d'arbres à éclaircir et/ou marteler et/ou tailler (tiges/ha)"]
["HTTIGE","Hauteur totale des arbres à éclaircir et/ou marteler et/ou tailler (m)"]
["TAIL","Taille de formation",null,null,{"$f":"IF(F36=Menus!B178,Menus!C178,IF(F36=Menus!B179,Menus!C179,\"\"))","v":""}]
[{"$f":"\"Taux calculé pour le traitement à partir de l'équation et des variables - \"&F32","v":"Taux calculé pour le traitement à partir de l'équation et des variables - "},null,null,null,null,{"$f":"IF(ISERR((('Calculs grille'!I54*F34*EXP('Calculs grille'!I55*F35)+'Calculs grille'!I65)*E32)),0,(('Calculs grille'!I54*F34*EXP('Calculs grille'!I55*F35)+'Calculs grille'!I65)*E32))","v":0}]
[{"$f":"\"Taux calculé pour \"&IF(AND(E36=0,E33=1)=TRUE,\"le martelage sans taille de formation\",IF(AND(E36=1,E33=0)=TRUE,\"la taille de formation sans martelage\",IF(AND(E36=1,E33=1)=TRUE,\"le martelage et la taille de formation\",\"la taille de formation et le martelage\")))","v":"Taux calculé pour la taille de formation et le martelage"},null,null,null,null,{"$f":"IF(ISERR(IF((AND(E33=1,E36=1))=TRUE,(('Calculs grille'!I56*F34/(('Calculs grille'!I57*F34)+'Calculs grille'!I58)+'Calculs grille'!I59*E36)+'Calculs grille'!I66+'Calculs grille'!I67),IF((AND(E33=1,E36=0))=TRUE,(('Calculs grille'!I56*F34/(('Calculs grille'!I57*F34)+'Calculs grille'!I58)+'Calculs grille'!I59*E36)+'Calculs grille'!I63),IF((AND(E32=0,E33=0,E36=1))=TRUE,\"Cette combinaison n'est pas possible\",IF((AND(E33=0,E36=1))=TRUE,(('Calculs grille'!I56*F34/(('Calculs grille'!I57*F34)+'Calculs grille'!I58)+'Calculs grille'!I59*E36)+'Calculs grille'!I67),0))))),0,IF((AND(E33=1,E36=1))=TRUE,(('Calculs grille'!I56*F34/(('Calculs grille'!I57*F34)+'Calculs grille'!I58)+'Calculs grille'!I59*E36)+'Calculs grille'!I66+'Calculs grille'!I67),IF((AND(E33=1,E36=0))=TRUE,(('Calculs grille'!I56*F34/(('Calculs grille'!I57*F34)+'Calculs grille'!I58)+'Calculs grille'!I59*E36)+'Calculs grille'!I63),IF((AND(E32=0,E33=0,E36=1))=TRUE,\"Cette combinaison n'est pas possible\",IF((AND(E33=0,E36=1))=TRUE,(('Calculs grille'!I56*F34/(('Calculs grille'!I57*F34)+'Calculs grille'!I58)+'Calculs grille'!I59*E36)+'Calculs grille'!I67),0)))))","v":0}]
["Valeurs spécifiques à remplir selon le traitement - Élagage Qualité"]
["BRAN","Nombre de branches à couper par tige"]
["LONGELA","Longueur d'élagage ",null,null,{"$f":"IF(F41=Menus!B190,Menus!C190,IF(F41=Menus!B191,Menus!C191,\"\"))","v":""}]
["DENSELA","Densité d'arbres à élaguer par hectare"]
["MP","Martelage positif selon le nombre de tige/ha",null,null,{"$f":"IF(F43=Menus!A194,Menus!B194,IF(F43=Menus!A195,Menus!B195,IF(F43=Menus!A196,Menus!B196,\"\")))","v":""}]
["Taux calculé à partir de l'équation et des variables reliées au traitement",null,null,null,null,{"$f":"IF(ISERR((('Calculs grille'!I70*F40+'Calculs grille'!I71+'Calculs grille'!I72*E41)\n+(-'Calculs grille'!I73*LN(F42)+'Calculs grille'!I74))*F42+E43+'Calculs grille'!I77),0,(('Calculs grille'!I70*F40+'Calculs grille'!I71+'Calculs grille'!I72*E41)\n+(-'Calculs grille'!I73*LN(F42)+'Calculs grille'!I74))*F42+E43+'Calculs grille'!I77)","v":0}]
["Valeurs spécifiques à remplir selon le traitement - Taille Phytosanitaire"]
["BRAN","Nombre de branches à couper par tige"]
["DENSELA","Densité de tiges à élaguer par hectare"]
["DENSCO","Densité de tiges à couper à l'hectare"]
["DENSTF","Densité de tiges à tailler à l'hectare"]
["Taux calculé à partir de l'équation et des variables reliées au traitement",null,null,null,null,{"$f":"IF(ISERR(((('Calculs grille'!I80*'Éducation de peuplement'!F46+'Calculs grille'!I81+(-'Calculs grille'!I82*LN('Éducation de peuplement'!F47)+'Calculs grille'!I83))*'Éducation de peuplement'!F47)+'Calculs grille'!I84*'Éducation de peuplement'!F48+'Calculs grille'!I85*'Éducation de peuplement'!F49+'Calculs grille'!I86)),0,((('Calculs grille'!I80*'Éducation de peuplement'!F46+'Calculs grille'!I81+(-'Calculs grille'!I82*LN('Éducation de peuplement'!F47)+'Calculs grille'!I83))*'Éducation de peuplement'!F47)+'Calculs grille'!I84*'Éducation de peuplement'!F48+'Calculs grille'!I85*'Éducation de peuplement'!F49+'Calculs grille'!I86))","v":0}]
[{"$f":"\"Majoration(s) et réduction applicable(s) à l'exécution - \"&E12","v":"Majoration(s) et réduction applicable(s) à l'exécution - Inscrire une valeur"}]
[{"$f":"IF(E12='Majorations applicables'!C18,'Majorations applicables'!K18,IF(E12='Majorations applicables'!C19,'Majorations applicables'!K19,IF(E12='Majorations applicables'!C20,'Majorations applicables'!K20,IF(E12='Majorations applicables'!C21,'Majorations applicables'!K21,IF(E12='Majorations applicables'!C22,'Majorations applicables'!K22,IF(E12='Majorations applicables'!C23,'Majorations applicables'!K23,\"\"))))))","v":""}]
[{"$f":"\"Majoration pente (PE2)\"&\" - \"&E12","v":"Majoration pente (PE2) - Inscrire une valeur"}]
["Majoration pente (PE2) - Dégagement mécanique"]
["Classe de pente numérique",null,"Taux calculé","Écart","Superficie nette (ha) excluant les andains","Superficie brute (hectare)","% andains"]
["Pente A",null,{"$f":"$F$20*(1+0)","v":0},{"$f":"C56-$F$20","v":0},{"$f":"F56*(1-G56)","v":0}]
["Pente B",null,{"$f":"$F$20*(1+0)","v":0},{"$f":"C57-$F$20","v":0},{"$f":"F57*(1-G57)","v":0}]
["Pente C",null,{"$f":"$F$20*(1+0.007)","v":0},{"$f":"C58-$F$20","v":0},{"$f":"F58*(1-G58)","v":0}]
["Pente D",null,{"$f":"$F$20*(1+0.026)","v":0},{"$f":"C59-$F$20","v":0},{"$f":"F59*(1-G59)","v":0}]
["Pente E",null,{"$f":"$F$20*(1+0.061)","v":0},{"$f":"C60-$F$20","v":0},{"$f":"F60*(1-G60)","v":0}]
[null,null,null,"Total",{"$f":"SUM(E56:E60)","v":0},{"$f":"SUM(F56:F60)","v":0},{"$f":"IF(ISERR(SUMPRODUCT(G56:G60,F56:F60)/F61),0,(SUMPRODUCT(G56:G60,F56:F60)/F61))","v":0}]
["Majoration pente (PE2) - Gaulis I"]
["Classe de pente numérique",null,"Taux calculé","Écart","Superficie nette (ha) excluant les andains","Superficie brute (hectare)","% andains"]
["Pente A",null,{"$f":"$F$25*(1+0)","v":0},{"$f":"C64-$F$25","v":0},{"$f":"F64*(1-G64)","v":0}]
["Pente B",null,{"$f":"$F$25*(1+0)","v":0},{"$f":"C65-$F$25","v":0},{"$f":"F65*(1-G65)","v":0}]
["Pente C",null,{"$f":"$F$25*(1+0.007)","v":0},{"$f":"C66-$F$25","v":0},{"$f":"F66*(1-G66)","v":0}]
["Pente D",null,{"$f":"$F$25*(1+0.026)","v":0},{"$f":"C67-$F$25","v":0},{"$f":"F67*(1-G67)","v":0}]
["Pente E",null,{"$f":"$F$25*(1+0.061)","v":0},{"$f":"C68-$F$25","v":0},{"$f":"F68*(1-G68)","v":0}]
[null,null,null,"Total",{"$f":"SUM(E64:E68)","v":0},{"$f":"SUM(F64:F68)","v":0},{"$f":"IF(ISERR(SUMPRODUCT(G64:G68,F64:F68)/F69),0,(SUMPRODUCT(G64:G68,F64:F68)/F69))","v":0}]
["Majoration pente (PE2) - Gaulis II"]
["Classe de pente numérique",null,"Taux calculé","Écart","Superficie nette (ha) excluant les andains","Superficie brute (hectare)","% andains"]
["Pente A",null,{"$f":"$F$30*(1+0)","v":0},{"$f":"C72-$F$30","v":0},{"$f":"F72*(1-G72)","v":0}]
["Pente B",null,{"$f":"$F$30*(1+0)","v":0},{"$f":"C73-$F$30","v":0},{"$f":"F73*(1-G73)","v":0}]
["Pente C",null,{"$f":"$F$30*(1+0.007)","v":0},{"$f":"C74-$F$30","v":0},{"$f":"F74*(1-G74)","v":0}]
["Pente D",null,{"$f":"$F$30*(1+0.026)","v":0},{"$f":"C75-$F$30","v":0},{"$f":"F75*(1-G75)","v":0}]
["Pente E",null,{"$f":"$F$30*(1+0.061)","v":0},{"$f":"C76-$F$30","v":0},{"$f":"F76*(1-G76)","v":0}]
[null,null,null,"Total",{"$f":"SUM(E72:E76)","v":0},{"$f":"SUM(F72:F76)","v":0},{"$f":"IF(ISERR(SUMPRODUCT(G72:G76,F72:F76)/F77),0,(SUMPRODUCT(G72:G76,F72:F76)/F77))","v":0}]
["Majoration pente (PE2) - EPC Puit lumière"]
["Classe de pente numérique",null,"Taux calculé","Écart","Superficie nette (ha) excluant les andains","Superficie brute (hectare)","% andains"]
["Pente A",null,{"$f":"IF(ISERR((F37+F38)*(1+0)),0,(F37+F38)*(1+0))","v":0},{"$f":"IF(ISERR(C80-(F37+F38)),0,C80-(F37+F38))","v":0},{"$f":"F80*(1-G80)","v":0}]
["Pente B",null,{"$f":"IF(ISERR((F37+F38)*(1+0)),0,(F37+F38)*(1+0))","v":0},{"$f":"IF(ISERR(C81-(F37+F38)),0,C81-(F37+F38))","v":0},{"$f":"F81*(1-G81)","v":0}]
["Pente C",null,{"$f":"IF(ISERR((F37+F38)*(1+0.007)),0,(F37+F38)*(1+0.007))","v":0},{"$f":"IF(ISERR(C82-(F37+F38)),0,C82-(F37+F38))","v":0},{"$f":"F82*(1-G82)","v":0}]
["Pente D",null,{"$f":"IF(ISERR((F37+F38)*(1+0.026)),0,(F37+F38)*(1+0.026))","v":0},{"$f":"IF(ISERR(C83-(F37+F38)),0,C83-(F37+F38))","v":0},{"$f":"F83*(1-G83)","v":0}]
["Pente E",null,{"$f":"IF(ISERR((F37+F38)*(1+0.061)),0,(F37+F38)*(1+0.061))","v":0},{"$f":"IF(ISERR(C84-(F37+F38)),0,C84-(F37+F38))","v":0},{"$f":"F84*(1-G84)","v":0}]
[null,null,null,"Total",{"$f":"SUM(E80:E84)","v":0},{"$f":"SUM(F80:F84)","v":0},{"$f":"IF(ISERR(SUMPRODUCT(G80:G84,F80:F84)/F85),0,(SUMPRODUCT(G80:G84,F80:F84)/F85))","v":0}]
["Majoration pente (PE2) - Élagage Qualité"]
["Classe de pente numérique",null,"Taux calculé","Écart","Superficie (hectare)"]
["Pente A",null,{"$f":"F44*(1+0)","v":0},{"$f":"C88-F44","v":0}]
["Pente B",null,{"$f":"F44*(1+0)","v":0},{"$f":"C89-F44","v":0}]
["Pente C",null,{"$f":"F44*(1+0.007)","v":0},{"$f":"C90-F44","v":0}]
["Pente D",null,{"$f":"F44*(1+0.026)","v":0},{"$f":"C91-F44","v":0}]
["Pente E",null,{"$f":"F44*(1+0.061)","v":0},{"$f":"C92-F44","v":0}]
[null,null,null,"Total",{"$f":"SUM(E88:G92)","v":0}]
["Majoration pente (PE2) - Taille Phytosanitaire"]
["Classe de pente numérique",null,"Taux calculé","Écart","Superficie (hectare)"]
["Pente A",null,{"$f":"F50*(1+0)","v":0},{"$f":"C96-F50","v":0}]
["Pente B",null,{"$f":"F50*(1+0)","v":0},{"$f":"C97-F50","v":0}]
["Pente C",null,{"$f":"F50*(1+0.007)","v":0},{"$f":"C98-F50","v":0}]
["Pente D",null,{"$f":"F50*(1+0.026)","v":0},{"$f":"C99-F50","v":0}]
["Pente E",null,{"$f":"F50*(1+0.061)","v":0},{"$f":"C100-F50","v":0}]
[null,null,null,"Total",{"$f":"SUM(E96:G100)","v":0}]
["Majoration pour l'hébergement et la distance du secteur d'intervention (H4 et D200)"]
["Hébergement (H4)",null,null,null,{"$f":"IF(F103=Menus!A211,Menus!B211,IF(F103=Menus!A212,Menus!B212,\"\"))","v":""}]
["Distance du secteur d'intervention (D200)",null,null,null,{"$f":"IF(F104=Menus!A38,Menus!B38,IF(F104=Menus!A39,Menus!B39,\"\"))","v":""}]
["Vérification"]
["Vérification - Tous"]
["Délimitation des secteurs (taux par kilomètre délimité)"]
["Nombre de kilomètres"]
["Inventaire après traitement (taux par placette inventoriée)"]
["Nombre de placettes inventoriées"]
["Critère 3","Arbre étude",null,null,{"$f":"SUM(F111:F112)*'Calculs grille'!$I$95","v":0},{"$f":"IF(G111=\"Oui\",1,IF(G111=\"Non\",0,\"\"))","v":""}]
[null,"AAC 5 ans",null,null,null,{"$f":"IF(G112=\"Oui\",1,IF(G112=\"Non\",0,\"\"))","v":""}]
["Critère 4","Coefficient de distribution des tiges résineuses de 1 m et moins de hauteur",null,null,{"$f":"SUM(F113:F116)*'Calculs grille'!$I$96","v":0},{"$f":"IF(G113=\"Oui\",1,IF(G113=\"Non\",0,\"\"))","v":""}]
[null,"Coefficient de distribution des souches peu importe la hauteur, avec ou sans fautes",null,null,null,""]
[null,"Coefficient de distribution des feuillus commerciaux/non commerciaux résiduels",null,null,null,""]
[null,"Coefficient de distribution des essences en raréfaction (THO, PIB, PIR)",null,null,null,""]
["Critère 5","Hauteur de toutes les tiges",null,null,{"$f":"SUM(F117:F119)*'Calculs grille'!$I$94","v":0},""]
[null,"Dénombrement des résineux <  1m ou 1,2m ou 1,5m de hauteur selon le traitement",null,null,null,""]
[null,"Dénombrement des tiges d'avenir éclaircies (dégagées/nettoyées) par essence",null,null,null,""]
["Nombre total de critères",null,null,null,null,null,{"$f":"SUM(F111:F119)","v":0}]
["Vérification - Majoration hébergement et distance secteur intervention (H3 et D200) - Tous"]
["Vérification - Majoration hébergement et distance secteur intervention (H3 et D200)"]
["Hébergement (H3)",null,null,null,{"$f":"IF(F123=Menus!A215,Menus!B215,IF(F123=Menus!A216,Menus!B216,\"\"))","v":""}]
["Distance du secteur d'intervention (D200)",null,null,null,{"$f":"IF(F124=Menus!$A$219,Menus!$B$219,IF(F124=Menus!$A$220,Menus!$B$220,\"\"))","v":""}]
["Total"]
["Calculs - Dégagement mécanique"]
["Taux d'exécution de base",null,null,null,null,null,{"$f":"IF(ISERR(F20),0,F20)","v":0}]
["Taux PE2",null,null,null,null,null,{"$f":"IF(ISERR((SUMPRODUCT(D56:D60,E56:E60)/$E$61)),0,SUMPRODUCT(D56:D60,E56:E60)/$E$61)","v":0}]
["Taux sous-total exécution",null,null,null,null,null,{"$f":"IF(ISERR(G127+G128),0,G127+G128)","v":0}]
["Taux H4",null,null,null,null,null,{"$f":"IF(ISERR(G129*E103),0,G129*E103)","v":0}]
["Taux D200",null,null,null,null,null,{"$f":"IF(ISERR(G129*E104),0,G129*E104)","v":0}]
["Taux exécution total et majoration(s) admissible(s)",null,null,null,null,null,{"$f":"IF(ISERR(ROUND(SUM(G129:G131),2)),0,ROUND(SUM(G129:G131),2))","v":0}]
["Taux vérification",null,null,null,null,null,{"$f":"IF(ISERR((($G$107*$G$108)+((($G$109+((SUM($F$111:$F$112)*'Calculs grille'!$I$95))+(SUM($F$113:$F$116)*'Calculs grille'!$I$96)+((SUM($F$117:$F$119)*'Calculs grille'!$I$94))))*$G$110))/G136),0,(($G$107*$G$108)+((($G$109+((SUM($F$111:$F$112)*'Calculs grille'!$I$95))+(SUM($F$113:$F$116)*'Calculs grille'!$I$96)+((SUM($F$117:$F$119)*'Calculs grille'!$I$94))))*$G$110))/G136)","v":0}]
["Taux H3 et/ou D200",null,null,null,null,null,{"$f":"IF(ISERR(G133*SUM(E123:E124)),0,G133*SUM(E123:E124))","v":0}]
["Taux exécution et vérification total",null,null,null,null,null,{"$f":"IF(ISERR(SUM(G132:G134)),0,SUM(G132:G134))","v":0}]
["Nombre d'hectare brut",null,null,null,null,null,{"$f":"IF(ISERR(ROUND(F61,2)),0,ROUND(F61,2))","v":0}]
["Nombre d'hectare net (excluant les andains)",null,null,null,null,null,{"$f":"IF(ISERR(ROUND(E61,2)),0,ROUND(E61,2))","v":0}]
["Total exécution",null,null,null,null,null,{"$f":"IF(ISERR(G132*G137),0,G132*G137)","v":0}]
["Total vérification",null,null,null,null,null,{"$f":"IF(ISERR(ROUND(SUM(G133:G134),2)*G136),0,ROUND(SUM(G133:G134),2)*G136)","v":0}]
["Grand total admissible",null,null,null,null,null,{"$f":"IF(ISERR(SUM(G138:G139)),0,SUM(G138:G139))","v":0}]
["Calculs - Gaulis I"]
["Taux d'exécution de base",null,null,null,null,null,{"$f":"IF(ISERR(F25),0,F25)","v":0}]
["Taux PE2",null,null,null,null,null,{"$f":"IF(ISERR((SUMPRODUCT(D64:D68,E64:E68)/$E$69)),0,SUMPRODUCT(D64:D68,E64:E68)/$E$69)","v":0}]
["Taux sous-total exécution",null,null,null,null,null,{"$f":"IF(ISERR(G142+G143),0,G142+G143)","v":0}]
["Taux H4",null,null,null,null,null,{"$f":"IF(ISERR(G144*E103),0,G144*E103)","v":0}]
["Taux D200",null,null,null,null,null,{"$f":"IF(ISERR(G144*E104),0,G144*E104)","v":0}]
["Taux exécution total et majoration(s) admissible(s)",null,null,null,null,null,{"$f":"IF(ISERR(ROUND(SUM(G144:G146),2)),0,ROUND(SUM(G144:G146),2))","v":0}]
["Taux vérification",null,null,null,null,null,{"$f":"IF(ISERR((($G$107*$G$108)+((($G$109+((SUM($F$111:$F$112)*'Calculs grille'!$I$95))+(SUM($F$113:$F$116)*'Calculs grille'!$I$96)+((SUM($F$117:$F$119)*'Calculs grille'!$I$94))))*$G$110))/G151),0,(($G$107*$G$108)+((($G$109+((SUM($F$111:$F$112)*'Calculs grille'!$I$95))+(SUM($F$113:$F$116)*'Calculs grille'!$I$96)+((SUM($F$117:$F$119)*'Calculs grille'!$I$94))))*$G$110))/G151)","v":0}]
["Taux H3 et/ou D200",null,null,null,null,null,{"$f":"IF(ISERR(G148*SUM(E123:E124)),0,G148*SUM(E123:E124))","v":0}]
["Taux exécution et vérification total",null,null,null,null,null,{"$f":"IF(ISERR(ROUND(SUM(G147:G149),2)),0,ROUND(SUM(G147:G149),2))","v":0}]
["Nombre d'hectare brut",null,null,null,null,null,{"$f":"IF(ISERR(ROUND(F69,2)),0,ROUND(F69,2))","v":0}]
["Nombre d'hectare net (excluant les andains)",null,null,null,null,null,{"$f":"IF(ISERR(ROUND(E69,2)),0,ROUND(E69,2))","v":0}]
["Total exécution",null,null,null,null,null,{"$f":"IF(ISERR(G147*G152),0,G147*G152)","v":0}]
["Total vérification",null,null,null,null,null,{"$f":"IF(ISERR(ROUND(SUM(G148:G149),2)*G151),0,ROUND(SUM(G148:G149),2)*G151)","v":0}]
["Grand total admissible",null,null,null,null,null,{"$f":"IF(ISERR(SUM(G153:G154)),0,SUM(G153:G154))","v":0}]
["Calculs - Gaulis II"]
["Taux d'exécution de base",null,null,null,null,null,{"$f":"IF(ISERR(F30),0,F30)","v":0}]
["Taux PE2",null,null,null,null,null,{"$f":"IF(ISERR((SUMPRODUCT(D72:D76,E72:E76)/$E$77)),0,SUMPRODUCT(D72:D76,E72:E76)/$E$77)","v":0}]
["Taux sous-total exécution",null,null,null,null,null,{"$f":"IF(ISERR(G157+G158),0,G157+G158)","v":0}]
["Taux H4",null,null,null,null,null,{"$f":"IF(ISERR(G159*E103),0,G159*E103)","v":0}]
["Taux D200",null,null,null,null,null,{"$f":"IF(ISERR(G159*E104),0,G159*E104)","v":0}]
["Taux exécution total et majoration(s) admissible(s)",null,null,null,null,null,{"$f":"IF(ISERR(ROUND(SUM(G159:G161),2)),0,ROUND(SUM(G159:G161),2))","v":0}]
["Taux vérification",null,null,null,null,null,{"$f":"IF(ISERR((($G$107*$G$108)+((($G$109+((SUM($F$111:$F$112)*'Calculs grille'!$I$95))+(SUM($F$113:$F$116)*'Calculs grille'!$I$96)+((SUM($F$117:$F$119)*'Calculs grille'!$I$94))))*$G$110))/G166),0,(($G$107*$G$108)+((($G$109+((SUM($F$111:$F$112)*'Calculs grille'!$I$95))+(SUM($F$113:$F$116)*'Calculs grille'!$I$96)+((SUM($F$117:$F$119)*'Calculs grille'!$I$94))))*$G$110))/G166)","v":0}]
["Taux H3 et/ou D200",null,null,null,null,null,{"$f":"IF(ISERR(G163*SUM(E123:E124)),0,G163*SUM(E123:E124))","v":0}]
["Taux exécution et vérification total",null,null,null,null,null,{"$f":"IF(ISERR(ROUND(SUM(G162:G164),2)),0,ROUND(SUM(G162:G164),2))","v":0}]
["Nombre d'hectare brut",null,null,null,null,null,{"$f":"IF(ISERR(ROUND(F77,2)),0,ROUND(F77,2))","v":0}]
["Nombre d'hectare net (excluant les andains)",null,null,null,null,null,{"$f":"IF(ISERR(ROUND(E77,2)),0,ROUND(E77,2))","v":0}]
["Total exécution",null,null,null,null,null,{"$f":"IF(ISERR(G162*G167),0,G162*G167)","v":0}]
["Total vérification",null,null,null,null,null,{"$f":"IF(ISERR(ROUND(SUM(G163:G164),2)*G166),0,ROUND(SUM(G163:G164),2)*G166)","v":0}]
["Grand total admissible",null,null,null,null,null,{"$f":"IF(ISERR(SUM(G168:G169)),0,SUM(G168:G169))","v":0}]
["Calculs - EPC Puit lumière"]
["Taux d'exécution de base",null,null,null,null,null,{"$f":"IF(ISERR(SUM(F37:F38)),0,SUM(F37:F38))","v":0}]
["Taux PE2",null,null,null,null,null,{"$f":"IF(ISERR((SUMPRODUCT(D80:D84,E80:E84)/$E$85)),0,SUMPRODUCT(D80:D84,E80:E84)/$E$85)","v":0}]
["Taux sous-total exécution",null,null,null,null,null,{"$f":"IF(ISERR(SUM(G172:G173)),0,SUM(G172:G173))","v":0}]
["Taux H4",null,null,null,null,null,{"$f":"IF(ISERR(G174*E103),0,G174*E103)","v":0}]
["Taux D200",null,null,null,null,null,{"$f":"IF(ISERR(G174*E104),0,G174*E104)","v":0}]
["Taux exécution total et majoration(s) admissible(s)",null,null,null,null,null,{"$f":"IF(ISERR(ROUND(SUM(G174:G176),2)),0,ROUND(SUM(G174:G176),2))","v":0}]
["Taux vérification",null,null,null,null,null,{"$f":"IF(ISERR((($G$107*$G$108)+((($G$109+((SUM($F$111:$F$112)*'Calculs grille'!$I$95))+(SUM($F$113:$F$116)*'Calculs grille'!$I$96)+((SUM($F$117:$F$119)*'Calculs grille'!$I$94))))*$G$110))/G181),0,(($G$107*$G$108)+((($G$109+((SUM($F$111:$F$112)*'Calculs grille'!$I$95))+(SUM($F$113:$F$116)*'Calculs grille'!$I$96)+((SUM($F$117:$F$119)*'Calculs grille'!$I$94))))*$G$110))/G181)","v":0}]
["Taux H3 et/ou D200",null,null,null,null,null,{"$f":"IF(ISERR(G178*SUM(E123:E124)),0,G178*SUM(E123:E124))","v":0}]
["Taux exécution et vérification total",null,null,null,null,null,{"$f":"IF(ISERR(SUM(G177:G179)),0,SUM(G177:G179))","v":0}]
["Nombre d'hectare brut",null,null,null,null,null,{"$f":"IF(ISERR(ROUND(F85,2)),0,ROUND(F85,2))","v":0}]
["Nombre d'hectare net (excluant les andains)",null,null,null,null,null,{"$f":"IF(ISERR(ROUND(E85,2)),0,ROUND(E85,2))","v":0}]
["Total exécution",null,null,null,null,null,{"$f":"IF(ISERR(G177*G182),0,G177*G182)","v":0}]
["Total vérification",null,null,null,null,null,{"$f":"IF(ISERR(ROUND(SUM(G178:G179),2)*G181),0,ROUND(SUM(G178:G179),2)*G181)","v":0}]
["Grand total admissible",null,null,null,null,null,{"$f":"IF(ISERR(SUM(G183:G184)),0,SUM(G183:G184))","v":0}]
["Calculs - Élagage qualité"]
["Taux d'exécution de base",null,null,null,null,null,{"$f":"IF(ISERR(F44),0,F44)","v":0}]
["Taux PE2",null,null,null,null,null,{"$f":"IF(ISERR((SUMPRODUCT(D88:D92,E88:E92)/$E$93)),0,SUMPRODUCT(D88:D92,E88:E92)/$E$93)","v":0}]
["Taux sous-total exécution",null,null,null,null,null,{"$f":"IF(ISERR(G187+G188),0,G187+G188)","v":0}]
["Taux H4",null,null,null,null,null,{"$f":"IF(ISERR(G189*E103),0,G189*E103)","v":0}]
["Taux D200",null,null,null,null,null,{"$f":"IF(ISERR(G189*E104),0,G189*E104)","v":0}]
["Taux exécution total et majoration(s) admissible(s)",null,null,null,null,null,{"$f":"IF(ISERR(ROUND(SUM(G189:G191),2)),0,ROUND(SUM(G189:G191),2))","v":0}]
["Taux vérification",null,null,null,null,null,{"$f":"IF(ISERR((($G$107*$G$108)+((($G$109+((SUM($F$111:$F$112)*'Calculs grille'!$I$95))+(SUM($F$113:$F$116)*'Calculs grille'!$I$96)+((SUM($F$117:$F$119)*'Calculs grille'!$I$94))))*$G$110))/G196),0,(($G$107*$G$108)+((($G$109+((SUM($F$111:$F$112)*'Calculs grille'!$I$95))+(SUM($F$113:$F$116)*'Calculs grille'!$I$96)+((SUM($F$117:$F$119)*'Calculs grille'!$I$94))))*$G$110))/G196)","v":0}]
["Taux H3 et/ou D200",null,null,null,null,null,{"$f":"IF(ISERR(G193*SUM(E123:E124)),0,G193*SUM(E123:E124))","v":0}]
["Taux exécution et vérification total",null,null,null,null,null,{"$f":"IF(ISERR(SUM(G192:G194)),0,SUM(G192:G194))","v":0}]
["Nombre d'hectares",null,null,null,null,null,{"$f":"IF(ISERR(ROUND(E93,2)),0,ROUND(E93,2))","v":0}]
["Total exécution",null,null,null,null,null,{"$f":"IF(ISERR(G192*G196),0,G192*G196)","v":0}]
["Total vérification",null,null,null,null,null,{"$f":"IF(ISERR(ROUND(SUM(G193:G194),2)*G196),0,ROUND(SUM(G193:G194),2)*G196)","v":0}]
["Grand total admissible",null,null,null,null,null,{"$f":"IF(ISERR(SUM(G197:G198)),0,SUM(G197:G198))","v":0}]
["Calculs - Taille Phytosanitaire"]
["Taux d'exécution de base",null,null,null,null,null,{"$f":"IF(ISERR(F50),0,F50)","v":0}]
["Taux PE2",null,null,null,null,null,{"$f":"IF(ISERR((SUMPRODUCT(D96:D100,E96:E100)/$E$101)),0,SUMPRODUCT(D96:D100,E96:E100)/$E$101)","v":0}]
["Taux sous-total exécution",null,null,null,null,null,{"$f":"IF(ISERR(G201+G202),0,G201+G202)","v":0}]
["Taux H4",null,null,null,null,null,{"$f":"IF(ISERR(G203*E103),0,G203*E103)","v":0}]
["Taux D200",null,null,null,null,null,{"$f":"IF(ISERR(G203*E104),0,G203*E104)","v":0}]
["Taux exécution total et majoration(s) admissible(s)",null,null,null,null,null,{"$f":"IF(ISERR(ROUND(SUM(G203:G205),2)),0,ROUND(SUM(G203:G205),2))","v":0}]
["Taux vérification",null,null,null,null,null,{"$f":"IF(ISERR((($G$107*$G$108)+((($G$109+((SUM($F$111:$F$112)*'Calculs grille'!$I$95))+(SUM($F$113:$F$116)*'Calculs grille'!$I$96)+((SUM($F$117:$F$119)*'Calculs grille'!$I$94))))*$G$110))/G210),0,(($G$107*$G$108)+((($G$109+((SUM($F$111:$F$112)*'Calculs grille'!$I$95))+(SUM($F$113:$F$116)*'Calculs grille'!$I$96)+((SUM($F$117:$F$119)*'Calculs grille'!$I$94))))*$G$110))/G210)","v":0}]
["Taux H3 et/ou D200",null,null,null,null,null,{"$f":"IF(ISERR(G207*SUM(E123:E124)),0,G207*SUM(E123:E124))","v":0}]
["Taux exécution et vérification total",null,null,null,null,null,{"$f":"IF(ISERR(SUM(G206:G208)),0,SUM(G206:G208))","v":0}]
["Nombre d'hectares",null,null,null,null,null,{"$f":"IF(ISERR(ROUND(E101,2)),0,ROUND(E101,2))","v":0}]
["Total exécution",null,null,null,null,null,{"$f":"IF(ISERR(G206*G210),0,G206*G210)","v":0}]
["Total vérification",null,null,null,null,null,{"$f":"IF(ISERR(ROUND(SUM(G207:G208),2)*G210),0,ROUND(SUM(G207:G208),2)*G210)","v":0}]
["Grand total admissible",null,null,null,null,null,{"$f":"IF(ISERR(SUM(G211:G212)),0,SUM(G211:G212))","v":0}]
[]
["J'atteste que les renseignements fournis dans ce document afin de calculer l'aide financière sont complets et conformes à la vérité, au meilleur de mes connaissances."]
[]
[]
[]
["Nom et prénom de l'ingénieur forestier",null,null,null,null,null,"No de permis"]
[null,null,null,null,null,null,{"$f":"TODAY()","v":"2017-02-13"}]
[]
["Signature de l'ingénieur forestier",null,null,null,null,null,"Date (AAAA-MM-JJ)"]
[]
[]
["Section réservée au suivi du contrat"]
[]
[null,"Numéro de la prescription :",{"$f":"IF(E8<>\"\",E8,\"\")","v":""}]
[]
[null,"Numéro du contrat :"]
[null,"Numéro du projet :"]
[null,"U.G. :"]
[null,"MRC :"]
[null,"Code de traitement DICA : ",{"$f":"IF(E9<>\"\",E9,\"\")","v":""}]
[null,"Code de traitement RATF :",{"$f":"IF(E10<>\"\",E10,\"\")","v":""}]
[null,"Type d'attribution :"]
[null,"Taux AOP :"]
[null,"Nom de l'entrepreneur :"]
[null,"Numéro de fournisseur :"]
[null,"Date de début :"]
[null,"Date de fin :"]
[null,"Commentaires :"]

{"sheet":"Éclaircie commerciale EAF","index":3,"n_rows":79,"n_cols":7,"rows_kept":79,"cut":false,"hidden":false,"merged":[[32,0,32,2],[33,0,33,6],[35,0,35,6],[21,0,21,4],[22,0,22,6],[23,0,23,6],[31,1,31,2],[31,3,31,4],[31,5,31,6],[32,3,32,4],[32,5,32,6],[29,1,29,2],[29,3,29,4],[29,5,29,6],[30,1,30,2],[30,3,30,4],[30,5,30,6],[26,5,26,6],[27,1,27,2],[27,3,27,4],[27,5,27,6],[28,1,28,2],[28,3,28,4],[28,5,28,6],[26,1,26,2],[26,3,26,4],[21,5,21,6],[20,0,20,4],[20,5,20,6],[24,0,24,6],[25,0,25,6],[18,5,18,6],[19,5,19,6],[18,0,18,4],[19,1,19,4],[13,0,13,3],[13,4,13,6],[14,0,14,6],[15,0,15,6],[16,0,16,6],[17,0,17,6],[12,0,12,3],[12,4,12,6],[5,0,5,3],[5,4,5,6],[6,0,6,3],[6,4,6,6],[7,0,7,3],[7,4,7,6],[10,0,10,6],[11,0,11,3],[11,4,11,6],[8,0,8,3],[8,4,8,6],[9,0,9,3],[9,4,9,6],[0,0,0,6],[1,0,1,4],[2,0,2,6],[3,0,3,6],[4,0,4,3],[4,4,4,6],[34,5,34,6],[34,0,34,4],[36,5,36,6],[37,0,37,6],[38,5,38,6],[36,0,36,3],[38,0,38,3],[39,0,39,6],[40,0,40,6],[41,0,41,5],[44,0,44,5],[45,0,45,5],[42,0,42,5],[43,0,43,5],[49,0,49,5],[50,0,50,5],[46,0,46,5],[48,0,48,5],[47,0,47,5],[64,2,65,4],[51,0,51,6],[52,0,52,6],[62,0,62,4],[53,0,55,5],[53,6,55,6],[56,0,56,5],[57,0,58,5],[57,6,58,6],[59,0,59,5]]}
[]
["Annexe au calcul des taux des traitements non commerciaux                                                                                                                                                                                                                                           2017-2018                                                                                                                                                                                                                                                                              Éclaircie commerciale EAF                                                                                          (réservé aux entreprises d'aménagement forestier)"]
[" *** Veuillez saisir les informations dans les cellules blanches seulement ***"]
["Identification"]
["UAF"]
["Secteur d'intervention"]
["Unité de compilation"]
["Numéro de la prescription"]
["Traitement (code DICA)"]
["Traitement (code RATF)"]
["Traitement d'éducation de peuplement à taux variable"]
["Traitement",null,null,null,"Inscrire une valeur"]
["Taux de base",null,null,null,{"$f":"IF(E12=Menus!A352,Menus!B352,IF(E12=Menus!A353,Menus!B353,\"\"))","v":0}]
["Unité de mesure",null,null,null,{"$f":"IF(E12=Menus!A352,Menus!C352,IF(E12=Menus!A353,Menus!C353,\"\"))","v":"-"}]
["Taux d'exécution à déterminer selon la formule suivante"]
[{"$f":"IF(E12=Formules!B13,Formules!D13,\"\")","v":""}]
[{"$f":"\"Valeurs spécifiques à remplir selon le traitement\"&\" - \"&E12","v":"Valeurs spécifiques à remplir selon le traitement - Inscrire une valeur"}]
["Valeurs spécifiques à remplir selon le traitement - Éclaircie commerciale EAF"]
["Volume net à prélever (m³ / hectare)"]
["VREC","Volume moyen des tiges à récolter"]
["Taux par mètre cube calculé à partir de l'équation et des variables reliées au traitement",null,null,null,null,{"$f":"IF(ISERR(('Calculs grille'!I114*F20^'Calculs grille'!I113)+'Calculs grille'!I115),0,('Calculs grille'!I114*F20^'Calculs grille'!I113)+'Calculs grille'!I115)","v":0}]
["Taux par hectare calculé à partir de l'équation et des variables reliées au traitement",null,null,null,null,{"$f":"F19*F21","v":0}]
[{"$f":"\"Majoration(s) et réduction applicable(s) à l'exécution - \"&E12","v":"Majoration(s) et réduction applicable(s) à l'exécution - Inscrire une valeur"}]
[{"$f":"IF(E12='Majorations applicables'!B30,'Majorations applicables'!K30,\"\")","v":""}]
["Majoration passage et pente (PE2)"]
["Majoration passage et pente (PE2) - Éclaircie commerciale EAF"]
["Classe de pente numérique","Taux calculé",null,"Écart",null,"Superficie (hectare)"]
["Pente A",{"$f":"IF($F$22=1,$F$22*(1+0),$F$22*(1+0))","v":0},null,{"$f":"B28-$F$22","v":0}]
["Pente B",{"$f":"IF($F$22=1,$F$22*(1+0),$F$22*(1+0))","v":0},null,{"$f":"B29-$F$22","v":0}]
["Pente C",{"$f":"IF($F$22=1,$F$22*(1+0.007),$F$22*(1+0.007))","v":0},null,{"$f":"B30-$F$22","v":0}]
["Pente D",{"$f":"IF($F$22=1,$F$22*(1+0.026),$F$22*(1+0.026))","v":0},null,{"$f":"B31-$F$22","v":0}]
["Pente E",{"$f":"IF($F$22=1,$F$22*(1+0.061),$F$22*(1+0.061))","v":0},null,{"$f":"B32-$F$22","v":0}]
[null,null,null,"Total",null,{"$f":"SUM(F28:G32)","v":0}]
["Majoration pour le rubannage des sentiers de débardage (RUB1)"]
["Espacement entre les sentier (m)"]
["Majoration pour les opérations manuelles (MAN)"]
["Type d'opérations",null,null,null,{"$f":"IF(F37=Menus!A360,Menus!B360,IF(F37=Menus!A361,Menus!B361,\"\"))","v":""}]
["Majoration hébergement et distance secteur intervention (H5)"]
["Hébergement (H5)",null,null,null,{"$f":"IF(F39=Menus!A356,Menus!B356,IF(F39=Menus!A357,Menus!B357,\"\"))","v":""}]
["Total"]
["Calculs -  Éclaircie commerciale EAF"]
["Taux d'exécution par mètre cube",null,null,null,null,null,{"$f":"IF(ISERR(F21),0,F21)","v":0}]
["Taux d'exécution par hectare",null,null,null,null,null,{"$f":"IF(ISERR(F22),0,F22)","v":0}]
["Taux PE2",null,null,null,null,null,{"$f":"IF(ISERR(SUMPRODUCT(D28:E32,F28:G32)/F33),0,SUMPRODUCT(D28:E32,F28:G32)/F33)","v":0}]
["Taux sous-total exécution",null,null,null,null,null,{"$f":"IF(ISERR(SUM(G43:G44)),0,SUM(G43:G44))","v":0}]
["Taux RUB1",null,null,null,null,null,{"$f":"IF(ISERR(IF(OR(F35=\"Pas de rubannage des sentiers\",F35<15),0,(1135*(POWER(F35,-1))))),0,IF(OR(F35=\"Pas de rubannage des sentiers\",F35<15),0,(1135*(POWER(F35,-1)))))","v":0}]
["Taux MAN",null,null,null,null,null,{"$f":"IF(ISERR(G45*E37),0,G45*E37)","v":0}]
["Taux H5",null,null,null,null,null,{"$f":"IF(ISERR(SUM(G45,G47)*E39),0,SUM(G45,G47)*E39)","v":0}]
["Taux exécution total et majoration(s) admissible(s)",null,null,null,null,null,{"$f":"IF(ISERR(ROUND(SUM(G45:G48),2)),0,ROUND(SUM(G45:G48),2))","v":0}]
["Superficie (hectares)",null,null,null,null,null,{"$f":"IF(ISERR(F33),0,F33)","v":0}]
["Grand total admissible",null,null,null,null,null,{"$f":"IF(ISERR(G49*G50),0,G49*G50)","v":0}]
[]
["J'atteste que les renseignements fournis dans ce document afin de calculer l'aide financière sont complets et conformes à la vérité, au meilleur de mes connaissances."]
[]
[]
[]
["Nom et prénom de l'ingénieur forestier",null,null,null,null,null,"No de permis"]
[null,null,null,null,null,null,{"$f":"TODAY()","v":"2017-02-13"}]
[]
["Signature de l'ingénieur forestier",null,null,null,null,null,"Date (AAAA-MM-JJ)"]
[]
[]
["Section réservée au suivi du contrat"]
[]
[null,"Numéro de la prescription :",{"$f":"IF(E8<>\"\",E8,\"\")","v":""}]
[]
[null,"Numéro du contrat :"]
[null,"Numéro du projet :"]
[null,"U.G. :"]
[null,"MRC :"]
[null,"Code de traitement DICA :",{"$f":"IF(E9<>\"\",E9,\"\")","v":""}]
[null,"Code de traitement RATF :",{"$f":"IF(E10<>\"\",E10,\"\")","v":""}]
[null,"Type d'attribution : "]
[null,"Taux AOP : "]
[null,"Nom de l'entrepreneur : "]
[null,"Numéro de fournisseur : "]
[null,"Date de début :"]
[null,"Date de fin :"]
[null,"Commentaires :"]

{"sheet":"Martelage","index":4,"n_rows":91,"n_cols":7,"rows_kept":91,"cut":false,"hidden":false,"merged":[[76,2,77,4],[55,0,55,5],[63,0,63,6],[64,0,64,6],[74,0,74,4],[61,0,61,5],[62,0,62,5],[56,0,56,5],[57,0,57,5],[58,0,58,5],[59,0,59,5],[60,0,60,5],[65,0,67,5],[65,6,67,6],[68,0,68,5],[69,0,70,5],[51,0,51,6],[52,0,52,5],[53,0,53,5],[54,0,54,5],[50,0,50,5],[48,0,48,5],[49,0,49,5],[16,0,16,6],[17,0,17,5],[40,0,40,5],[35,0,35,6],[36,5,36,6],[29,0,29,6],[30,0,30,6],[31,0,31,5],[32,0,32,5],[33,0,33,5],[34,0,34,5],[37,5,37,6],[41,0,41,5],[42,0,42,5],[23,0,23,5],[27,0,27,3],[28,0,28,3],[36,0,36,3],[37,0,37,3],[24,0,24,6],[25,0,25,6],[46,0,46,5],[47,0,47,5],[43,0,43,5],[44,0,44,5],[45,0,45,5],[15,0,15,6],[18,0,18,6],[19,0,19,6],[20,1,20,5],[22,1,22,3],[8,4,8,6],[9,0,9,3],[9,4,9,6],[69,6,70,6],[26,0,26,6],[27,5,27,6],[10,0,10,6],[11,0,11,3],[11,4,11,6],[38,0,38,6],[39,0,39,6],[12,0,12,3],[12,4,12,6],[28,5,28,6],[21,1,21,5],[14,0,14,6],[71,0,71,5],[0,0,0,6],[1,0,1,4],[2,0,2,6],[3,0,3,6],[4,0,4,3],[4,4,4,6],[5,0,5,3],[5,4,5,6],[6,0,6,3],[6,4,6,6],[7,0,7,3],[7,4,7,6],[13,0,13,3],[13,4,13,6],[8,0,8,3]]}
[]
["Annexe au calcul des taux des traitements non commerciaux                                                                                                                                                                                                                                           2017-2018                                                                                                                                                                                                                                                                              Martelage"]
[" *** Veuillez saisir les informations dans les cellules blanches seulement ***"]
["Identification"]
["UAF"]
["Secteur d'intervention"]
["Unité de compilation"]
["Numéro de la prescription"]
["Traitement (code DICA)"]
["Traitement (code RATF)"]
["Traitement d'éducation de peuplement à taux variable"]
["Traitement",null,null,null,"Inscrire une valeur"]
["Taux de base",null,null,null,{"$f":"IF(E12=Menus!A401,Menus!B401,IF(E12=Menus!A402,Menus!B402,IF(E12=Menus!A403,Menus!B403,IF(E12=Menus!A404,Menus!B404,\"\"))))","v":0}]
["Unité de mesure",null,null,null,{"$f":"IF(E12=Menus!A401,Menus!C401,IF(E12=Menus!A402,Menus!C402,IF(E12=Menus!A403,Menus!C403,IF(E12=Menus!A404,Menus!C404,\"\"))))","v":"-"}]
["Taux d'exécution à déterminer selon la formule suivante"]
[{"$f":"IF(E12=Formules!B14,Formules!D14,\"\")","v":""}]
["Superficie"]
["Superficie du traitement"]
[{"$f":"\"Valeurs spécifiques à remplir selon le traitement\"&\" - \"&E12","v":"Valeurs spécifiques à remplir selon le traitement - Inscrire une valeur"}]
["Valeurs spécifiques à remplir selon le traitement - Martelage"]
["PF","Proportion de feuillus"]
["NbMSCROP","Nombre de priorité de récolte combinant MSCR et OP. Valeur de 0 à 8 : MO-MP-SO-SP-CO-CP-RO-RP"]
["TC","Type de coupe",null,null,"Valeur",{"$f":"IF(G23=Menus!A407,Menus!B407,IF(G23=Menus!A408,Menus!B408,IF(G23=Menus!A409,Menus!B409,IF(G23=Menus!A410,Menus!B410,IF(G23=Menus!A411,Menus!B411,\"\")))))","v":""}]
["Taux par hectare calculé à partir de l'équation et des variables reliées à l'activité",null,null,null,null,null,{"$f":"IF(ISERR(('Calculs grille'!I118-('Calculs grille'!I119)*Martelage!G21+('Calculs grille'!I120*Martelage!G22))*Martelage!F23),0,('Calculs grille'!I118-('Calculs grille'!I119)*Martelage!G21+('Calculs grille'!I120*Martelage!G22))*Martelage!F23)","v":0}]
[{"$f":"\"Majoration(s) et réduction applicable(s) à l'exécution - \"&E12","v":"Majoration(s) et réduction applicable(s) à l'exécution - Inscrire une valeur"}]
[{"$f":"IF(E12='Majorations applicables'!B31,'Majorations applicables'!K31,IF(E12='Majorations applicables'!B32,'Majorations applicables'!K32,IF(E12='Majorations applicables'!B33,'Majorations applicables'!K33,\"\")))","v":""}]
["Majoration hébergement et distance secteur intervention (H3 et D200)"]
["Hébergement (H3)",null,null,null,{"$f":"IF(F28=Menus!A414,Menus!B414,IF(F28=Menus!A415,Menus!B415,\"\"))","v":""}]
["Distance du secteur d'intervention (D200)",null,null,null,{"$f":"IF(F29=Menus!A418,Menus!B418,IF(F29=Menus!A419,Menus!B419,\"\"))","v":""}]
["Vérification"]
["Vérification - Tous"]
["Délimitation des secteurs (taux par kilomètre délimité)"]
["Nombre de kilomètres délimité"]
["Inventaire après traitement (taux par hectare martelé)"]
["Nombre de placettes inventoriées"]
["Vérification - Majoration hébergement et distance secteur intervention (H3 et D200)"]
["Hébergement (H3)",null,null,null,{"$f":"IF(F37=Menus!$A$414,Menus!$B$414,IF(F37=Menus!$A$415,Menus!$B$415,\"\"))","v":""}]
["Distance du secteur d'intervention (D200)",null,null,null,{"$f":"IF(F38=Menus!$A$418,Menus!$B$418,IF(F38=Menus!$A$419,Menus!$B$419,\"\"))","v":""}]
["Total"]
["Calculs -  Martelage"]
["Taux d'exécution de base",null,null,null,null,null,{"$f":"IF(ISERR(G24),0,G24)","v":0}]
["Taux H3",null,null,null,null,null,{"$f":"IF(ISERR(G41*E28),0,G41*E28)","v":0}]
["Taux D200",null,null,null,null,null,{"$f":"IF(ISERR(G41*E29),0,G41*E29)","v":0}]
["Taux exécution total et majoration(s) admissible(s)",null,null,null,null,null,{"$f":"IF(ISERR(ROUND(SUM(G41:G43),2)),0,ROUND(SUM(G41:G43),2))","v":0}]
["Taux vérification",null,null,null,null,null,{"$f":"IF(ISERR(((G32*G33)+(G34*G35))/G18),0,((G32*G33)+(G34*G35))/G18)","v":0}]
["Taux H3 et/ou D200",null,null,null,null,null,{"$f":"IF(ISERR(G45*SUM(E37:E38)),0,G45*SUM(E37:E38))","v":0}]
["Taux exécution et vérification total",null,null,null,null,null,{"$f":"IF(ISERR(ROUND(SUM(G44:G46),2)),0,ROUND(SUM(G44:G46),2))","v":0}]
["Superficie (hectares)",null,null,null,null,null,{"$f":"IF(ISERR(G18),0,G18)","v":0}]
["Total exécution",null,null,null,null,null,{"$f":"IF(ISERR(G44*G48),0,G44*G48)","v":0}]
["Total vérification",null,null,null,null,null,{"$f":"IF(ISERR(ROUND(SUM(G45:G46),2)*G48),0,ROUND(SUM(G45:G46),2)*G48)","v":0}]
["Grand total admissible",null,null,null,null,null,{"$f":"IF(ISERR(SUM(G49:G50)),0,SUM(G49:G50))","v":0}]
["Calculs - Martelage positif et négatif  - EC"]
["Taux d'exécution de base",null,null,null,null,null,{"$f":"IF(ISERR(E13),0,E13)","v":0}]
["Taux H3",null,null,null,null,null,{"$f":"IF(ISERR(G53*E28),0,G53*E28)","v":0}]
["Taux D200",null,null,null,null,null,{"$f":"IF(ISERR(G53*E29),0,G53*E29)","v":0}]
["Taux exécution total et majoration(s) admissible(s)",null,null,null,null,null,{"$f":"IF(ISERR(ROUND(SUM(G53:G55),2)),0,ROUND(SUM(G53:G55),2))","v":0}]
["Taux vérification",null,null,null,null,null,{"$f":"IF(ISERR(((G32*G33)+(G34*G35))/G18),0,((G32*G33)+(G34*G35))/G18)","v":0}]
["Taux H3 et/ou D200",null,null,null,null,null,{"$f":"IF(ISERR(G57*SUM(E37:E38)),0,G57*SUM(E37:E38))","v":0}]
["Taux exécution et vérification total",null,null,null,null,null,{"$f":"IF(ISERR(ROUND(SUM(G56:G58),2)),0,ROUND(SUM(G56:G58),2))","v":0}]
["Superficie (hectares)",null,null,null,null,null,{"$f":"IF(ISERR(G18),0,G18)","v":0}]
["Total exécution",null,null,null,null,null,{"$f":"IF(ISERR(G56*G60),0,G56*G60)","v":0}]
["Total vérification",null,null,null,null,null,{"$f":"IF(ISERR(ROUND(SUM(G57:G58),2)*G60),0,ROUND(SUM(G57:G58),2)*G60)","v":0}]
["Grand total admissible",null,null,null,null,null,{"$f":"IF(ISERR(SUM(G61:G62)),0,SUM(G61:G62))","v":0}]
[]
["J'atteste que les renseignements fournis dans ce document afin de calculer l'aide financière sont complets et conformes à la vérité, au meilleur de mes connaissances."]
[]
[]
[]
["Nom et prénom de l'ingénieur forestier",null,null,null,null,null,"No de permis"]
[null,null,null,null,null,null,{"$f":"TODAY()","v":"2017-02-13"}]
[]
["Signature de l'ingénieur forestier",null,null,null,null,null,"Date (AAAA-MM-JJ)"]
[]
[]
["Section réservée au suivi du contrat"]
[]
[null,"Numéro de la prescription :",{"$f":"IF(E8<>\"\",E8,\"\")","v":""}]
[]
[null,"Numéro du contrat :"]
[null,"Numéro du projet :"]
[null,"U.G. :"]
[null,"MRC :"]
[null,"Code de traitement DICA :",{"$f":"IF(E9<>\"\",E9,\"\")","v":""}]
[null,"Code de traitement RATF :",{"$f":"IF(E10<>\"\",E10,\"\")","v":""}]
[null,"Type d'attribution : "]
[null,"Taux AOP : "]
[null,"Nom de l'entrepreneur : "]
[null,"Numéro de fournisseur : "]
[null,"Date de début :"]
[null,"Date de fin :"]
[null,"Commentaires :"]

{"sheet":"Travaux de planification","index":5,"n_rows":85,"n_cols":7,"rows_kept":85,"cut":false,"hidden":false,"merged":[[70,2,71,4],[8,0,8,6],[20,0,20,1],[20,3,20,4],[15,0,15,1],[16,0,16,1],[18,0,18,6],[15,3,15,4],[16,3,16,4],[13,0,13,6],[17,0,17,1],[12,3,12,4],[10,3,10,4],[11,3,11,4],[17,3,17,4],[12,0,12,1],[0,0,0,6],[1,0,1,4],[2,0,2,6],[3,0,3,6],[4,0,4,3],[4,4,4,6],[5,0,5,3],[5,4,5,6],[6,0,6,3],[6,4,6,6],[7,0,7,3],[7,4,7,6],[52,0,52,6],[50,5,50,6],[51,5,51,6],[30,0,43,0],[30,1,33,1],[34,1,42,1],[49,0,49,6],[43,2,43,3],[42,2,42,3],[41,2,41,3],[40,2,40,3],[39,2,39,3],[33,2,33,3],[32,2,32,3],[31,2,31,3],[30,4,33,4],[28,0,28,6],[29,0,29,6],[46,3,46,4],[50,0,50,3],[45,3,45,4],[45,0,45,1],[34,4,42,4],[38,2,38,3],[37,2,37,3],[36,2,36,3],[35,2,35,3],[34,2,34,3],[30,2,30,3],[68,0,68,4],[54,0,54,5],[55,0,55,5],[56,0,56,5],[44,0,44,6],[46,0,46,1],[47,0,47,1],[48,0,48,1],[47,3,47,4],[48,3,48,4],[65,0,65,5],[59,0,61,5],[59,6,61,6],[58,0,58,6],[53,0,53,5],[57,0,57,6],[23,3,23,4],[26,3,26,4],[22,3,22,4],[22,0,22,1],[27,0,27,6],[25,3,25,4],[25,0,25,1],[62,0,62,5],[63,0,64,5],[63,6,64,6],[9,0,9,1],[9,3,9,4],[14,3,14,4],[14,0,14,1],[19,3,19,4],[19,0,19,1],[10,0,10,1],[11,0,11,1],[21,0,21,6],[24,0,24,1],[23,0,23,1],[26,0,26,1],[24,3,24,4]]}
[]
["Annexe au calcul des taux des traitements non commerciaux                                                                                                                                                                                                                                           2017-2018                                                                                                                                                                                                                                                                              Travaux de planification"]
[" *** Veuillez saisir les informations dans les cellules blanches seulement ***"]
["Identification"]
["UAF"]
["Secteur d'intervention"]
["Unité de compilation"]
["Numéro de la prescription"]
["Recherche de secteur d'intervention"]
["Traitement",null,"Valeur","Unité",null,"Total","Quantité"]
["Préparation de terrain",null,{"$f":"'Calculs grille'!I97","v":5},"Nombre d'hectares recherchés",null,{"$f":"C11*G11","v":0}]
["Régénération artificielle",null,{"$f":"'Calculs grille'!I97","v":5},"Nombre d'hectares recherchés",null,{"$f":"C12*G12","v":0}]
["Éducation de peuplement",null,{"$f":"'Calculs grille'!I98","v":9},"Nombre d'hectares recherchés",null,{"$f":"C13*G13","v":0}]
["Secteur d'intervention proposé"]
["Traitement",null,"Valeur","Unité",null,"Total","Quantité"]
["Préparation de terrain",null,{"$f":"'Calculs grille'!I99","v":11},"Nombres d'hectares trouvés",null,{"$f":"C16*G16","v":0}]
["Régénération artificielle",null,{"$f":"'Calculs grille'!I99","v":11},"Nombres d'hectares trouvés",null,{"$f":"C17*G17","v":0}]
["Éducation de peuplement",null,{"$f":"'Calculs grille'!I100","v":16},"Nombres d'hectares trouvés",null,{"$f":"C18*G18","v":0}]
["Plan de sondage"]
["Traitement",null,"Valeur","Unité",null,"Total","Quantité"]
["Plan de sondage",null,{"$f":"'Calculs grille'!I101","v":2},"Nombre d'hectares inventoriés",null,{"$f":"C21*G21","v":0}]
["Inventaire avant traitement"]
["Traitement",null,"Valeur","Unité",null,"Total","Quantité"]
["Préparation de terrain (sauf drainage sylvicole) et régénération artificielle",null,{"$f":"'Calculs grille'!I107","v":30},"Nombre de PE inventoriées",null,{"$f":"C24*G24","v":0}]
["Préparation de terrain (drainage sylvicole - plan et devis)",null,{"$f":"'Calculs grille'!I108","v":29},"Nombre de km ou Mm³ du devis",null,{"$f":"C25*G25","v":0}]
["Éducation de peuplement (dégagement, nettoiement et éclaircie commerciale)",null,{"$f":"'Calculs grille'!I103","v":93},"Nombre de PE inventoriées",null,{"$f":"IF(ISERR(IF(SUM(F35:F43)>7,\"Maximum 7 critères NCP\",(C26+(SUM(F31:F34)*'Calculs grille'!I104)+(SUM(F35:F43)*'Calculs grille'!I105)+(SUM(F44)*'Calculs grille'!I106))*G26)),C26*G26,IF(SUM(F35:F43)>7,\"Maximum 7 critères NCP\",(C26+(SUM(F31:F34)*'Calculs grille'!I104)+(SUM(F35:F43)*'Calculs grille'!I105)+(SUM(F44)*'Calculs grille'!I106))*G26))","v":0}]
["Éducation de peuplement (élagage et taille de formation)",null,{"$f":"'Calculs grille'!I109","v":43},"Nombre de PE inventoriées",null,{"$f":"C27*G27","v":0}]
["Inventaire avant traitement pour éducation de peuplement (dégagement, nettoiement et éclaircie commerciale)"]
["Critères - Inventaire avant traitement pour éducation de peuplement (dégagement, nettoiement et éclaircie commerciale) SEULEMENT calculé selon la formule suivante"]
[{"$f":"Formules!D15","v":"Taux ($/PE) = 93 + 0,64 * (NCT) + (3,19) * (NCP) + 6,39 * (TE)"}]
["Critères","NCT","Acessibilité",null,{"$f":"SUM(F31:F34)*'Calculs grille'!I104","v":0},{"$f":"IF(G31=\"Oui\",1,IF(G31=\"Non\",0,\"\"))","v":""}]
[null,null,"Groupes d'espèces indicatrices",null,null,""]
[null,null,"Pente",null,null,""]
[null,null,"Rugosité",null,null,""]
[null,"NCP                                                                 (maximum 7 critères)","Hauteur du résineux en compétition avec le stocking de feuillus commerciaux",null,{"$f":"IF(SUM(F35:F43)<=7,SUM(F35:F43)*'Calculs grille'!I105,\"Maximum 7 critères\")","v":0},""]
[null,null,"Hauteur moyenne des feuillus non-commerciaux",null,null,""]
[null,null,"Coefficient de distribution libre de croître et éclaircie",null,null,""]
[null,null,"Nombre de faces en compétition",null,null,""]
[null,null,"Pourcentage de recouvrement par essence",null,null,""]
[null,null,"Présence d'arbres fruitiers",null,null,""]
[null,null,"Présence du charançon",null,null,""]
[null,null,"Qualification des feuillus potentiels",null,null,""]
[null,null,"Coefficient de distribution des feuillus commerciaux ou non",null,null,""]
[null,"TE","Type écologique",null,{"$f":"SUM(F44)*'Calculs grille'!I106","v":0},""]
["Délimitation de secteur"]
["Traitement",null,"Valeur","Unité",null,"Total","Quantité"]
["Éducation de peuplement",null,{"$f":"'Calculs grille'!I111","v":136},"Nombre de km délimités",null,{"$f":"C47*G47","v":0}]
["Préparation de terrain",null,{"$f":"'Calculs grille'!I110","v":28},"Nombre de km délimités",null,{"$f":"C48*G48","v":0}]
["Régénération artificielle",null,{"$f":"'Calculs grille'!I110","v":28},"Nombre de km délimités",null,{"$f":"C49*G49","v":0}]
["Vérification - Majoration hébergement et distance secteur intervention (H3 et D200)"]
["Hébergement (H3)",null,null,null,{"$f":"IF(F51=Menus!$A$448,Menus!$B$448,IF(F51=Menus!$A$449,Menus!$B$449,\"\"))","v":""}]
["Distance du secteur d'intervention (D200)",null,null,null,{"$f":"IF(F52=Menus!$A$452,Menus!$B$452,IF(F52=Menus!$A$453,Menus!$B$453,\"\"))","v":""}]
["Total"]
["Montant de base admissible",null,null,null,null,null,{"$f":"IF(ISERR(IF(SUM(F35:F43)>7,\"Maximum 7 critères NCP\",SUM(F11:F13,F16:F18,F21,F24:F25,F27,F47:F49)+(C26+(SUM(F31:F34)*'Calculs grille'!I104)+(SUM(F35:F43)*'Calculs grille'!I105)+(SUM(F44)*'Calculs grille'!I106))*G26)),0,IF(SUM(F35:F43)>7,\"Maximum 7 critères NCP\",SUM(F11:F13,F16:F18,F21,F24:F25,F27,F47:F49)+(C26+(SUM(F31:F34)*'Calculs grille'!I104)+(SUM(F35:F43)*'Calculs grille'!I105)+(SUM(F44)*'Calculs grille'!I106))*G26))","v":0}]
["Taux H3 (sauf plan de sondage)",null,null,null,null,null,{"$f":"IF(ISERR(IF(G54=\"Maximum 7 critères NCP\",0,G54*E51)),0,IF(G54=\"Maximum 7 critères NCP\",0,G54*E51))","v":0}]
["Taux D200 (sauf plan de sondage)",null,null,null,null,null,{"$f":"IF(ISERR(IF(G54=\"Maximum 7 critères NCP\",0,(G54-F21)*E52)),0,IF(G54=\"Maximum 7 critères NCP\",0,(G54-F21)*E52))","v":0}]
["Grand total admissible",null,null,null,null,null,{"$f":"IF(ISERR(ROUND(SUM(F54:G56),2)),0,ROUND(SUM(F54:G56),2))","v":0}]
[]
["J'atteste que les renseignements fournis dans ce document afin de calculer l'aide financière sont complets et conformes à la vérité, au meilleur de mes connaissances."]
[]
[]
[]
["Nom et prénom de l'ingénieur forestier",null,null,null,null,null,"No de permis"]
[null,null,null,null,null,null,{"$f":"TODAY()","v":"2017-02-13"}]
[]
["Signature de l'ingénieur forestier",null,null,null,null,null,"Date (AAAA-MM-JJ)"]
[]
[]
["Section réservée au suivi du contrat"]
[]
[null,"Numéro de la prescription :",{"$f":"IF(E8<>\"\",E8,\"\")","v":""}]
[]
[null,"Numéro du contrat :"]
[null,"Numéro du projet :"]
[null,"U.G. :"]
[null,"MRC :"]
[null,"Code de traitement DICA :"]
[null,"Code de traitement RATF :"]
[null,"Type d'attribution : "]
[null,"Taux AOP : "]
[null,"Nom de l'entrepreneur : "]
[null,"Numéro de fournisseur : "]
[null,"Date de début :"]
[null,"Date de fin : "]
[null,"Commentaires : "]

{"sheet":"Dispersion UAF_2017-2018","index":6,"n_rows":102,"n_cols":5,"rows_kept":102,"cut":false,"hidden":false,"merged":[[99,0,99,4],[101,0,101,4],[22,0,22,1],[23,0,23,1],[1,0,1,2],[16,0,16,1],[17,0,17,1],[18,0,18,1],[19,0,19,1],[20,0,20,1],[21,0,21,1],[0,0,0,4],[2,0,2,4],[24,0,24,4],[4,0,4,1],[3,0,3,4],[5,0,5,1],[6,0,6,1],[7,0,7,1],[8,0,8,1],[9,0,9,1],[10,0,10,1],[11,0,11,1],[12,0,12,1],[13,0,13,1],[14,0,14,1],[15,0,15,1]]}
[]
["Annexe au calcul des taux des traitements                                  non commerciaux                                                                2017-2018                                                                                                                                                                                                                                                                                                                                                                                                                                                                                                                                                   Indice de dispersion"]
[]
["Majoration par indice de dispersion et catégorie de préparation de terrain"]
["Indice de dispersion (km/ha)",null,"Classe","Scarifiage Herse\n (DISP1)","Déblaiement\nExcavatrice\n (DISP2)"]
["1,01 - 2,00",null,1,3.7999999999999999E-2,0]
["2,01 - 3,00",null,2,7.5999999999999998E-2,0]
["3,01 - 4,00",null,3,0.11399999999999999,0]
["4,01 - 5,00",null,4,0.152,1.4E-2]
["5,01 - 6,00",null,5,0.19,2.8000000000000001E-2]
["6,01 - 7,00",null,6,0.22800000000000001,4.2000000000000003E-2]
["7,01 - 8,00",null,7,0.26600000000000001,5.6000000000000001E-2]
["8,01 - 9,00",null,8,0.30399999999999999,7.0000000000000007E-2]
["9,01 - 10,00",null,9,0.34199999999999997,8.4000000000000005E-2]
["10,01 - 11,00",null,10,0.34199999999999997,9.8000000000000004E-2]
["11,01 - 12,00",null,11,0.34199999999999997,0.112]
["12,01 - 13,00",null,12,0.34199999999999997,0.126]
["13,01 - 14,00",null,13,0.34199999999999997,0.14000000000000001]
["14,01 - 15,00",null,14,0.34199999999999997,0.15400000000000003]
["15,01 - 16,00",null,15,0.34199999999999997,0.16800000000000004]
["16,01 - 17,00",null,16,0.34199999999999997,0.18200000000000005]
["17,01 - 18,00",null,17,0.34199999999999997,0.19600000000000006]
["18,01 - 19,00",null,18,0.34199999999999997,0.21000000000000008]
["19,01 et +",null,19,0.34199999999999997,0.22400000000000009]
["Indice de dispersion et majoration par UAF et par catégorie de préparation de terrain - 2017-2018"]
["UAF","Indice de dispersion (km/ha)","Classe","Scarifiage Herse\n (DISP1)","Déblaiement\nExcavatrice (DISP2)"]
["00000",0,0,{"$f":"IF(B27>9,0.038*9,IF(B27>1,0.038*ROUNDUP((B27-1),0),0))","v":0},{"$f":"IF(B27>19,0.014*15,IF(B27>4,0.014*ROUNDUP((B27-4),0),0))","v":0}]
["01151",2.7655465497365705,2,{"$f":"IF(B28>9,0.038*9,IF(B28>1,0.038*ROUNDUP((B28-1),0),0))","v":7.5999999999999998E-2},{"$f":"IF(B28>19,0.014*15,IF(B28>4,0.014*ROUNDUP((B28-4),0),0))","v":0}]
["01152",2.7655465497365705,2,7.5999999999999998E-2,0]
["01251",2.7734908334350417,2,7.5999999999999998E-2,0]
["01252",2.7734908334350417,2,7.5999999999999998E-2,0]
["01253",2.7734908334350417,2,7.5999999999999998E-2,0]
["01254",2.7734908334350417,2,7.5999999999999998E-2,0]
["02251",2.0942101544565199,2,7.5999999999999998E-2,0]
["02351",1.3196589467589754,1,3.7999999999999999E-2,0]
["02352",1.2152972137171474,1,3.7999999999999999E-2,0]
["02451",1.0390585495900222,1,3.7999999999999999E-2,0]
["02452",1.0390585495900222,1,3.7999999999999999E-2,0]
["02551",1.0252834571088849,1,3.7999999999999999E-2,0]
["02651",1.5045137897262424,1,3.7999999999999999E-2,0]
["02661",1.5045137897262424,1,3.7999999999999999E-2,0]
["02662",1.5045137897262424,1,3.7999999999999999E-2,0]
["02663",1.5045137897262424,1,3.7999999999999999E-2,0]
["02664",1.5045137897262424,1,3.7999999999999999E-2,0]
["02665",1.5045137897262424,1,3.7999999999999999E-2,0]
["02666",1.5045137897262424,1,3.7999999999999999E-2,0]
["02751",0.86316813112379465,0,0,0]
["03151",3.9152272178543734,3,0.11399999999999999,0]
["03152",3.9152272178543734,3,0.11399999999999999,0]
["03153",3.9152272178543734,3,0.11399999999999999,0]
["03351",3.1991969783921061,3,0.11399999999999999,0]
["03451",0,0,0,0]
["03453",0,0,0,0]
["03551",8.5029168114228444,8,0.30399999999999999,7.0000000000000007E-2]
["04151",1.8904790999752921,1,3.7999999999999999E-2,0]
["04251",1.325245976534942,1,3.7999999999999999E-2,0]
["04351",1.0338590856902339,1,3.7999999999999999E-2,0]
["04352",1.0338590856902339,1,3.7999999999999999E-2,0]
["05151",0,0,0,0]
["06151",0,0,0,0]
["06152",2.52135735500265,2,7.5999999999999998E-2,0]
["06251",1.9979475456521285,1,3.7999999999999999E-2,0]
["06252",1.9979475456521285,1,3.7999999999999999E-2,0]
["06451",2.3025226995271519,2,7.5999999999999998E-2,0]
["06452",3.80685812406404,3,0.11399999999999999,0]
["07151",1.9299259814158138,1,3.7999999999999999E-2,0]
["07152",1.9299259814158138,1,3.7999999999999999E-2,0]
["07251",3.88562004631763,3,0.11399999999999999,0]
["07351",2.9381580578460622,2,7.5999999999999998E-2,0]
["07352",2.9381580578460622,2,7.5999999999999998E-2,0]
["07451",1.769368909399311,1,3.7999999999999999E-2,0]
["08151",3.5350349661574172,3,0.11399999999999999,0]
["08152",3.5350349661574172,3,0.11399999999999999,0]
["08251",5.8062392560172222,5,0.19,2.8000000000000001E-2]
["08351",3.7373079065500945,3,0.11399999999999999,0]
["08451",0.64218215436014403,0,0,0]
["08462",0.64218215436014403,0,0,0]
["08551",3.2725465708465911,3,0.11399999999999999,0]
["08562",3.2725465708465911,3,0.11399999999999999,0]
["08651",1.7198996827568722,1,3.7999999999999999E-2,0]
["08652",1.6436748207685714,1,3.7999999999999999E-2,0]
["08663",1.6436748207685714,1,3.7999999999999999E-2,0]
["08664",1.6436748207685714,1,3.7999999999999999E-2,0]
["08665",1.6436748207685714,1,3.7999999999999999E-2,0]
["08666",1.6436748207685714,1,3.7999999999999999E-2,0]
["08751",0.99514266832672205,0,0,0]
["08762",0.99514266832672205,0,0,0]
["08763",0.99514266832672205,0,0,0]
["08764",0.99514266832672205,0,0,0]
["09351",2.0699034043117042,2,7.5999999999999998E-2,0]
["09352",2.0699034043117042,2,7.5999999999999998E-2,0]
["09451",7.4416944287730713,7,{"$f":"IF(B92>9,0.038*9,IF(B92>1,0.038*ROUNDUP((B92-1),0),0))","v":0.26600000000000001},{"$f":"IF(B92>19,0.014*15,IF(B92>4,0.014*ROUNDUP((B92-4),0),0))","v":5.6000000000000001E-2}]
["09452",7.4416944287730713,7,0.26600000000000001,5.6000000000000001E-2]
["09551",0,0,0,0]
["09751",2.5095816708187275,2,7.5999999999999998E-2,0]
["11161",2.5535610747770039,2,7.5999999999999998E-2,0]
["11262",2.1882487638572337,2,7.5999999999999998E-2,0]
["11263",2.1882487638572337,2,7.5999999999999998E-2,0]
[]
["Indice de dispersion: La distance à vol d'oiseau avec comme point de départ une base régionale, en reliant l'ensemble des secteurs d'intervention à traiter d'un territoire donné et en revenant à la base régionale. La distance est divisés par la superficie totale à traiter. Cet indice s'exprime sous la forme d'une distance par hectare traité (km/ha)"]
[]
["Cet indice peut être recalculé dans le cadre de nouveaux plans spéciaux approuvé par l'unité de gestion"]

{"sheet":"Calculs grille","index":7,"n_rows":123,"n_cols":9,"rows_kept":123,"cut":false,"hidden":true,"merged":[[0,8,1,8],[0,6,1,6],[0,5,1,5],[0,0,1,0],[0,1,1,1],[0,2,1,2],[0,3,1,3],[0,4,1,4]]}
["Famile","Type_1","Type_2","Type_3","Paiement","Intrant","code","2017-2018","2017-2018"]
[null,null,null,null,null,null,null,"Non \narrondis"]
["Préparation de site","Scarifiage en sillon avec scarificateur","Scarificateurs à disques passifs","Type TTS passifs, Equisyl","Taux fixe","Taux à l'hectare","d2",227.87525737262999,228]
["Préparation de site","Scarifiage en sillon avec scarificateur","Scarificateurs à disques passifs","Rouleau écraseur et scarificateur à disques passifs","Taux fixe","Taux à l'hectare","d2",720.2375081225606,720]
["Préparation de site","Scarifiage en sillon avec scarificateur","Scarificateurs à disques hydrauliques","Types TTS hydrauliques, Donaren ou Requin","Taux fixe","Taux à l'hectare","d2",337.2955798610289,337]
["Préparation de site","Scarifiage en sillon avec scarificateur","Scarificateurs à disques hydrauliques","Bracke T-26 avec débardeur","Taux fixe","Taux à l'hectare","d2",333.15386990878221,333]
["Préparation de site","Scarifiage en sillon avec scarificateur","Scarificateurs à disques hydrauliques","Bracke T-26 avec porteur","Taux fixe","Taux à l'hectare","d2",380.51831660566478,381]
["Préparation de site","Scarifiage en sillon avec scarificateur","Scarificateurs à cônes hydrauliques","Wadell","Taux fixe","Taux à l'hectare","d2",400.6062768708581,401]
["Préparation de site","Scarifiage en sillon avec scarificateur","Scarificateurs à monticules","Bracke M-36a avec débardeur","Taux fixe","Taux à l'hectare","d2",317.3565346136067,317]
["Préparation de site","Scarifiage en sillon avec scarificateur","Scarificateurs à monticules","Bracke M-36a avec porteur","Taux fixe","Taux à l'hectare","d2",380.51831660566478,381]
["Préparation de site","Scarifiage en sillon avec scarificateur","Scarifiage en herse/labour","Herses forestières","Taux fixe","Taux à l'hectare","d2",405.1556701470497,405]
["Préparation de site","Scarifiage en sillon avec scarificateur","Scarifiage par mixage par placeau","Taupe ou pioche forestière","Taux fixe","Taux à l'hectare","d3",594.71430701142469,595]
["Préparation de site","Scarifiage et déblaiement","Scarifiage par monticule ou inversion par placeau ou décapage par placeau ET\nDéblaiement des résidus de coupe par placeau","Excavatrice ou débusqueuse ou abatteuse","Taux variable",{"$f":"\"Valeur par hectare = ((\"&I15&\" * R) / e (1,683*R - 0,299 * TP -0,313 * TR + 0,17 * PER + 2,014)  * VEH\"","v":"Valeur par hectare = ((26997 * R) / e (1,683*R - 0,299 * TP -0,313 * TR + 0,17 * PER + 2,014)  * VEH"},null,0,0]
["Préparation de site","Scarifiage et déblaiement","Scarifiage par monticule ou inversion par placeau ou décapage par placeau ET\nDéblaiement des résidus de coupe par placeau","Excavatrice ou débusqueuse ou abatteuse","Taux variable","Taux moyen","d2",756.27770058280055,756]
["Préparation de site","Scarifiage et déblaiement","Scarifiage par monticule ou inversion par placeau ou décapage par placeau ET\nDéblaiement des résidus de coupe par placeau","Excavatrice ou débusqueuse ou abatteuse","Taux variable","Variable 1","d2",26996.690744981912,26997]
["Préparation de site","Scarifiage et déblaiement","Déblaiement des résidus de coupe avec bouteur  avec pelle râteau","Bouteur","Taux fixe","Taux à l'hectare","d2",747.06093263649132,747]
["Préparation de site","Scarifiage et déblaiement","Déblaiement des résidus de coupe avec abatteuse groupeuse après feux","Abatteuse groupeuse","Taux fixe","Taux à l'hectare","d2",829.1236366903197,829]
["Préparation de site","Drainage sylvicole","Milieu dénudé","Excavatrice","Taux fixe","Taux à l'hectare","d2",2292.5306752082033,2293]
["Préparation de site","Drainage sylvicole","Milieu boisé","Excavatrice","Taux fixe","Taux à l'hectare","d2",2547.2239914764577,2547]
["Régénération artificielle","Plantation uniforme et regarni manuel sauf PEH",null,null,"Taux variable",{"$f":"\"$/ Mp  = \"&I21&\" \"&I22&\" * PR + \"&I23&\" / (DE*DS)  + GABARIT\"","v":"$/ Mp  = 106,7 -64,66 * PR + 422277 / (DE*DS)  + GABARIT"}]
["Régénération artificielle","Plantation uniforme et regarni manuel sauf PEH",null,null,"Taux variable","Constante","d3",106.70342876260295,106.7]
["Régénération artificielle","Plantation uniforme et regarni manuel sauf PEH",null,null,"Taux variable","Variable 1","d3",-64.657711245783062,-64.66]
["Régénération artificielle","Plantation uniforme et regarni manuel sauf PEH",null,null,"Taux variable","1/(DE*DS)","d3",422276.86336694559,422277]
["Régénération artificielle","Plantation uniforme et regarni manuel sauf PEH",null,null,"Taux variable","Gabarit 7 : RacN PFD","d3",348.82177105913655,349]
["Régénération artificielle","Plantation uniforme et regarni manuel sauf PEH",null,null,"Taux variable","Gabarit 5 : Rec PFD","d3",296.49304848977334,296]
["Régénération artificielle","Plantation uniforme et regarni manuel sauf PEH",null,null,"Taux variable","Gabarit 4 : Rec 200cc","d3",259.10136032141497,259]
["Régénération artificielle","Plantation uniforme et regarni manuel sauf PEH",null,null,"Taux variable","Gabarit 3 : Rec 45-110","d3",147.64558291822024,148]
["Régénération artificielle","Plantation uniforme et regarni manuel sauf PEH",null,null,"Taux variable","Gabarit 2 : Rec 67-50","d3",86.456610440502331,86]
["Régénération artificielle","Plantation uniforme et regarni manuel sauf PEH",null,null,"Taux variable","Gabarit 1 : Rec 113-25","d3",81.598555185206408,82]
["Régénération artificielle","Plantation et regarni mécanique (Scarificateur-planteur (Bracke P-11a)","1500 plants/ha et +","Récipient 45-110","Taux fixe","Taux à l'hectare","d2",1253.5112029421716,1254]
["Régénération artificielle","Plantation et regarni mécanique (Scarificateur-planteur (Bracke P-11a)","1500 plants/ha et +","Récipient 25-200","Taux fixe","Taux à l'hectare","d2",1280.1067018367364,1280]
["Régénération artificielle","Plantation et regarni mécanique (Scarificateur-planteur (Bracke P-11a)","1499 plants/ha et -","Récipient 45-110","Taux fixe","Taux à l'hectare","d2",1367.2052073553357,1367]
["Régénération artificielle","Plantation et regarni mécanique (Scarificateur-planteur (Bracke P-11a)","1499 plants/ha et -","Récipient 25-200","Taux fixe","Taux à l'hectare","d2",1393.8044681841993,1394]
["Régénération artificielle","Plantation uniforme PEH","Racine nue Plant de forte dimension",null,"Taux fixe","Taux à l'hectare","d2",662.86793947591093,663]
["Régénération artificielle","Plantation par enrichissement","Enrichissement (350p/ha) ou Regarni pins/feuillus (< 799p/ha)","300 plants/ha par puit de lumière","Taux fixe","Taux à l'hectare","d2",714.50483250878767,715]
["Régénération artificielle","Ensemencement","Ensemencement","Terrestre manuel","Taux fixe","Taux à l'hectare","d3",193.59393500247234,194]
["Éducation de peuplement","Dégagement par coupe mécanique","Dégagement mécanique de la régénération","Dénombrement à 1m","Taux variable",{"$f":"\"Taux ($ / ha) = \"&I39&\" + (\"&I40&\" * RECFFE) + (\"&I41&\" * DI) + (\"&I42&\" * MODE)\"","v":"Taux ($ / ha) = 784 + (12,27 * RECFFE) + (0,0044 * DI) + (134,77 * MODE)"}]
["Éducation de peuplement","Dégagement par coupe mécanique","Dégagement mécanique de la régénération","Dénombrement à 1m","Taux variable","Taux moyen","d4",1228.5745709241962,1229]
["Éducation de peuplement","Dégagement par coupe mécanique","Dégagement mécanique de la régénération","Dénombrement à 1m","Taux variable","Variable 1","d4",784.08691860549186,784]
["Éducation de peuplement","Dégagement par coupe mécanique","Dégagement mécanique de la régénération","Dénombrement à 1m","Taux variable","Variable 2","d4",12.267997639940329,12.27]
["Éducation de peuplement","Dégagement par coupe mécanique","Dégagement mécanique de la régénération","Dénombrement à 1m","Taux variable","Variable 3","d4",4.3662144378259857E-3,4.4000000000000003E-3]
["Éducation de peuplement","Dégagement par coupe mécanique","Dégagement mécanique de la régénération","Dénombrement à 1m","Taux variable","Variable 4","d4",134.76693587972642,134.77000000000001]
["Éducation de peuplement","Entretien de la strate gaulis (2 m de hauteur moyenne)","Secteur d'intervention sans choix de tige, soit inter spécifique (par groupe d'essence, résineux / feuillus) et sans espacement ","Gaulis I","Taux variable",{"$f":"\"Taux ($ / ha)  = \"&I45&\" + (\"&I46&\" * DI) - (\"&ABS(I47)&\" * SRLC) * CP\"","v":"Taux ($ / ha)  = 800,57 + (0,0103 * DI) - (195,66 * SRLC) * CP"}]
["Éducation de peuplement","Entretien de la strate gaulis (2 m de hauteur moyenne)","Secteur d'intervention sans choix de tige, soit inter spécifique (par groupe d'essence, résineux / feuillus) et sans espacement ","Gaulis I","Taux variable","Taux moyen","d4",1153.9175577363385,1154]
["Éducation de peuplement","Entretien de la strate gaulis (2 m de hauteur moyenne)","Secteur d'intervention sans choix de tige, soit inter spécifique (par groupe d'essence, résineux / feuillus) et sans espacement ","Gaulis I","Taux variable","Variable 1","d4",800.5717487477599,800.57]
["Éducation de peuplement","Entretien de la strate gaulis (2 m de hauteur moyenne)","Secteur d'intervention sans choix de tige, soit inter spécifique (par groupe d'essence, résineux / feuillus) et sans espacement ","Gaulis I","Taux variable","Variable 2","d4",1.0260536059140842E-2,1.03E-2]
["Éducation de peuplement","Entretien de la strate gaulis (2 m de hauteur moyenne)","Secteur d'intervention sans choix de tige, soit inter spécifique (par groupe d'essence, résineux / feuillus) et sans espacement ","Gaulis I","Taux variable","Variable 3","d4",-195.662106874871,-195.66]
["Éducation de peuplement","Entretien de la strate gaulis (2 m de hauteur moyenne)","Secteur d'intervention sans choix de tige, soit inter spécifique (par groupe d'essence, résineux / feuillus) et sans espacement ","Gaulis II","Taux variable",{"$f":"\"Taux ($/ha) = (\"&I50&\" * ln(DI) -  \"&I51&\") * TP * CP1\"","v":"Taux ($/ha) = (564,33 * ln(DI) -  4362,32) * TP * CP1"}]
["Éducation de peuplement","Entretien de la strate gaulis (2 m de hauteur moyenne)","Secteur d'intervention sans choix de tige, soit inter spécifique (par groupe d'essence, résineux / feuillus) et sans espacement ","Gaulis II","Taux variable","Taux moyen","d4",1291.6870612826415,1292]
["Éducation de peuplement","Entretien de la strate gaulis (2 m de hauteur moyenne)","Secteur d'intervention sans choix de tige, soit inter spécifique (par groupe d'essence, résineux / feuillus) et sans espacement ","Gaulis II","Taux variable","Variable 1","d4",564.33451628699379,564.33000000000004]
["Éducation de peuplement","Entretien de la strate gaulis (2 m de hauteur moyenne)","Secteur d'intervention sans choix de tige, soit inter spécifique (par groupe d'essence, résineux / feuillus) et sans espacement ","Gaulis II","Taux variable","Variable 2","d4",4362.3226107352166,4362.32]
["Éducation de peuplement","Éclaircie précommerciale par puits de lumière",null,null,"Taux variable",{"$f":"\"Taux ($/ha) = \"&I54&\" * DENSTIGE * EXP(\"&I55&\" * HTTIGE) + (\"&I56&\" * DENSTIGE / (\"&I57&\" * DENSITIGE + \"&I58&\") + \"&I59&\" * TAIL + \"&I60","v":"Taux ($/ha) = 0,4482 * DENSTIGE * EXP(0,1452 * HTTIGE) + (37 * DENSTIGE / (0,1204 * DENSITIGE + 98,63) + 42,92 * TAIL + 781,57"},null,0,0]
["Éducation de peuplement","Éclaircie précommerciale par puits de lumière",null,null,"Taux variable","Taux moyen (Exécution- Martelage-Taille)","d4",1338.6782166683086,1339]
["Éducation de peuplement","Éclaircie précommerciale par puits de lumière",null,null,"Taux variable","Variable 1","d4",0.44816586745228765,0.44819999999999999]
["Éducation de peuplement","Éclaircie précommerciale par puits de lumière",null,null,"Taux variable","Variable 2",null,null,0.1452]
["Éducation de peuplement","Éclaircie précommerciale par puits de lumière",null,null,"Taux variable","Variable 3 Martelage","d5",36.998687425211067,37]
["Éducation de peuplement","Éclaircie précommerciale par puits de lumière",null,null,"Taux variable","Variable 4 Martelage","d5",0.12036897310339933,0.12039999999999999]
["Éducation de peuplement","Éclaircie précommerciale par puits de lumière",null,null,"Taux variable","Variable 5 Martelage","d5",98.632178837555884,98.63]
["Éducation de peuplement","Éclaircie précommerciale par puits de lumière",null,null,"Taux variable","Variable 6 Taille","d5",42.918477413244823,42.92]
["Éducation de peuplement","Éclaircie précommerciale par puits de lumière",null,null,"Taux variable","Variable 7","d5",781.56821909646305,781.57]
["Éducation de peuplement","Éclaircie précommerciale par puits de lumière",null,null,"Taux variable","Taux (Exécution- Martelage-Taille)","d4",127.1991885907,127]
["Éducation de peuplement","Éclaircie précommerciale par puits de lumière",null,null,"Taux variable","Exécution","d4",957.13149441550001,957]
["Éducation de peuplement","Éclaircie précommerciale par puits de lumière",null,null,"Taux variable","Martelage","d4",146.23666714980001,146]
["Éducation de peuplement","Éclaircie précommerciale par puits de lumière",null,null,"Taux variable","Taille","d4",137.95811995899999,137.96]
["Éducation de peuplement","Éclaircie précommerciale par puits de lumière",null,null,"Constante","EPC",null,633.02093356854448,633.02]
["Éducation de peuplement","Éclaircie précommerciale par puits de lumière",null,null,"Constante","Martelage",null,30.83223952100921,30.83]
["Éducation de peuplement","Éclaircie précommerciale par puits de lumière",null,null,"Constante","Taille",null,117.71504600690936,117.72]
["Éducation de peuplement","Élagage pour fins de qualité",null,null,"Taux variable",{"$f":"\"Taux ($/ha) = ((\"&I70&\" * BRAN + \"&I71&\" + \"&I72&\" * LONGELA) + ( - \"&I73&\" * ln(DENSELA) + \"&I74&\")) * DENSELA) + MP  + \"&I77","v":"Taux ($/ha) = ((0,0239 * BRAN + 0,3472 + 0,5781 * LONGELA) + ( - 0,0577 * ln(DENSELA) + 0,4889)) * DENSELA) + MP  + 552,99"},null,0,0]
["Éducation de peuplement","Élagage pour fins de qualité",null,null,"Taux variable","Taux moyen","d4",1443.1334364180707,1443]
["Éducation de peuplement","Élagage pour fins de qualité",null,null,"Taux variable","Variable 1","d4",2.3866023301698416E-2,2.3900000000000001E-2]
["Éducation de peuplement","Élagage pour fins de qualité",null,null,"Taux variable","Variable 2","d4",0.34716332432031555,0.34720000000000001]
["Éducation de peuplement","Élagage pour fins de qualité",null,null,"Taux variable","Variable 3","d4",0.57813986203041134,0.57809999999999995]
["Éducation de peuplement","Élagage pour fins de qualité",null,null,"Taux variable","Variable 4","d4",5.7744134427523991E-2,5.7700000000000001E-2]
["Éducation de peuplement","Élagage pour fins de qualité",null,null,"Taux variable","Variable 5","d4",0.48886707394669915,0.4889]
["Éducation de peuplement","Élagage pour fins de qualité",null,null,"Taux variable","Variable 6 Martelage","d5",116.48126747442721,116.48]
["Éducation de peuplement","Élagage pour fins de qualité",null,null,"Taux variable","Variable 7 Martelage","d5",174.35632343825816,174.36]
["Éducation de peuplement","Élagage pour fins de qualité",null,null,"Taux variable","Variable 8","d4",552.99322284423147,552.99]
["Éducation de peuplement","Taille Phytosanitaire",null,null,"Taux variable",{"$f":"\"Taux ($/ha) = ((\"&I80&\" * BRAN + \"&I81&\" + ( - \"&I82&\" * ln(DENSELA) + \"&I83&\")) * DENSELA) + \"&I84&\" * DENSCO + \"&I85&\" * DENSTF  + \"&I86","v":"Taux ($/ha) = ((0,0185 * BRAN + 0,0885 + ( - 0,0558 * ln(DENSELA) + 0,4731)) * DENSELA) + 0,1 * DENSCO + 0,4471 * DENSTF  + 534,57"},null,0,0]
["Éducation de peuplement","Taille Phytosanitaire",null,null,"Taux variable","Taux moyen","d4",469.06191480325032,469]
["Éducation de peuplement","Taille Phytosanitaire",null,null,"Taux variable","Variable 1","d4",1.845663609479271E-2,1.8499999999999999E-2]
["Éducation de peuplement","Taille Phytosanitaire",null,null,"Taux variable","Variable 2","d4",8.8456804698213834E-2,8.8499999999999995E-2]
["Éducation de peuplement","Taille Phytosanitaire",null,null,"Taux variable","Variable 3","d4",5.5820070140348697E-2,5.5800000000000002E-2]
["Éducation de peuplement","Taille Phytosanitaire",null,null,"Taux variable","Variable 4","d4",0.47312011062505216,0.47310000000000002]
["Éducation de peuplement","Taille Phytosanitaire",null,null,"Taux variable","Variable 5","d4",0.10061117480941877,0.1]
["Éducation de peuplement","Taille Phytosanitaire",null,null,"Taux variable","Variable 6","d4",0.44712326344275261,0.4471]
["Éducation de peuplement","Taille Phytosanitaire",null,null,"Taux variable","Variable 7","d4",534.56720396503283,534.57000000000005]
["Travaux technique","Valeur de vérification technique","Inventaire après traitement","Traitement de préparation de site mécanisé","Taux variable","Constante","d5",36.96658568225083,37]
["Travaux technique","Valeur de vérification technique","Inventaire après traitement","Traitement de préparation de site mécanisé","Taux variable","Critère 1","d5",2.1556772297113396,2.16]
["Travaux technique","Valeur de vérification technique","Inventaire après traitement","Traitement de préparation de site manuelle","Taux fixe",null,"d5",21.868245718370957,22]
["Travaux technique","Valeur de vérification technique","Inventaire après traitement","Traitement de préparation de site drainage sylvicole","Taux fixe",null,"d5",40.751295609516035,41]
["Travaux technique","Valeur de vérification technique","Inventaire après traitement","Traitement de régénération artificielle","Taux variable","Constante","d5",35.311966795657433,35]
["Travaux technique","Valeur de vérification technique","Inventaire après traitement","Traitement de régénération artificielle","Taux variable","Variable 1",null,0.44138681691894605,0.44]
["Travaux technique","Valeur de vérification technique","Inventaire après traitement","Traitement d'éducation","Taux variable","Constante","d5",88.680200301217511,89]
["Travaux technique","Valeur de vérification technique","Inventaire après traitement","Traitement d'éducation","Taux variable","Variable 3","d5",6.6499784498234069,6.65]
["Travaux technique","Valeur de vérification technique","Inventaire après traitement","Traitement d'éducation","Taux variable","Variable 1","d5",3.3249892249117035,3.32]
["Travaux technique","Valeur de vérification technique","Inventaire après traitement","Traitement d'éducation","Taux variable","Variable 2","d5",0.66499784498234049,0.66]
["Travaux technique","Valeur de planification","Recherche de secteur d'intervention potentiel (terrain)","Traitement de préparation de site et régénération artificielle","Taux fixe",null,"d5",4.7755295419558594,5]
["Travaux technique","Valeur de planification","Recherche de secteur d'intervention potentiel (terrain)","Traitement d'éducation","Taux fixe",null,"d5",9.0447900512087198,9]
["Travaux technique","Valeur de planification","Recherche de secteur d'intervention trouvé (terrain)","Traitement de préparation de site et régénération artificielle","Taux fixe",null,"d5",11.108362761101567,11]
["Travaux technique","Valeur de planification","Recherche de secteur d'intervention trouvé (terrain)","Traitement d'éducation","Taux fixe",null,"d5",16.070676186508546,16]
["Travaux technique","Valeur de planification","Confection du plan de sondage",null,"Taux fixe",null,"d5",1.8676945725945342,2]
["Travaux technique","Valeur de planification","Inventaire avant traitement","Traitement d'éducation (dégagement, nettoiement et éclaircie précommerciale)","Taux variable",{"$f":"\"Taux ($/PE) = \"&I103&\" +  \"&I104&\" * (NCT) + \"&I105&\" * (NCP) + \"&I106&\" * (TE)\"","v":"Taux ($/PE) = 93 +  0,64 * (NCT) + 3,19 * (NCP) + 6,39 * (TE)"}]
["Travaux technique","Valeur de planification","Inventaire avant traitement","Traitement d'éducation (dégagement, nettoiement et éclaircie précommerciale)","Taux variable","Variable 1","d5",92.970869816831794,93]
["Travaux technique","Valeur de planification","Inventaire avant traitement","Traitement d'éducation (dégagement, nettoiement et éclaircie précommerciale)","Taux variable","Variable 2","d5",0.63547311819398955,0.64]
["Travaux technique","Valeur de planification","Inventaire avant traitement","Traitement d'éducation (dégagement, nettoiement et éclaircie précommerciale)","Taux variable","Variable 3","d5",3.1940885677645263,3.19]
["Travaux technique","Valeur de planification","Inventaire avant traitement","Traitement d'éducation (dégagement, nettoiement et éclaircie précommerciale)","Taux variable","Variable 4","d5",6.3881771355290526,6.39]
["Travaux technique","Valeur de planification","Inventaire avant traitement","Traitement de préparation de site (sauf drainage sylvicole) et régénération artificielle","Taux fixe",null,"d5",30.383395481109201,30]
["Travaux technique","Valeur de planification","Inventaire avant traitement","Traitement de préparation de site (drainage sylvicole - plan et devis)","Taux fixe",null,"d5",29.424825687000769,29]
["Travaux technique","Valeur de planification","Inventaire avant traitement","Traitement d'éducation (élagage et taille)","Taux fixe",null,"d5",42.502525992334448,43]
["Travaux technique","Valeur de planification","Délimitation de secteurs","Traitement de préparation de site et régénération artificielle","Taux fixe",null,"d5",27.645659724130585,28]
["Travaux technique","Valeur de planification","Délimitation de secteurs","Traitement d'éducation","Taux fixe",null,"d5",135.75101505911289,136]
["Éclaircie commerciale","Première éclaircie commerciale de plantation résineuse réservé aux entreprises d'aménagement forestier",null,null,"Taux variable",{"$f":"\"Taux ($/m3) = (\"&I114&\" * VREC exp \"&I113&\" ) + \"&I115","v":"Taux ($/m3) = (4,797 * VREC exp -0,682 ) + 8,611"},null,36.75,36.75]
["Éclaircie commerciale","Première éclaircie commerciale de plantation résineuse réservé aux entreprises d'aménagement forestier",null,null,null,null,"d5",-0.68200000000000005,-0.68200000000000005]
["Éclaircie commerciale","Première éclaircie commerciale de plantation résineuse réservé aux entreprises d'aménagement forestier",null,null,null,"Variable 1","d5",4.7969999999999997,4.7969999999999997]
["Éclaircie commerciale","Première éclaircie commerciale de plantation résineuse réservé aux entreprises d'aménagement forestier",null,null,null,"Variable 2","d5",8.6110000000000007,8.6110000000000007]
["Travaux technique","Valeur des activités liées au martelage pour les traitements commerciaux","Délimitation de secteurs",null,"Taux fixe",null,"d5",76.111791119006227,76]
["Travaux technique","Valeur des activités liées au martelage pour les traitements commerciaux","Martelage",null,"Taux variable","Taux moyen","d5",76.111791119006227,76]
["Travaux technique","Valeur des activités liées au martelage pour les traitements commerciaux","Martelage",null,"Taux variable","Constante","d5",172.34130307127037,172.34]
["Travaux technique","Valeur des activités liées au martelage pour les traitements commerciaux","Martelage",null,"Taux variable","Variable 1","d5",42.637167067885528,42.64]
["Travaux technique","Valeur des activités liées au martelage pour les traitements commerciaux","Martelage",null,"Taux variable","Variable 2","d5",4.8897864187375504,4.8899999999999997]
["Travaux technique","Valeur des activités liées au martelage pour les traitements commerciaux","Martelage en éclaircie commerciale en peuplement résineux (ou mixte à tendance résineuse)","Martelage négatif","Taux fixe",null,"d5",214.2134324691786,214]
["Travaux technique","Valeur des activités liées au martelage pour les traitements commerciaux","Maretelage en éclaircie commerciale en peuplement résineux (ou mixte à tendance résineuse)","Martelage positif","Taux fixe",null,"d5",93.534912634912786,94]
["Travaux technique","Valeur des activités liées au martelage pour les traitements commerciaux","Inventaire après martelage",null,"Taux fixe",null,"d5",23.040676420205596,23]

{"sheet":"Traitements admissibles","index":8,"n_rows":212,"n_cols":11,"rows_kept":212,"cut":false,"hidden":true,"merged":[]}
["Famille","Traitement ","Variante","Modalité sylvicole","Phase","Code DICA","Code RATF","Description","Admissibilité","Unité","Type de taux"]
["Traitements de préparation de terrain","Déblaiement de la végétation et des résidus de coupes",null,"Partiel",null,"DEBL-PART","BPRPA","Déblaiement des résidus de coupe, bouteur avec pelle et râteau, partiel","O","ha","Fixe"]
["Traitements de préparation de terrain","Déblaiement de la végétation et des résidus de coupes",null,"Partiel",null,"DEBL-PART","AGRP","Déblaiement des résidus de coupe, abatteuse groupeuse, après feux, partiel","O","ha","Fixe"]
["Traitements de préparation de terrain","Déblaiement de la végétation et des résidus de coupes",null,"Partiel",null,"DEBL-PART","DRDVP","Déblaiement des résidus de coupe avec débusqueuse, partiel, Taux variable","O","ha","Formule"]
["Traitements de préparation de terrain","Déblaiement de la végétation et des résidus de coupes",null,"Partiel",null,"DEBL-PART","DREVP","Déblaiement des résidus de coupe avec excavatrice, partiel, Taux variable","O","ha","Formule"]
["Traitements de préparation de terrain","Déblaiement de la végétation et des résidus de coupes",null,"Partiel",null,"DEBL-PART","DRAVP","Déblaiement des résidus des coupes avec abatteuse, partiel, Taux variable","O","ha","Formule"]
["Traitements de préparation de terrain","Déblaiement de la végétation et des résidus de coupes",null,"En plein",null,"DEBL-PLEIN","BPR","Déblaiement des résidus de coupe avec bouteur pelle râteau, en plein","O","ha","Fixe"]
["Traitements de préparation de terrain","Déblaiement de la végétation et des résidus de coupes",null,"En plein",null,"DEBL-PLEIN","AGR","Déblaiement des résidus de coupe avec abatteuse groupeuse, après feux, en plein","O","ha","Fixe"]
["Traitements de préparation de terrain","Déblaiement de la végétation et des résidus de coupes",null,"En plein",null,"DEBL-PLEIN","DRDV","Déblaiement des résidus de coupe avec débusqueuse, en plein, Taux variable","O","ha","Formule"]
["Traitements de préparation de terrain","Déblaiement de la végétation et des résidus de coupes",null,"En plein",null,"DEBL-PLEIN","DREV","Déblaiement des résidus de coupe avec excavatrice, en plein, Taux variable","O","ha","Formule"]
["Traitements de préparation de terrain","Déblaiement de la végétation et des résidus de coupes",null,"En plein",null,"DEBL-PLEIN","DRAV","Déblaiement des résidus des coupes avec abatteuse, en plein, Taux variable","O","ha","Formule"]
["Traitements de préparation de terrain","Élimination des tiges résiduelles",null,null,null,"ETR","ETR","Élimination des tiges résiduelles","N","ha","Aucun"]
["Traitements de préparation de terrain","Débroussaillement de la végétation et des résidus de coupes",null,null,null,"DEBR","DEBR","Débroussaillement de la végétation et des résidus de coupes","N","ha","Aucun"]
["Traitements de préparation de terrain","Brûlage dirigé",null,null,null,"BRU","BRU","Brûlage dirigé","N","ha","Aucun"]
["Traitements de préparation de terrain","Scarifiage","Sillon","Partiel",null,"SCA_SILL-PART","TTSP","Scarifiage par sillon, Scarificateur à disque TTS passifs, partiel","O","ha","Fixe"]
["Traitements de préparation de terrain","Scarifiage","Sillon","Partiel",null,"SCA_SILL-PART","DOP","Scarifiage par sillon, Scarificateur à disques hydrauliques, Donaren, partiel","O","ha","Fixe"]
["Traitements de préparation de terrain","Scarifiage","Sillon","Partiel",null,"SCA_SILL-PART","EQSLYP","Scarifiage par sillon, Scarificateur à disques hydrauliques, Equisly, partiel","O","ha","Fixe"]
["Traitements de préparation de terrain","Scarifiage","Sillon","Partiel",null,"SCA_SILL-PART","DHP","Scarifiage par sillon, Scarificateur à disques hydrauliques, TTS hydraulique, partiel","O","ha","Fixe"]
["Traitements de préparation de terrain","Scarifiage","Sillon","Partiel",null,"SCA_SILL-PART","REQP","Scarifiage par sillon, Scarificateur à disques hydrauliques, Requin, partiel","O","ha","Fixe"]
["Traitements de préparation de terrain","Scarifiage","Sillon","Partiel",null,"SCA_SILL-PART","DHADP","Scarifiage par sillon, Scarificateur à disques hydrauliques, Bracke T-26 avec débardeur, partiel","O","ha","Fixe"]
["Traitements de préparation de terrain","Scarifiage","Sillon","Partiel",null,"SCA_SILL-PART","DHAPP","Scarifiage par sillon, Scarificateur à disques hydrauliques, Bracke T-26, avec porteur, partiel","O","ha","Fixe"]
["Traitements de préparation de terrain","Scarifiage","Sillon","Partiel",null,"SCA_SILL-PART","WADP","Scarifiage par sillon, Scarificateur à cônes hydrauliques, type Wadell, partiel","O","ha","Fixe"]
["Traitements de préparation de terrain","Scarifiage","Sillon","Partiel",null,"SCA_SILL-PART","ROUECAP","Scarifiage par sillon, Rouleau écraseur et scarificateur à disques passifs, partiel","O","ha","Fixe"]
["Traitements de préparation de terrain","Scarifiage","Sillon","En plein",null,"SCA_SILL-PLEIN","TTS","Scarifiage par sillon, Scarificateur à disque TTS passifs, en plein","O","ha","Fixe"]
["Traitements de préparation de terrain","Scarifiage","Sillon","En plein",null,"SCA_SILL-PLEIN","DO","Scarifiage par sillon, Scarificateur à disques hydrauliques, Donaren, en plein","O","ha","Fixe"]
["Traitements de préparation de terrain","Scarifiage","Sillon","En plein",null,"SCA_SILL-PLEIN","EQSLY","Scarifiage par sillon, Scarificateur à disques hydrauliques, Equisly, en plein","O","ha","Fixe"]
["Traitements de préparation de terrain","Scarifiage","Sillon","En plein",null,"SCA_SILL-PLEIN","DH","Scarifiage par sillon, Scarificateur à disques hydrauliques, TTS hydraulique, en plein","O","ha","Fixe"]
["Traitements de préparation de terrain","Scarifiage","Sillon","En plein",null,"SCA_SILL-PLEIN","REQ","Scarifiage par sillon, Scarificateur à disques hydrauliques, Requin, en plein","O","ha","Fixe"]
["Traitements de préparation de terrain","Scarifiage","Sillon","En plein",null,"SCA_SILL-PLEIN","DHAD","Scarifiage par sillon, Scarificateur à disques hydrauliques, Bracke T-26, avec débardeur, en plein","O","ha","Fixe"]
["Traitements de préparation de terrain","Scarifiage","Sillon","En plein",null,"SCA_SILL-PLEIN","DHAP","Scarifiage par sillon, Scarificateur à disques hydrauliques, Bracke T-26, avec porteur, en plein","O","ha","Fixe"]
["Traitements de préparation de terrain","Scarifiage","Sillon","En plein",null,"SCA_SILL-PLEIN","WAD","Scarifiage par sillon, Scarificateur à cônes hydrauliques, type Wadell, en plein","O","ha","Fixe"]
["Traitements de préparation de terrain","Scarifiage","Sillon","En plein",null,"SCA_SILL-PLEIN","ROUECA","Scarifiage par sillon, Rouleau écraseur et scarificateur à disques passifs, en plein","O","ha","Fixe"]
["Traitements de préparation de terrain","Scarifiage","Hersage / labour","Partiel",null,"SCA_HERS-PART","HERSEP","Herse forestière, partiel","O","ha","Fixe"]
["Traitements de préparation de terrain","Scarifiage","Hersage / labour","En plein",null,"SCA_HERS-PLEIN","HERSE","Herse forestière","O","ha","Fixe"]
["Traitements de préparation de terrain","Scarifiage","Inversion par placeau","Partiel",null,"SCA_INV-PART","SCAIPVP","Scarifiage inversion par placeau avec excavatrice, partiel, taux variable","O","ha","Formule"]
["Traitements de préparation de terrain","Scarifiage","Inversion par placeau","En plein",null,"SCA_INV-PLEIN","SCAIPV","Scarifiage inversion par placeau avec excavatrice, taux variable","O","ha","Formule"]
["Traitements de préparation de terrain","Scarifiage","Mixage par placeau","Partiel",null,"SCA_MIX-PART","TAUPIOFP","Scarifiage en mixage par placeau, taupe ou pioche forestière, partiel","O","ha","Fixe"]
["Traitements de préparation de terrain","Scarifiage","Mixage par placeau","En plein",null,"SCA_MIX-PLEIN","TAUPIOF","Taupe ou pioche forestière","O","ha","Fixe"]
["Traitements de préparation de terrain","Scarifiage","Décapage par placeau","Partiel",null,"SCA_DECAP-PART","SCAPVP","Scarifiage décapage par placeau, avec excavatrice, partiel, taux variable","O","ha","Formule"]
["Traitements de préparation de terrain","Scarifiage","Décapage par placeau","En plein",null,"SCA_DECAP-PLEIN","SCAPV","Scarifiage décapage par placeau, avec excavatrice, taux variable","O","ha","Formule"]
["Traitements de préparation de terrain","Scarifiage","Monticule","Partiel",null,"SCA_MONT-PART","BRM36DP","Scarifiage en monticule avec scarificateur, Bracke M-36a avec débardeur, partiel","O","ha","Fixe"]
["Traitements de préparation de terrain","Scarifiage","Monticule","Partiel",null,"SCA_MONT-PART","BRM36PP","Scarifiage en monticule avec scarificateur, Bracke M-36a avec porteur, partiel","O","ha","Fixe"]
["Traitements de préparation de terrain","Scarifiage","Monticule","Partiel",null,"SCA_MONT-PART","SCAMVP","Scarifiage en monticule avec excavatrice, taux variable, partiel","O","ha","Formule"]
["Traitements de préparation de terrain","Scarifiage","Monticule","En plein",null,"SCA_MONT-PLEIN","BRM36D","Scarifiage en monticule avec scarificateur, Bracke M-36a avec débardeur","O","ha","Fixe"]
["Traitements de préparation de terrain","Scarifiage","Monticule","En plein",null,"SCA_MONT-PLEIN","BRM36P","Scarifiage en monticule avec scarificateur, Bracke M-36a avec porteur","O","ha","Fixe"]
["Traitements de préparation de terrain","Scarifiage","Monticule","En plein",null,"SCA_MONT-PLEIN","SCAMV","Scarifiage en monticule avec excavatrice, taux variable","O","ha","Formule"]
["Traitements de préparation de terrain","Amendement","Fertilisation",null,null,"AMEND_FER","AMENDFER","Amendement, fertilisation","O","ha","Attente"]
["Traitements de préparation de terrain","Amendement","Chaulage",null,null,"AMEND_CHAUX","AMENDCHAU","Amendement, Chaulage","O","ha","Attente"]
["Traitements de préparation de terrain","Amendement","Amendement organique",null,null,"AMEND_ORG","AMENDORG","Amendement, organique","O","ha","Attente"]
["Traitements de préparation de terrain","Drainage","D'appoint",null,null,"DR_APP","DRAPPMD","Drainage d'appoint, milieu dénudé","O","km ou Mm³","Fixe"]
["Traitements de préparation de terrain","Drainage","D'appoint",null,null,"DR_APP","DRAPPMB","Drainage d'appoint, milieu boisé","O","km ou Mm³","Fixe"]
["Traitements de préparation de terrain","Drainage","Systématique",null,null,"DR_SYS","DRSYSMD","Drainage systématique, milieu dénudé","O","km ou Mm³","Fixe"]
["Traitements de préparation de terrain","Drainage","Systématique",null,null,"DR_SYS","DRSYSMB","Drainage systématique, milieu boisé","O","km ou Mm³","Fixe"]
["Traitements de la régénération","Plantation","Uniforme ","Mélange d'essences",null,"PL_U-MEL","P25","Plantation 113-25","O","Mplants","Formule"]
["Traitements de la régénération","Plantation","Uniforme ","Mélange d'essences",null,"PL_U-MEL","P50","Plantation 67-50","O","Mplants","Formule"]
["Traitements de la régénération","Plantation","Uniforme ","Mélange d'essences",null,"PL_U-MEL","P110","Plantation 45-110","O","Mplants","Formule"]
["Traitements de la régénération","Plantation","Uniforme ","Mélange d'essences",null,"PL_U-MEL","P200","Plantation 25-200","O","Mplants","Formule"]
["Traitements de la régénération","Plantation","Uniforme ","Mélange d'essences",null,"PL_U-MEL","PPFDBAC","Plantation PFD livré en bac","O","Mplants","Formule"]
["Traitements de la régénération","Plantation","Uniforme ","Mélange d'essences",null,"PL_U-MEL","PPFDR","Plantation PFD livré en récipient","O","Mplants","Formule"]
["Traitements de la régénération","Plantation","Uniforme ","Mélange d'essences",null,"PL_U-MEL","PPFDRN","Plantation PFD en racines nues","O","Mplants","Formule"]
["Traitements de la régénération","Plantation","Uniforme ","Mélange d'essences",null,"PL_U-MEL","PLGE","Plantation uniforme et regarni manuel sauf PEH","N","Mplants","Formule"]
["Traitements de la régénération","Plantation","Uniforme ","Mélange d'essences",null,"PL_U-MEL","SCAPL110P","Plantation mécanique 45-110,  Scarificateur planteur Bracke P-11a, 1500 plants et +","O","Mplants","Fixe"]
["Traitements de la régénération","Plantation","Uniforme ","Mélange d'essences",null,"PL_U-MEL","SCAPL200P","Plantation mécanique 25-200,  Scarificateur planteur Bracke P-11a, 1500 plants et +","O","Mplants","Fixe"]
["Traitements de la régénération","Plantation","Uniforme ","Monospécifique",null,"PL_U-MONO","P25","Plantation 113-25","O","Mplants","Formule"]
["Traitements de la régénération","Plantation","Uniforme ","Monospécifique",null,"PL_U-MONO","P50","Plantation 67-50","O","Mplants","Formule"]
["Traitements de la régénération","Plantation","Uniforme ","Monospécifique",null,"PL_U-MONO","P110","Plantation 45-110","O","Mplants","Formule"]
["Traitements de la régénération","Plantation","Uniforme ","Monospécifique",null,"PL_U-MONO","P200","Plantation 25-200","O","Mplants","Formule"]
["Traitements de la régénération","Plantation","Uniforme ","Monospécifique",null,"PL_U-MONO","PPFDBAC","Plantation PFD livré en bac","O","Mplants","Formule"]
["Traitements de la régénération","Plantation","Uniforme ","Monospécifique",null,"PL_U-MONO","PPFDR","Plantation PFD livré en récipient","O","Mplants","Formule"]
["Traitements de la régénération","Plantation","Uniforme ","Monospécifique",null,"PL_U-MONO","PPFDRN","Plantation PFD en racines nues","O","Mplants","Formule"]
["Traitements de la régénération","Plantation","Uniforme ","Monospécifique",null,"PL_U-MONO","PLGE","Plantation uniforme et regarni manuel sauf PEH","N","Mplants","Formule"]
["Traitements de la régénération","Plantation","Uniforme ","Monospécifique",null,"PL_U-MONO","PPHBO","Plantation uniforme de peuplier hybride","O","Mplants","Fixe"]
["Traitements de la régénération","Plantation","Uniforme ","Monospécifique",null,"PL_U-MONO","SCAPL110P","Plantation mécanique 45-110,  Scarificateur planteur Bracke P-11a, 1500 plants et +","O","Mplants","Fixe"]
["Traitements de la régénération","Plantation","Uniforme ","Monospécifique",null,"PL_U-MONO","SCAPL200P","Plantation mécanique 25-200,  Scarificateur planteur Bracke P-11a, 1500 plants et +","O","Mplants","Fixe"]
["Traitements de la régénération","Plantation","Regarni","Mélange d'essences",null,"PL_REG-MEL","RR25","Regarni 113-25","O","Mplants","Formule"]
["Traitements de la régénération","Plantation","Regarni","Mélange d'essences",null,"PL_REG-MEL","RR50","Regarni 67-50","O","Mplants","Formule"]
["Traitements de la régénération","Plantation","Regarni","Mélange d'essences",null,"PL_REG-MEL","RR110","Regarni 45-110","O","Mplants","Formule"]
["Traitements de la régénération","Plantation","Regarni","Mélange d'essences",null,"PL_REG-MEL","RR200","Regarni 25-200","O","Mplants","Formule"]
["Traitements de la régénération","Plantation","Regarni","Mélange d'essences",null,"PL_REG-MEL","RPFDBAC","Regarni PFD livré en bac","O","Mplants","Formule"]
["Traitements de la régénération","Plantation","Regarni","Mélange d'essences",null,"PL_REG-MEL","RPFDR","Regarni PFD livré en récipient","O","Mplants","Formule"]
["Traitements de la régénération","Plantation","Regarni","Mélange d'essences",null,"PL_REG-MEL","RPFDRN","Regarni PFD en racines nues","O","Mplants","Formule"]
["Traitements de la régénération","Plantation","Regarni","Mélange d'essences",null,"PL_REG-MEL","PLGE","Plantation uniforme et regarni manuel sauf PEH","N","Mplants","Formule"]
["Traitements de la régénération","Plantation","Regarni","Mélange d'essences",null,"PL_REG-MEL","SCAPL110R","Regarni mécanique 45-110,  Scarificateur planteur Bracke P-11a, 1499 plants et -","O","Mplants","Fixe"]
["Traitements de la régénération","Plantation","Regarni","Mélange d'essences",null,"PL_REG-MEL","SCAPL200R","Regarni mécanique 25-200,  Scarificateur planteur Bracke P-11a, 1499 plants et -","O","Mplants","Fixe"]
["Traitements de la régénération","Plantation","Regarni","Monospécifique",null,"PL_REG-MONO","RR25","Regarni 113-25","O","Mplants","Formule"]
["Traitements de la régénération","Plantation","Regarni","Monospécifique",null,"PL_REG-MONO","RR50","Regarni 67-50","O","Mplants","Formule"]
["Traitements de la régénération","Plantation","Regarni","Monospécifique",null,"PL_REG-MONO","RR110","Regarni 45-110","O","Mplants","Formule"]
["Traitements de la régénération","Plantation","Regarni","Monospécifique",null,"PL_REG-MONO","RR200","Regarni 25-200","O","Mplants","Formule"]
["Traitements de la régénération","Plantation","Regarni","Monospécifique",null,"PL_REG-MONO","RPFDBAC","Regarni PFD livré en bac","O","Mplants","Formule"]
["Traitements de la régénération","Plantation","Regarni","Monospécifique",null,"PL_REG-MONO","RPFDR","Regarni PFD livré en récipient","O","Mplants","Formule"]
["Traitements de la régénération","Plantation","Regarni","Monospécifique",null,"PL_REG-MONO","RPFDRN","Regarni PFD en racines nues","O","Mplants","Formule"]
["Traitements de la régénération","Plantation","Regarni","Monospécifique",null,"PL_REG-MONO","PLGE","Plantation uniforme et regarni manuel sauf PEH","N","Mplants","Formule"]
["Traitements de la régénération","Plantation","Regarni","Monospécifique",null,"PL_REG-MONO","SCAPL110R","Regarni mécanique 45-110,  Scarificateur planteur Bracke P-11a, 1499 plants et -","O","Mplants","Fixe"]
["Traitements de la régénération","Plantation","Regarni","Monospécifique",null,"PL_REG-MONO","SCAPL200R","Regarni mécanique 25-200,  Scarificateur planteur Bracke P-11a, 1499 plants et -","O","Mplants","Fixe"]
["Traitements de la régénération","Plantation","Enrichissement","Mélange d'essences",null,"PL_ENR-MEL","ENR","Enrichissement et regarni de feuillus et de pins","O","Mplants","Fixe"]
["Traitements de la régénération","Plantation","Enrichissement","Monospécifique",null,"PL_ENR-MONO","ENR","Enrichissement et regarni de feuillus et de pins","O","Mplants","Fixe"]
["Traitements de la régénération","Plantation","Système agroforestier","Mélange d'essences",null,"PL_AGRO-MEL","P25","Plantation 113-25","O","Mplants","Formule"]
["Traitements de la régénération","Plantation","Système agroforestier","Mélange d'essences",null,"PL_AGRO-MEL","P50","Plantation 67-50","O","Mplants","Formule"]
["Traitements de la régénération","Plantation","Système agroforestier","Mélange d'essences",null,"PL_AGRO-MEL","P110","Plantation 45-110","O","Mplants","Formule"]
["Traitements de la régénération","Plantation","Système agroforestier","Mélange d'essences",null,"PL_AGRO-MEL","P200","Plantation 25-200","O","Mplants","Formule"]
["Traitements de la régénération","Plantation","Système agroforestier","Mélange d'essences",null,"PL_AGRO-MEL","PPFDBAC","Plantation PFD livré en bac","O","Mplants","Formule"]
["Traitements de la régénération","Plantation","Système agroforestier","Mélange d'essences",null,"PL_AGRO-MEL","PPFDR","Plantation PFD livré en récipient","O","Mplants","Formule"]
["Traitements de la régénération","Plantation","Système agroforestier","Mélange d'essences",null,"PL_AGRO-MEL","PPFDRN","Plantation PFD en racines nues","O","Mplants","Formule"]
["Traitements de la régénération","Plantation","Système agroforestier","Mélange d'essences",null,"PL_AGRO-MEL","PLGE","Plantation uniforme et regarni manuel sauf PEH","N","Mplants","Formule"]
["Traitements de la régénération","Plantation","Système agroforestier","Mélange d'essences",null,"PL_AGRO-MEL","SCAPL110P","Plantation mécanique 45-110,  Scarificateur planteur Bracke P-11a, 1500 plants et +","O","Mplants","Fixe"]
["Traitements de la régénération","Plantation","Système agroforestier","Mélange d'essences",null,"PL_AGRO-MEL","SCAPL200P","Plantation mécanique 25-200,  Scarificateur planteur Bracke P-11a, 1500 plants et +","O","Mplants","Fixe"]
["Traitements de la régénération","Plantation","Système agroforestier","Monospécifique",null,"PL_AGRO-MONO","P25","Plantation 113-25","O","Mplants","Formule"]
["Traitements de la régénération","Plantation","Système agroforestier","Monospécifique",null,"PL_AGRO-MONO","P50","Plantation 67-50","O","Mplants","Formule"]
["Traitements de la régénération","Plantation","Système agroforestier","Monospécifique",null,"PL_AGRO-MONO","P110","Plantation 45-110","O","Mplants","Formule"]
["Traitements de la régénération","Plantation","Système agroforestier","Monospécifique",null,"PL_AGRO-MONO","P200","Plantation 25-200","O","Mplants","Formule"]
["Traitements de la régénération","Plantation","Système agroforestier","Monospécifique",null,"PL_AGRO-MONO","PPFDBAC","Plantation PFD livré en bac","O","Mplants","Formule"]
["Traitements de la régénération","Plantation","Système agroforestier","Monospécifique",null,"PL_AGRO-MONO","PPFDR","Plantation PFD livré en récipient","O","Mplants","Formule"]
["Traitements de la régénération","Plantation","Système agroforestier","Monospécifique",null,"PL_AGRO-MONO","PPFDRN","Plantation PFD en racines nues","O","Mplants","Formule"]
["Traitements de la régénération","Plantation","Système agroforestier","Monospécifique",null,"PL_AGRO-MONO","PLGE","Plantation uniforme et regarni manuel sauf PEH","N","Mplants","Formule"]
["Traitements de la régénération","Plantation","Système agroforestier","Monospécifique",null,"PL_AGRO-MONO","PPHBO","Plantation uniforme de peuplier hybride","O","Mplants","Fixe"]
["Traitements de la régénération","Plantation","Système agroforestier","Monospécifique",null,"PL_AGRO-MONO","SCAPL110P","Plantation mécanique 45-110,  Scarificateur planteur Bracke P-11a, 1500 plants et +","O","Mplants","Fixe"]
["Traitements de la régénération","Plantation","Système agroforestier","Monospécifique",null,"PL_AGRO-MONO","SCAPL200P","Plantation mécanique 25-200,  Scarificateur planteur Bracke P-11a, 1500 plants et +","O","Mplants","Fixe"]
["Traitements de la régénération","Ensemencement ","Aérien",null,null,"ENS_AE","ENSA","Ensemencement aérien","O","Mplants","Fixe"]
["Traitements de la régénération","Ensemencement ","Terrestre","Manuel",null,"ENS_TER-MANU","ENSM","Ensemencement terrestre manuel","O","Mplants","Fixe"]
["Traitements de la régénération","Ensemencement ","Terrestre","Mécanisé simultané récolte",null,"ENS_TER-MEC","ENSTMSR","Ensemencement terrestre mécanisé simultanément récolte","O","Mplants","Fixe"]
["Traitements de la régénération","Ensemencement ","Terrestre","Mécanisé simultané prép. terr.",null,"ENS_TER-MEC","ENSMSPT","Ensemencement terrestre mécanisé simultanément préparation de terrain","O","Mplants","Fixe"]
["Traitements de la régénération","Ensemencement ","Terrestre","Mécanisé après prép. terr.",null,"ENS_TER-MEC","ENSAPPT","Ensemencement terrestre mécanisé après préparation de terrain","O","Mplants","Fixe"]
["Traitements d'éducation","Dégagement","Coupe mécanique","Manuelle (machette,hache, …)",null,"DEG_MEC","DMAR","Dégagement manuelle","O","ha","Attente"]
["Traitements d'éducation","Dégagement","Coupe mécanique","Motorisé (avec débrousailleuse)",null,"DEG_MEC","DMRV1M","Dégagement mécanique de la régénération, dénombrement à 1 m, taux variable","O","ha","Formule"]
["Traitements d'éducation","Dégagement","Coupe mécanique","Mécanisée (Outils installés sur débardeur)",null,"DEG_MEC","DME","Dégagement mécanisé, outil installé sur un débardeur","O","ha","Attente"]
["Traitements d'éducation","Dégagement","Annélation",null,null,"DEG_ANN","DANNE","Dégagement annélation","O","ha","Attente"]
["Traitements d'éducation","Dégagement","Phytocides chimiques",null,null,"DEG_PHYC","DEGPHYC","Dégagement, phytocides chimiques","N","ha","Aucun"]
["Traitements d'éducation","Dégagement","Phytocides biologiques",null,null,"DEG_PHYB","DEGPHYB","Dégagement, phytocides biologiques","N","ha","Aucun"]
["Traitements d'éducation","Dégagement","Chaleur (vapeur d'eau)",null,null,null,null,"Pas d'information DICA"]
["Traitements d'éducation","Dégagement","Broutage",null,null,null,null,"Pas d'information DICA"]
["Traitements d'éducation","Nettoiement","Coupe mécanique","Manuelle",null,"NET_MEC","NETTOIMAV","Nettoiement manuelle","O","ha","Attente"]
["Traitements d'éducation","Nettoiement","Coupe mécanique","Manuelle",null,"NET_MEC","NETSG85","Entretien de la strate gaulis, secteur d'intervention avec un choix de tige intra spécifique (par essence) et avec un espacement ou secteur d'intervention avec choix de tige résineuse sans espacement, CP1=0.85","O","ha","Formule"]
["Traitements d'éducation","Nettoiement","Coupe mécanique","Manuelle",null,"NET_MEC","NETSG","Entretien de la strate gaulis, secteur d'intervention sans choix de tige, soit inter spécifique (par groupe d'essence, résineux/feuillus) et sans espacement","O","ha","Formule"]
["Traitements d'éducation","Nettoiement","Coupe mécanique","Mécanisée",null,"NET_MEC","NETTOIMEV","Nettoiement mécanisé","O","ha","Attente"]
["Traitements d'éducation","Nettoiement","Annélation",null,null,"NET_ANN","NETTOIANNE","Nettoiement, annélation","O","ha","Attente"]
["Traitements d'éducation","Nettoiement","Phytocides chimiques",null,null,"NET_PHYC","NETPHYC","Nettoiement, phytocides chimiques","N","ha","Aucun"]
["Traitements d'éducation","Nettoiement","Phytocides biologiques",null,null,"NET_PHYB","NETPHYB","Nettoiement, phytocides biologiques","N","ha","Aucun"]
["Traitements d'éducation","Éclaircie précommerciale (EPC)","Systématique",null,null,"EPC_SYS","EPCSYSSG","Entretien de la strate gaulis, secteur d'intervention avec un choix de tige intra spécifique (par essence) et avec un espacement ou secteur d'intervention avec choix de tige résineuse sans espacement, composition visée peuplier ou CP1=1","O","ha","Formule"]
["Traitements d'éducation","Éclaircie précommerciale (EPC)","Systématique",null,null,"EPC_PUITS","EPCPUIT13V","EPC par puit de lumière, comprend la taille de formation (prescription sylvicole 2013 et +), Taux variable","O","ha","Formule"]
["Traitements d'éducation","Dépressage",null,null,null,"DEP","DEP","Dépressage","O","ha","Attente"]
["Traitements d'éducation","Éclaircie commerciale (EC)","Systématique",null,null,"EC_SYS","ECSYS","Éclaircie commerciale, patron d'intervention systématique","N","ha","Aucun"]
["Traitements d'éducation","Éclaircie commerciale (EC)","Systématique",null,null,"EC_SYS","ECSYPR","Éclaircie commerciale, patron d'intervention systématique, première éclaircie commerciale de plantation résineuse réservée aux entreprises d'aménagement forestier, taux variable","O","$/m3","Formule"]
["Traitements d'éducation","Éclaircie commerciale (EC)","Sélective","Par le bas",null,"EC_SEL-BAS","ECSELBASPR","Éclaircie commerciale sélective par le bas, première éclaircie commerciale de plantation résineuse réservée aux entreprises d'aménagement forestier, taux variable","O","$/m3","Formule"]
["Traitements d'éducation","Éclaircie commerciale (EC)","Sélective","Par le bas",null,"EC_SEL-BAS","ECSELBASSF","Éclaircie commerciale sélective par le bas, peuplement SEPM et mixte à tendance résineuse et feuillus intolérants, taux variable","O","ha","Formule"]
["Traitements d'éducation","Éclaircie commerciale (EC)","Sélective","Par le bas",null,"EC_SEL-BAS","ECSELBASFM","Éclaircie commerciale sélective par le bas, peuplement feuillus tolérants, autres résineux et mixte feuillus, taux variable","O","ha","Formule"]
["Traitements d'éducation","Éclaircie commerciale (EC)","Sélective","Par le haut",null,"EC_SEL-HAUT","ECSELHAUPR","Éclaircie commerciale sélective par le haut, première éclaircie commerciale de plantation résineuse réservée aux entreprises d'aménagement forestier, taux variable","O","$/m3","Formule"]
["Traitements d'éducation","Éclaircie commerciale (EC)","Sélective","Par le haut",null,"EC_SEL-HAUT","ECSELHAUSF","Éclaircie commerciale sélective par le haut, peuplement SEPM et mixte à tendance résineuse et feuillus intolérants, taux variable","O","ha","Formule"]
["Traitements d'éducation","Éclaircie commerciale (EC)","Sélective","Par le haut",null,"EC_SEL-HAUT","ECSELHAUFM","Éclaircie commerciale sélective par le haut, peuplement feuillus tolérants, autres résineux et mixte feuillus, taux variable","O","ha","Formule"]
["Traitements d'éducation","Éclaircie commerciale (EC)","Sélective","Neutre",null,"EC_SEL-NEUTRE","ECSELNEUPR","Éclaircie commerciale sélective neutre, première éclaircie commerciale de plantation résineuse réservée aux entreprises d'aménagement forestier, taux variable","O","$/m3","Formule"]
["Traitements d'éducation","Éclaircie commerciale (EC)","Sélective","Neutre",null,"EC_SEL-NEUTRE","ECSELNEUSF","Éclaircie commerciale sélective neutre, peuplement SEPM et mixte à tendance résineuse et feuillus intolérants, taux variable","O","ha","Formule"]
["Traitements d'éducation","Éclaircie commerciale (EC)","Sélective","Neutre",null,"EC_SEL-NEUTRE","ECSELNEUFM","Éclaircie commerciale sélective neutre, peuplement feuillus tolérants, autres résineux et mixte feuillus, taux variable","O","ha","Formule"]
["Traitements d'éducation","Éclaircie commerciale (EC)","Mixte","Par le bas",null,"EC_MIXTE-BAS","ECMIXBASPR","Éclaircie commerciale mixte par le bas, première éclaircie commerciale de plantation résineuse réservée aux entreprises d'aménagement forestier, taux variable","O","$/m3","Formule"]
["Traitements d'éducation","Éclaircie commerciale (EC)","Mixte","Par le bas",null,"EC_MIXTE-BAS","ECMIXBASSF","Éclaircie commerciale mixte par le bas, peuplement SEPM, feuillus intolérants  et mixte à tendance résineuse, taux variable","O","ha","Formule"]
["Traitements d'éducation","Éclaircie commerciale (EC)","Mixte","Par le bas",null,"EC_MIXTE-BAS","ECMIXBASFM","Éclaircie commerciale mixte par le bas, peuplement feuillus tolérants, autres résineux et mixte feuillus, taux variable","O","ha","Formule"]
["Traitements d'éducation","Éclaircie commerciale (EC)","Mixte","Par le haut",null,"EC_MIXTE-HAUT","ECMIXHAUPR","Éclaircie commerciale mixte par le haut, première éclaircie commerciale de plantation résineuse réservée aux entreprises d'aménagement forestier, taux variable","O","$/m3","Formule"]
["Traitements d'éducation","Éclaircie commerciale (EC)","Mixte","Par le haut",null,"EC_MIXTE-HAUT","ECMIXHAUSF","Éclaircie commerciale mixte par le haut, peuplement SEPM, feuillus intolérants  et mixte à tendance résineuse, taux variable","O","ha","Formule"]
["Traitements d'éducation","Éclaircie commerciale (EC)","Mixte","Par le haut",null,"EC_MIXTE-HAUT","ECMIXHAUFM","Éclaircie commerciale mixte par le haut, peuplement feuillus tolérants, autres résineux et mixte feuillus, taux variable","O","ha","Formule"]
["Traitements d'éducation","Éclaircie commerciale (EC)","Mixte","Neutre",null,"EC_MIXTE-NEUTRE","ECMIXNEUPR","Éclaircie commerciale mixte neutre, première éclaircie commerciale de plantation résineuse réservée aux entreprises d'aménagement forestier, taux variable","O","$/m3","Formule"]
["Traitements d'éducation","Éclaircie commerciale (EC)","Mixte","Neutre",null,"EC_MIXTE-NEUTRE","ECMIXNEUSF","Éclaircie commerciale mixte neutre, peuplement SEPM, feuillus intolérants  et mixte à tendance résineuse, taux variable","O","ha","Formule"]
["Traitements d'éducation","Éclaircie commerciale (EC)","Mixte","Neutre",null,"EC_MIXTE-NEUTRE","ECMIXNEUFM","Éclaircie commerciale patron d'intervention mixte neutre, peuplement feuillus tolérants, autres résineux et mixte feuillus, taux variable","O","ha","Formule"]
["Traitements d'éducation","Élagage",null,null,null,"ELAG","ELAGV","Élagage pour fins de qualité, taux variable","O","ha","Formule"]
["Traitements d'éducation","Taille de formation (Inclut dans l'EPC par puits de lumière)","Classique",null,null,"TAILFOR_CLASS","TAILFC","Voir EPC puit de lumière","N","ha","Aucun"]
["Traitements d'éducation","Taille de formation (Inclut dans l'EPC par puits de lumière)","Systématique",null,null,"TAILFOR_SYST","TAILFS","Voir EPC puit de lumière","N","ha","Aucun"]
["Traitements d'éducation","Coupe d'assainissement",null,null,null,"CAS","CAS","Coupe d'assainissement","N","ha","Aucun"]
["Traitements d'éducation","Taille phytosanitaire",null,null,null,"TAILPHY","TAILV","Taille phytosanitaire, taux variable","O","ha","Formule"]
["Coupes de jardinage","Éclaircie jardinatoire (EJ)","Par pieds d'arbre ",null,"Initiale","EJ_P-INI","EJPINI","Éclaircie jardinatoire par pied d'arbre initiale, Martelage","O","ha","Formule"]
["Coupes de jardinage","Éclaircie jardinatoire (EJ)","Par pieds d'arbre ",null,"Classique ou finale","EJ_P-CLAS","EJPCLAS","Éclaircie jardinatoire par pied d'arbre classique ou finale, Martelage","O","ha","Formule"]
["Coupes de jardinage","Éclaircie jardinatoire (EJ)","Par pieds d'arbre et groupes d'arbres",null,"Initiale","EJ_PG-INI","EJPGINI","Éclaircie jardinatoire par pied d'arbre et groupes d'arbres initiale, Martelage","O","ha","Formule"]
["Coupes de jardinage","Éclaircie jardinatoire (EJ)","Par pieds d'arbre et groupes d'arbres",null,"Classique ou finale","EJ_PG-CLAS","EJPGCLAS","Éclaircie jardinatoire par pied d'arbre et groupes d'arbres, classique ou finale, Martelage","O","ha","Formule"]
["Coupes de jardinage","Coupe de jardinage par pieds d'arbre (CJP)",null,null,"Maintien d'une haute qualité","CJP-HQ","CJPHQ","Coupe de jardinage par pieds d'arbre, maintien d'une haute qualité, Martelage","O","ha","Formule"]
["Coupes de jardinage","Coupe de jardinage par pieds d'arbre (CJP)",null,null,"Maintien d'une qualité modérée","CJP-QM","CJPQM","Coupe de jardinage par pieds d'arbre, maintien d'une qualité modérée, Martelage","O","ha","Formule"]
["Coupes de jardinage","Coupe de jardinage par pieds d'arbre (CJP)",null,null,"Amélioration de la qualité","CJP-AM","CJPAM","Coupe de jardinage par pieds d'arbre, amélioraton de la qualité, Martelage","O","ha","Formule"]
["Coupes de jardinage","Coupe de jardinage par pieds d'arbre et groupes d'arbres (CJPG)",null,null,"Maintien d'une haute qualité","CJPG-HQ","CJPGHQ","Coupe de jardinage par pieds d'arbre et groupes d'arbres, maintien d'une haute qualité, Martelage","O","ha","Formule"]
["Coupes de jardinage","Coupe de jardinage par pieds d'arbre et groupes d'arbres (CJPG)",null,null,"Maintien d'une qualité modérée","CJPG-QM","CJPGQM","Coupe de jardinage par pieds d'arbre et groupes d'arbres, maintien d'une qualité modérée, Martelage","O","ha","Formule"]
["Coupes de jardinage","Coupe de jardinage par pieds d'arbre et groupes d'arbres (CJPG)",null,null,"Amélioration de la qualité","CJPG-AM","CJPGAM","Coupe de jardinage par pieds d'arbre et groupes d'arbres, amélioration de la qualité, Martelage","O","ha","Formule"]
["Coupes de jardinage","Coupe de jardinage par trouées",null,"Sans éclaircie dans la matrice résiduelle",null,"CJT","CJT","Coupe de jardinage par trouées patron d'intervention sans éclaircie dans la matrice résiduelle","N","ha","Aucun"]
["Coupes de jardinage","Coupe de jardinage par trouées",null,"Avec éclaircie dans la matrice résiduelle",null,"CJT-EMR","CJTM","Coupe de jardinage par trouées avec éclaircie dans la matrice résiduelle, Martelage","O","ha","Formule"]
["Coupes de jardinage","Coupe de jardinage par trouées",null,"Avec éclaircie dans la matrice résiduelle",null,"CJT-EMR","CJTMO","Coupe de jardinage par trouées avec éclaircie dans la matrice résiduelle, Opérateur","O","ha","Formule"]
["Coupes de jardinage","Coupe de jardinage par bandes",null,"Sans éclaircie dans la matrice résiduelle",null,"CJB","CJB","Coupe de jardinage par bandes patron d'intervention sans éclaircie dans la matrice résiduelle","N","ha","Aucun"]
["Coupes de jardinage","Coupe de jardinage par bandes",null,"Avec éclaircie dans la matrice résiduelle",null,"CJB-EMR","CJBM","Coupe de jardinage par bandes avec éclaircie dans la matrice résiduelle, Martelage","O","ha","Formule"]
["Coupes de jardinage","Coupe de jardinage par bandes",null,"Avec éclaircie dans la matrice résiduelle",null,"CJB-EMR","CJBMO","Coupe de jardinage par bandes avec éclaircie dans la matrice résiduelle, Opérateur","O","ha","Formule"]
["Travaux de planification","Planification","Recherche de secteurs d'intervention potentiel (terrain)",null,null,null,"SIPPSRA","Recherche secteur d'intervention potentiel, traitement de préparation de terrain et régénération artificielle","O","ha","Fixe"]
["Travaux de planification","Planification","Recherche de secteurs d'intervention potentiel (terrain)",null,null,null,"SIPEP","Recherche secteur d'intervention potentiel, traitement d'éducation de peuplement ","O","ha","Fixe"]
["Travaux de planification","Planification","Secteur d'intervention proposé",null,null,null,"SIPRPSRA","Secteur d'intervention proposé, traitement de préparation de terrain et régénération artificielle","O","ha","Fixe"]
["Travaux de planification","Planification","Secteur d'intervention proposé",null,null,null,"SIPREP","Secteur d'intervention proposé, traitement d'éducation de peuplement ","O","ha","Fixe"]
["Travaux de planification","Planification","Secteur d'intervention proposé",null,null,null,"CPLS","Confection du plan de sondage","O","ha","Fixe"]
["Travaux de planification","Planification","Inventaire avant traitement",null,null,null,"INVAVPSRA","Inv.avant traitement, traitement de préparation de site (sauf drainage sylvicole) et régénération artificielle","O","pe","Fixe"]
["Travaux de planification","Planification","Inventaire avant traitement",null,null,null,"INVAVDSPD","inv. avant traitement, traitement de préparation de site (drainage sylvicole - plan et devis)","O","km ou Mm³","Fixe"]
["Travaux de planification","Planification","Inventaire avant traitement",null,null,null,"INVAVDNE","Inv. avant traitement, traitement d'éducation de peuplement (dégagement, nettoiement, EPC)","O","pe","Formule"]
["Travaux de planification","Planification","Inventaire avant traitement",null,null,null,"INVAVEP","Inv. avant traitement, traitement d'éducation de peuplement (élagage et taille)","O","pe","Fixe"]
["Travaux de planification","Planification","Délimitation des secteurs",null,null,null,"DSPSRA","Délimitation des secteurs, traitement de préparation de site et régénération artificielle","O","km","Fixe"]
["Travaux de planification","Planification","Délimitation des secteurs",null,null,null,"DSEP","Délimitation des secteurs, traitement d'éducation de peuplement","O","km","Fixe"]
["Travaux de planification","Planification","Valeur des activités liées au martelage pour les traitements commerciaux",null,null,null,"DSTC","Délimitation de secteurs","O","km","Fixe"]
["Travaux de planification","Planification","Martelage",null,null,null,"MARTGE","Martelage",0,"ha","Formule"]
["Travaux de planification","Planification","Martelage éclaircie commerciale en peuplement résineux (ou mixte à tendance résineux)",null,null,null,"MECON","Martelage négatif",0,"ha","Formule"]
["Travaux de planification","Planification","Martelage éclaircie commerciale en peuplement résineux (ou mixte à tendance résineux)",null,null,null,"MECOP","Martelage positif",0,"ha","Formule"]
["Travaux de planification","Planification","Martelage éclaircie commerciale en peuplement résineux (ou mixte à tendance résineux)",null,null,null,"INVAPM","Inventaire après martelage","O","ha","Fixe"]
["Travaux de planification","Valeur de la vérification technique","Suivi de la qualité",null,null,null,"SQPSM","Suivi de la qualité, traitement de préparation de site mécanisé","O","ha","Fixe"]
["Travaux de planification","Valeur de la vérification technique","Suivi de la qualité",null,null,null,"SQPSMA","Suivi de la qualité, traitement de préparation de site manuel","O","Mmicrosites","Fixe"]
["Travaux de planification","Valeur de la vérification technique","Suivi de la qualité",null,null,null,"SQDS","Suivi de la qualité, traitement de site drainage sylvicole","O","Km ou Mm³","Fixe"]
["Travaux de planification","Valeur de la vérification technique","Suivi de la qualité",null,null,null,"SQRA","Suivi de la qualité, traitement de régénération artificielle","O","Mplants","Fixe"]
["Travaux de planification","Valeur de la vérification technique","Suivi de la qualité",null,null,null,"SQEP","Suivi de la qualité, traitement d'éducation de peuplement","O","ha","Fixe"]
["Travaux de planification","Valeur de la vérification technique","Inventaire après traitement",null,null,null,"INVAPPSM","Inventaire après traitement, traitement de préparation de site mécanisé","O","pe","Formule"]
["Travaux de planification","Valeur de la vérification technique","Inventaire après traitement",null,null,null,"INVAPPSMA","Inventaire après traitement, traitement de préparation de site manuel","O","pe","Fixe"]
["Travaux de planification","Valeur de la vérification technique","Inventaire après traitement",null,null,null,"INVAPDS","Inventaire après traitement, traitement de site drainage sylvicole","O","Km ou Mm³","Fixe"]
["Travaux de planification","Valeur de la vérification technique","Inventaire après traitement",null,null,null,"INVAPRA","Inventaire après traitement, traitement de régénération artificielle","O","pe","Formule"]
["Travaux de planification","Valeur de la vérification technique","Inventaire après traitement",null,null,null,"INVAPEP","Inventaire après traitement, traitement d'éducation de peuplement","O","pe","Formule"]
["Travaux de planification","Valeur de la vérification technique","Rapport d'exécution",null,null,null,"REPSM","Rapport d'exécution, traitement de préparation de site mécanisé","O","ha","Fixe"]
["Travaux de planification","Valeur de la vérification technique","Rapport d'exécution",null,null,null,"REPSMA","Rapport d'exécution, traitement de préparation de site manuel","O","Mmicrosites","Fixe"]
["Travaux de planification","Valeur de la vérification technique","Rapport d'exécution",null,null,null,"REDS","Rapport d'exécution, traitement de site drainage sylvicole","O","Km ou Mm³","Fixe"]
["Travaux de planification","Valeur de la vérification technique","Rapport d'exécution",null,null,null,"RERA","Rapport d'exécution, traitement de régénération artificielle","O","Mplants","Fixe"]
["Travaux de planification","Valeur de la vérification technique","Rapport d'exécution",null,null,null,"REEP","Rapport d'exécution, traitement d'éducation de peuplement","O","ha","Fixe"]

{"sheet":"Menus","index":9,"n_rows":453,"n_cols":9,"rows_kept":453,"cut":false,"hidden":true,"merged":[[440,0,440,2],[397,0,397,2],[0,0,0,8],[146,0,146,2],[250,0,250,2],[348,0,348,2]]}
["Onglet «Préparation de terrain»"]
[]
["Traitement unique_INDIRECT_sans_underscore","Traitement unique_INDIRECT","Traitement","Équipement","Machinerie_INDIRECT_1","Machinerie_INDIRECT_2","Machinerie_INDIRECT_3","Taux","Unité"]
["Déblaiement des résidus de coupe","PRT_Déblaiement_des_résidus_de_coupe","Déblaiement_des_résidus_de_coupe","Abatteuse groupeuse après feux",null,null,null,{"$f":"'Calculs grille'!I17","v":829},"$/hectare"]
["Déblaiement des résidus de coupe par placeau","PRT_Déblaiement_des_résidus_de_coupe_par_placeau","Déblaiement_des_résidus_de_coupe_par_placeau","Bouteur avec pelle râteau",null,null,null,{"$f":"'Calculs grille'!I16","v":747},"$/hectare"]
["Drainage sylvicole","PRT_Drainage_sylvicole","Scarifiage_par_monticule_avec_scarificateur","Bracke M-36a avec débardeur",null,null,null,{"$f":"'Calculs grille'!I9","v":317},"$/hectare"]
["Scarifiage par hersage ou labour","PRT_Scarifiage_par_hersage_ou_labour","Scarifiage_par_monticule_avec_scarificateur","Bracke M-36a avec porteur",null,null,null,{"$f":"'Calculs grille'!I10","v":381},"$/hectare"]
["Scarifiage par mixage par placeau","PRT_Scarifiage_par_mixage_par_placeau","Scarifiage_par_sillon_avec_scarificateur","Drainage sylvicole en milieu boisé",null,null,null,{"$f":"'Calculs grille'!I19","v":2547},"$/km ou Mm³"]
["Scarifiage par monticule avec scarificateur","PRT_Scarifiage_par_monticule_avec_scarificateur","Scarifiage_par_sillon_avec_scarificateur","Drainage sylvicole en milieu dénudé",null,null,null,{"$f":"'Calculs grille'!I18","v":2293},"$/km ou Mm³"]
["Scarifiage par monticule ou inversion par placeau ou décapage par placeau","PRT_Scarifiage_par_monticule_ou_inversion_par_placeau_ou_décapage_par_placeau","Drainage_sylvicole","Excavatrice","PRT_Excavatrice_R","PRT_Excavatrice_TP","PRT_Excavatrice_VEH","Variable","$/hectare"]
["Scarifiage par sillon avec scarificateur","PRT_Scarifiage_par_sillon_avec_scarificateur","Drainage_sylvicole","Excavatrice ou débusqueuse ou abatteuse","PRT_Excavatrice_ou_debusqueuse_ou_abatteuse_R","PRT_Excavatrice_ou_debusqueuse_ou_abatteuse_TP","PRT_Excavatrice_ou_debusqueuse_ou_abatteuse_VEH","Variable","$/hectare"]
["Inscrire une valeur","PRT_Inscrire_une_valeur","Scarifiage_par_monticule_ou_inversion_par_placeau_ou_décapage_par_placeau","Herses forestières",null,null,null,{"$f":"'Calculs grille'!I11","v":405},"$/hectare"]
[null,null,"Déblaiement_des_résidus_de_coupe_par_placeau","Taupe ou pioche forestière",null,null,null,{"$f":"'Calculs grille'!I12","v":595},"$/Mmicrosites"]
[null,null,"Scarifiage_par hersage_ou_labour","Bracke T-26 avec débardeur",null,null,null,{"$f":"'Calculs grille'!I6","v":333},"$/hectare"]
[null,null,"Scarifiage_par_sillon_avec_scarificateur","Bracke T-26 avec porteur",null,null,null,{"$f":"'Calculs grille'!I7","v":381},"$/hectare"]
[null,null,"Scarifiage_par_mixage_par_placeau","Rouleau écraseur et scarificateur à disques passifs",null,null,null,{"$f":"'Calculs grille'!I4","v":720},"$/hectare"]
[null,null,"Scarifiage_par_sillon_avec_scarificateur","Types TTS hydrauliques, Donaren ou Requin",null,null,null,{"$f":"'Calculs grille'!I5","v":337},"$/hectare"]
[null,null,"Scarifiage_par_sillon_avec_scarificateur","Types TTS passifs, Equisyl",null,null,null,{"$f":"'Calculs grille'!I3","v":228},"$/hectare"]
[null,null,"Scarifiage_par_sillon_avec_scarificateur","Wadell",null,null,null,{"$f":"'Calculs grille'!I8","v":401},"$/hectare"]
[null,null,"Inscrire_une_valeur","Inscrire une valeur",null,null,null,0,"-"]
[]
["PA0"]
["Réduction selon la distance entre les passages ","Nb Microsite /ha désiré"]
[3.5,"2800 et + microsites par hectare"]
[4,"2200- 2799 microsites par hectare"]
[4.5,"2000- 2199 microsites par hectare"]
[5,"1600 - 1999 microsites par hectare"]
[]
["H1"]
["AVEC hébergement",3.7499999999999999E-2]
["SANS hébergement",0]
[]
["H3"]
["AVEC hébergement",9.0999999999999998E-2]
["SANS hébergement",0]
[]
["D200"]
["Distance de 0 à 199 kilomètres",0]
["Distance de 200 kilomètres et plus",5.8000000000000003E-2]
[]
["Taux variable selon formule"]
["Constante",null,2.718]
["R : Superficie préparée","Déblaiement en plein (85% déblayé et 15% andains)",0.85,"Deblaiement_en_plein_85_deblaye_et_15_andains"]
[null,"Scarifiage partiel - 100-125 poquets/ha soit ((125 * 6 m²) / 10 000)",0.08,"Scarifiage_partiel_100_125_poquets_ha_soit_((125_6_m)_10000)"]
[null,"Scarifiage partiel - 300-400 poquets/ha soit ((375 * 6 m²) / 10 000)",0.22,"Scarifiage_partiel_300_400_poquets_ha_soit_((375_6_m)_10000)"]
[null,"Scarifiage partiel - 900-1200 monticules/ha soit ((1 100 * 3 m²) / 10 000)",0.33,"Scarifiage_partiel_900_1200_monticules_ha_soit_((1100_3_m)_10000)"]
["TP : Type de couvert","Débusqueuse : Type de peuplement: résineux-feuillus-mixtes",0,"PRT_Debusqueuse_Type_de_peuplement_résineux_feuillus_mixtes_VEH"]
[null,"Excavatrice : Type de peuplement: feuillus ou mixtes",1,"PRT_Excavatrice_Type_de_peuplement_feuillus_ou_mixtes_VEH"]
[null,"Excavatrice : Type de peuplement: résineux",0,"PRT_Excavatrice_Type_de_peuplement_résineux_VEH"]
["TR : Type de procédé de récolte","Peuplement brûlé: aucune récolte de bois",1,"PRT_Peuplement_brule"]
[null,"Peuplement brûlé: récolte de bois ou peuplement en régénération de moins de 7m",0,"PRT_Peuplement_brule"]
[null,"Peuplement vert: ébranchage et écimage à la souche",1,"PRT_Peuplement_vert"]
[null,"Peuplement vert: ébranchage et écimage en bordure de route",0,"PRT_Peuplement_vert"]
["PER : Type de perturbation","Peuplement brûlé",1]
[null,"Peuplement vert",0]
["Type d'engin forestier","Abatteuse lors de la récolte",3]
[null,"Excavatrice",2]
[null,"Débusqueuse",1]
[]
["Délimitation des secteur"]
[{"$f":"'Calculs grille'!I110","v":28}]
[0]
[]
["Vérification"]
["Taux - mécanisé",{"$f":"'Calculs grille'!I87","v":37}]
[null,0]
["Taux - manuel",{"$f":"'Calculs grille'!I89","v":22}]
[null,0]
["Taux - Drainage",{"$f":"'Calculs grille'!I90","v":41}]
[null,0]
[]
["Critères"]
["Oui"]
["Non"]
[]
["Codes_DICA"]
["DEBL-PART"]
["DEBL-PLEIN"]
["DEBR"]
["DR_APP"]
["DR_SYS"]
["SCA_DECAP- PART"]
["SCA_DECAP- PLEIN"]
["SCA_HERS- PART"]
["SCA_HERS- PLEIN"]
["SCA_INV-PART"]
["SCA_INV-PLEIN"]
["SCA_MIX-PART"]
["SCA_MIX-PLEIN"]
["SCA_MONT- PART"]
["SCA_MONT- PLEIN"]
["SCA_SILL- PART"]
["SCA_SILL-PLEIN"]
[]
["Codes_RATF"]
["AGR"]
["AGRP"]
["BPR"]
["BPRPA"]
["BRM36D"]
["BRM36DP"]
["BRM36P"]
["BRM36PP"]
["DEBR"]
["DH"]
["DHAD"]
["DHADP"]
["DHAP"]
["DHAPP"]
["DHP"]
["DO"]
["DOP"]
["DRAPPMB"]
["DRAPPMD"]
["DRAV"]
["DRAVP"]
["DRDV"]
["DRDVP"]
["DREV"]
["DREVP"]
["DRSYSMB"]
["DRSYSMD"]
["EQSLY"]
["EQSLYP"]
["HERSE"]
["HERSEP"]
["REQ"]
["REQP"]
["ROUECA"]
["ROUECAP"]
["SCAIPV"]
["SCAIPVP"]
["SCAMV"]
["SCAMVP"]
["SCAPV"]
["SCAPVP"]
["TAUPIOF"]
["TAUPIOFP"]
["TTS"]
["TTSP"]
["WAD"]
["WADP"]
[]
[]
[]
[]
["Onglet «Éducation de peuplement»"]
[]
["Traitement unique"]
["Dégagement mécanique"]
["Gaulis I"]
["Gaulis II"]
["EPC Puit lumière"]
["Élagage Qualité"]
["Taille Phytosanitaire"]
["Inscrire une valeur"]
[]
["Dégagement"]
["Mode","Plantation ou regarni de plantation",0]
[null,"Régénération naturelle ou regarni de régénération naturelle",1]
[]
["Gaulis I"]
["CP","Peuplement naturel",1]
[null,"Plantation avec SRLC >= 20%",1]
[null,"Plantation avec SRLC < 20% et DI > 20 000",1.165]
[null,"SRLC <20% et DI =< 20 000",1]
[]
["Gaulis II"]
["TP","Mixte à tendance résineuse",1.1000000000000001]
[null,"Peuplier",0.8]
[null,"Résineux",1]
["CP","Peuplement naturel avec espacement",1]
[null,"Plantation avec espacement et un coefficient de distribution  >=75%",1]
[null,"Plantation avec espacement et un coefficient de distribution < 75%",0.88]
[null,"Plantation sans espacement et peuplement naturel sans espacement",0.88]
[]
["EPC Puit lumière"]
["TAIL","AVEC taille de formation",1]
[null,"SANS taille de formation",0]
[]
["EPC Puit lumière"]
["Martelage","AVEC Martelage",1]
[null,"SANS Martelage",0]
[]
["EPC Puit lumière"]
["EPC","AVEC EPC",1]
[null,"SANS EPC",0]
[]
["Élagage Qualité"]
["LONGELA","Élagage de 3,99 mètres et moins",0]
[null,"Élagage de 4,00 mètres et plus",1]
[]
["MP"]
["Martelage de 100 tiges/ha",{"$f":"'Calculs grille'!I75","v":116.48}]
["Martelage de 400 tiges/ha",{"$f":"'Calculs grille'!I76","v":174.36}]
["Pas de martelage",0]
[]
["Délimitation des secteurs"]
[0]
[{"$f":"'Calculs grille'!I111","v":136}]
[]
["Taux vérification"]
[0]
[{"$f":"'Calculs grille'!I93","v":89}]
[]
["Vérification critères"]
["Oui"]
["Non"]
[]
["H4"]
["AVEC hébergement",8.7999999999999995E-2]
["SANS hébergement",0]
[]
["H3"]
["AVEC hébergement",9.0999999999999998E-2]
["SANS hébergement",0]
[]
["D200"]
["Distance de 0 à 199 kilomètres",0]
["Distance de 200 kilomètres et plus",5.8000000000000003E-2]
[]
["Codes_DICA"]
["DEG_MEC"]
["DEP"]
["ELAG"]
["EPC_PUITS"]
["EPC_SYS"]
["NET_MEC"]
["TAILFOR_CLASS"]
["TAILFOR_SYST"]
["TAILPHY"]
[]
["Codes_RATF"]
["DEP"]
["DMAR"]
["DMRV1M"]
["ELAGV"]
["EPCPUIT13V"]
["EPCSYSSG"]
["NETSG"]
["NETSG85"]
["NETTOIMAV"]
["NETTOIMEV"]
["TAILFC"]
["TAILFS"]
["TAILV"]
[]
[]
[]
[]
["Onglet «Régénération artificielle»"]
[]
["Traitement unique","Taux","Unité"]
["Ensemencement terrestre manuel",{"$f":"'Calculs grille'!I36","v":194},"$/ha"]
["Plantation uniforme et regarni en plein manuel sauf PEH","Variable","$/Mplants"]
["Plantation uniforme et regarni en plein manuel sentier préparé sauf PEH","Variable","$/Mplants"]
["Plantation uniforme et regarni mécanique (Scarificateur-planteur Bracke P-11a)","Variable selon le gabarit des plants","$/Mplants"]
["Plantation uniforme PEH",{"$f":"'Calculs grille'!I34","v":663},"$/Mplants"]
["Regarni de sentier et enrichissement manuel sauf PEH","Variable","$/Mplants"]
["Inscrire une valeur",0,"-"]
[]
["Préparation de terrain"]
["AVEC préparation de terrain",1]
["SANS préparation de terrain",0]
[]
["Gabarit"]
["PFD livré en récipient",{"$f":"'Calculs grille'!I25","v":296}]
["Racine nue PFD",{"$f":"'Calculs grille'!I24","v":349}]
["Récipient 113-25",{"$f":"'Calculs grille'!I29","v":82}]
["Récipient 25-200",{"$f":"'Calculs grille'!I26","v":259}]
["Récipient 45-110",{"$f":"'Calculs grille'!I27","v":148}]
["Récipient 67-50",{"$f":"'Calculs grille'!I28","v":86}]
[]
["Traitements de plantation mécanique"]
["Récipient 45-110, densité inférieure ou égale à 1499 plants/ha",{"$f":"'Calculs grille'!I32","v":1367}]
["Récipient 45-110, densité supérieure ou égale à 1500 plants/ha",{"$f":"'Calculs grille'!I30","v":1254}]
["Récipient 25-200, densité inférieure ou égale à 1499 plants/ha",{"$f":"'Calculs grille'!I33","v":1394}]
["Récipient 25-200, densité supérieure ou égale à 1500 plants/ha",{"$f":"'Calculs grille'!I31","v":1280}]
[]
["Regarni dans les sentiers"]
["Sans objet"]
[]
["H2"]
["AVEC hébergement",0.11600000000000001]
["SANS hébergement",0]
[]
["H3"]
["AVEC hébergement",9.0999999999999998E-2]
["SANS hébergement",0]
[]
["D200"]
["Distance de 0 à 199 kilomètres",0]
["Distance de 200 kilomètres et plus",5.8000000000000003E-2]
[]
["Délimitation des secteur"]
[0]
[{"$f":"'Calculs grille'!I110","v":28}]
[]
["Taux vérification"]
[0]
[{"$f":"'Calculs grille'!I91","v":35}]
[]
["Vérification - Critères"]
["Oui"]
["Non"]
[]
["Vérification tracabilité des plants"]
["Oui",1.81]
["Non",0]
[]
["Codes DICA"]
["ENS_TER-MANU"]
["PL_AGRO-MEL"]
["PL_AGRO-MONO"]
["PL_ENR-MEL"]
["PL_ENR-MONO"]
["PL_REG-MEL"]
["PL_REG-MONO"]
["PL_U-MEL"]
["PL_U-MONO"]
[]
["Codes_RATF"]
["ENR"]
["ENSM"]
["P110"]
["P200"]
["P25"]
["P50"]
["PLGE"]
["PPFDBAC"]
["PPFDR"]
["PPFDRN"]
["PPHBO"]
["RPFDBAC"]
["RPFDR"]
["RPFDRN"]
["RR110"]
["RR200"]
["RR25"]
["RR50"]
["SCAPL110P"]
["SCAPL110R"]
["SCAPL200P"]
["SCAPL200R"]
[]
[]
[]
[]
["Onglet «Éclaircie commerciale EAF»"]
[]
["Traitement unique","Taux","Unité"]
["Éclaircie commerciale EAF","Variable","$/m³"]
["Inscrire une valeur",0,"-"]
[]
["H5"]
["AVEC hébergement",4.7E-2]
["SANS hébergement",0]
[]
["MAN"]
["Opérations MANUELLES",0.36]
["Opérations MÉCANISÉES",0]
[]
["RUB1"]
["Pas de rubannage des sentiers"]
[15]
[16]
[17]
[18]
[19]
[20]
[21]
[22]
[23]
[24]
[25]
[]
["Codes DICA"]
["EC_MIXTE-BAS"]
["EC_MIXTE-HAUT"]
["EC_MIXTE-NEUTRE"]
["EC_SEL-BAS"]
["EC_SEL-HAUT"]
["EC_SEL-NEUTRE"]
["EC_SYS"]
[]
["Codes_RATF"]
["ECMIXBASPR"]
["ECMIXHAUPR"]
["ECMIXNEUPR"]
["ECSELBASPR"]
["ECSELHAUPR"]
["ECSELNEUPR"]
["ECSYPR"]
[]
[]
[]
[]
["Onglet «Martelage»"]
[]
["Traitement unique","Taux","Unité"]
["Martelage","Variable","$/ha"]
["Martelage négatif - EC (résineux ou mixte résineux)",{"$f":"'Calculs grille'!I121","v":214},"$/ha"]
["Martelage positif - EC (résineux ou mixte résineux)",{"$f":"'Calculs grille'!I122","v":94},"$/ha"]
["Inscrire une valeur",0,"-"]
[]
["Type de coupe","Facteur"]
["CRS",0.64200000000000002]
["CPI",1]
["CPR",1]
["CJ",1]
["EC feuillus et pins",1]
[]
["H3"]
["AVEC hébergement",9.0999999999999998E-2]
["SANS hébergement",0]
[]
["D200"]
["Distance de 0 à 199 kilomètres",0]
["Distance de 200 kilomètres et plus",5.8000000000000003E-2]
[]
["Délimitation des secteurs"]
[0]
[{"$f":"'Calculs grille'!I116","v":76}]
[]
["Taux vérification"]
[0]
[{"$f":"'Calculs grille'!I123","v":23}]
[]
["Codes_DICA"]
["N/A"]
[]
["Codes_RATF"]
["INVAPM"]
["MARTGE"]
["MECON"]
["MECOP"]
[]
[]
[]
[]
["Onglet «Travaux de planification»"]
[]
["Critères"]
["Oui"]
["Non"]
[]
["H3"]
["AVEC hébergement",9.0999999999999998E-2]
["SANS hébergement",0]
[]
["D200"]
["Distance de 0 à 199 kilomètres",0]
["Distance de 200 kilomètres et plus",5.8000000000000003E-2]

{"sheet":"Formules","index":10,"n_rows":15,"n_cols":10,"rows_kept":15,"cut":false,"hidden":true,"merged":[]}
["Famille","Traitement","Équation_texte","Équation_reférencé_calculs_grille","Valeur_prescription_1","Valeur_prescription_2","Valeur_prescription_3","Valeur_prescription_4","Valeur_prescription_5","Total"]
["Éducation de peuplement","Dégagement mécanique","Taux ($ / ha) = 784 + (12,27 * RECFFE) + (0,0044 * DI) + (134,77 * MODE)",{"$f":"\"Taux ($ / ha) = \"&'Calculs grille'!I39&\" + (\"&'Calculs grille'!I40&\" * RECFFE) + (\"&'Calculs grille'!I41&\" * DI) + (\"&'Calculs grille'!I42&\" * MODE)\"","v":"Taux ($ / ha) = 784 + (12,27 * RECFFE) + (0,0044 * DI) + (134,77 * MODE)"},"RECFFE","DI","MODE",null,null,{"$f":"E2&\" - \"&F2&\" - \"&G2","v":"RECFFE - DI - MODE"}]
["Éducation de peuplement","Gaulis I","Taux ($ / ha)  = (800,57 + (0,0103 * DI) - (195,66 * SRLC)) * CP",{"$f":"\"Taux ($ / ha)  = (\"&'Calculs grille'!I45&\" + (\"&'Calculs grille'!I46&\" * DI) - (\"&ABS('Calculs grille'!I47)&\" * SRLC)) * CP\"","v":"Taux ($ / ha)  = (800,57 + (0,0103 * DI) - (195,66 * SRLC)) * CP"},"DI","SRLC","CP",null,null,{"$f":"E3&\" - \"&F3&\" - \"&G3","v":"DI - SRLC - CP"}]
["Éducation de peuplement","Gaulis II","Taux ($/ha) = (564,33 * ln (DI) - 4362,32) * TP * CP1",{"$f":"\"Taux ($/ha) = (\"&'Calculs grille'!I50&\" * ln (DI) - \"&'Calculs grille'!I51&\") * TP * CP1\"","v":"Taux ($/ha) = (564,33 * ln (DI) - 4362,32) * TP * CP1"},"DI","TP","CP",null,null,{"$f":"E4&\" - \"&F4&\" - \"&G4","v":"DI - TP - CP"}]
["Éducation de peuplement","EPC Puit lumière","Taux ($/ha) = 0,4482 * DENSTIGE * EXP(0,1452 * HTTIGE) + 37 * DENSTIGE/(0,1204 * DENSTIGE + 98,63) + 42,92 * TAIL + 781,57",{"$f":"\"Taux ($/ha) = \"&'Calculs grille'!I54&\" * DENSTIGE * EXP(\"&'Calculs grille'!I55&\" * HTTIGE) + \"&'Calculs grille'!I56&\" * DENSTIGE/(\"&'Calculs grille'!I57&\" * DENSTIGE + \"&'Calculs grille'!I58&\") + \"&'Calculs grille'!I59&\" * TAIL + \"&'Calculs grille'!I60","v":"Taux ($/ha) = 0,4482 * DENSTIGE * EXP(0,1452 * HTTIGE) + 37 * DENSTIGE/(0,1204 * DENSTIGE + 98,63) + 42,92 * TAIL + 781,57"},"DENSTIGE","HTTIGE","TAIL",null,null,{"$f":"E5&\" - \"&F5&\" - \"&G5","v":"DENSTIGE - HTTIGE - TAIL"}]
["Éducation de peuplement","Élagage Qualité","Taux ($/ha) = ((0,0239 * BRAN + 0,3472 + 0,5781 * LONGELA) + (-0,0577 * ln (DENSELA) + 0,4889)) * DENSELA) + MP + 552,99",{"$f":"\"Taux ($/ha) = ((\"&'Calculs grille'!I70&\" * BRAN + \"&'Calculs grille'!I71&\" + \"&'Calculs grille'!I72&\" * LONGELA) + (-\"&'Calculs grille'!I73&\" * ln (DENSELA) + \"&'Calculs grille'!I74&\")) * DENSELA) + MP + \"&'Calculs grille'!I77","v":"Taux ($/ha) = ((0,0239 * BRAN + 0,3472 + 0,5781 * LONGELA) + (-0,0577 * ln (DENSELA) + 0,4889)) * DENSELA) + MP + 552,99"},"BRAN","LONGDELA","DENSELA","MP",null,{"$f":"E6&\" - \"&F6&\" - \"&G6&\" - \"&H6","v":"BRAN - LONGDELA - DENSELA - MP"}]
["Éducation de peuplement","Taille Phytosanitaire","Taux ($/ha) = ((0,0185 * BRAN + 0,0885 + (-0,0558 * ln (DENSELA) + 0,4731)) * DENSELA) + 0,1 * DENSCO + 0,4471 * DENSTF + 534,57",{"$f":"\"Taux ($/ha) = ((\"&'Calculs grille'!I80&\" * BRAN + \"&'Calculs grille'!I81&\" + (-\"&'Calculs grille'!I82&\" * ln (DENSELA) + \"&'Calculs grille'!I83&\")) * DENSELA) + \"&'Calculs grille'!I84&\" * DENSCO + \"&'Calculs grille'!I85&\" * DENSTF + \"&'Calculs grille'!I86","v":"Taux ($/ha) = ((0,0185 * BRAN + 0,0885 + (-0,0558 * ln (DENSELA) + 0,4731)) * DENSELA) + 0,1 * DENSCO + 0,4471 * DENSTF + 534,57"},"BRAN","DENSELA","DENSCO","DENSTF",null,{"$f":"E7&\" - \"&F7&\" - \"&G7&\" - \"&H7","v":"BRAN - DENSELA - DENSCO - DENSTF"}]
["Préparation de terrain","Excavatrice","Taux ($/ha) = ( 26997 * R) / e ( 1,683 * R - 0,299 * TP  - 0,313 * TR + 0,17 * PER + 2,014)  * VEH",{"$f":"\"Taux ($/ha) = ( \"&'Calculs grille'!I15&\" * R) / e ( 1,683 * R - 0,299 * TP  - 0,313 * TR + 0,17 * PER + 2,014)  * VEH\"","v":"Taux ($/ha) = ( 26997 * R) / e ( 1,683 * R - 0,299 * TP  - 0,313 * TR + 0,17 * PER + 2,014)  * VEH"},"R","TP","TR","PER","VEH",{"$f":"E8&\" - \"&F8&\" - \"&G8&\" - \"&H8&\" - \"&I8","v":"R - TP - TR - PER - VEH"}]
["Préparation de terrain","Excavatrice ou débusqueuse ou abatteuse","Taux ($/ha) = ( 26997 * R) / e ( 1,683 * R - 0,299 * TP  - 0,313 * TR + 0,17 * PER + 2,014)  * VEH",{"$f":"\"Taux ($/ha) = ( \"&'Calculs grille'!I15&\" * R) / e ( 1,683 * R - 0,299 * TP  - 0,313 * TR + 0,17 * PER + 2,014)  * VEH\"","v":"Taux ($/ha) = ( 26997 * R) / e ( 1,683 * R - 0,299 * TP  - 0,313 * TR + 0,17 * PER + 2,014)  * VEH"},"R","TP","TR","PER","VEH",{"$f":"E9&\" - \"&F9&\" - \"&G9&\" - \"&H9&\" - \"&I9","v":"R - TP - TR - PER - VEH"}]
["Régénération artificielle","Plantation uniforme et regarni en plein manuel sauf PEH","Taux ($/Mplants) = 106,7 - 64,66 * PR + 422277 / (DE * DS)  + GABARIT",{"$f":"\"Taux ($/Mplants) = \"&'Calculs grille'!I21&\" - \"&ABS('Calculs grille'!I22)&\" * PR + \"&('Calculs grille'!I23&\" / (DE * DS)  + GABARIT\")","v":"Taux ($/Mplants) = 106,7 - 64,66 * PR + 422277 / (DE * DS)  + GABARIT"},"PR","DE","DS","Gabarit",null,{"$f":"E10&\" - \"&F10&\" - \"&G10&\" - \"&H10","v":"PR - DE - DS - Gabarit"}]
["Régénération artificielle","Regarni de sentier et enrichissement manuel sauf PEH","Taux ($/Mplants) = 106,7 - 64,66 * PR + 422277 / (DE * DS)  + GABARIT",{"$f":"\"Taux ($/Mplants) = \"&'Calculs grille'!I21&\" - \"&ABS('Calculs grille'!I22)&\" * PR + \"&('Calculs grille'!I23&\" / (DE * DS)  + GABARIT\")","v":"Taux ($/Mplants) = 106,7 - 64,66 * PR + 422277 / (DE * DS)  + GABARIT"},"PR","DE","DS","Gabarit",null,{"$f":"E11&\" - \"&F11&\" - \"&G11&\" - \"&H11","v":"PR - DE - DS - Gabarit"}]
["Régénération artificielle","Plantation uniforme et regarni en plein manuel sentier préparé sauf PEH","Taux ($/Mplants) = 106,7 - 64,66 * PR + 422277 / (DE * DS)  + GABARIT",{"$f":"\"Taux ($/Mplants) = \"&'Calculs grille'!I21&\" - \"&ABS('Calculs grille'!I22)&\" * PR + \"&('Calculs grille'!I23&\" / (DE * DS)  + GABARIT\")","v":"Taux ($/Mplants) = 106,7 - 64,66 * PR + 422277 / (DE * DS)  + GABARIT"},"PR","DE","DSA","Gabarit",null,{"$f":"E12&\" - \"&F12&\" - \"&G12&\" - \"&H12","v":"PR - DE - DSA - Gabarit"}]
["Éclaircie commerciale EAF","Éclaircie commerciale EAF","Taux ($/m3) = (4,797 * ( VREC exp  -0,682 )) + 8,611",{"$f":"\"Taux ($/m3) = (\"&'Calculs grille'!I114&\" * ( VREC exp  \"&'Calculs grille'!I113&\" )) + \"&'Calculs grille'!I115","v":"Taux ($/m3) = (4,797 * ( VREC exp  -0,682 )) + 8,611"},"VREC",null,null,null,null,{"$f":"E13","v":"VREC"}]
["Martelage","Martelage","Taux ($/ha) = (172,34 - (42,64 * PF) + (4,89 * NbMSCROP)) * TC",{"$f":"\"Taux ($/ha) = (\"&'Calculs grille'!I118&\" - (\"&'Calculs grille'!I119&\" * PF) + (\"&'Calculs grille'!I120&\" * NbMSCROP)) * TC\"","v":"Taux ($/ha) = (172,34 - (42,64 * PF) + (4,89 * NbMSCROP)) * TC"},"NbMSCROP","TC",null,null,null,{"$f":"E14&\" - \"&F14","v":"NbMSCROP - TC"}]
["Travaux de planification","Inventaire avant traitement pour éducation de peuplement (dégagement, nettoiement et éclaircie commerciale)","Taux ($/PE) = 93 + 0,64 * (NCT) + (3,19) * (NCP) + 6,39 * (TE)",{"$f":"\"Taux ($/PE) = \"&'Calculs grille'!I103&\" + \"&'Calculs grille'!I104&\" * (NCT) + (\"&'Calculs grille'!I105&\") * (NCP) + \"&'Calculs grille'!I106&\" * (TE)\"","v":"Taux ($/PE) = 93 + 0,64 * (NCT) + (3,19) * (NCP) + 6,39 * (TE)"},"NCT","NCP","TE",null,null,{"$f":"E15&\" - \"&F15&\" - \"&G15","v":"NCT - NCP - TE"}]

{"sheet":"Majorations applicables","index":11,"n_rows":33,"n_cols":11,"rows_kept":33,"cut":false,"hidden":true,"merged":[]}
["Total_RechercheV","Onglet","Spécification","M1","M2","M3","M4","M5","M6","M7","Total"]
[{"$f":"K2","v":"PE2 - DISP2 - H1"},"Préparation de terrain","Abatteuse groupeuse après feux","PE2","DISP2","H1",null,null,null,null,{"$f":"D2& \" - \"&E2&\" - \"&F2","v":"PE2 - DISP2 - H1"}]
["PE4 - DISP2 - H1","Préparation de terrain","Bouteur avec pelle râteau","PE4","DISP2","H1",null,null,null,null,{"$f":"D3& \" - \"&E3&\" - \"&F3","v":"PE4 - DISP2 - H1"}]
["PE1 - DISP1 - H1","Préparation de terrain","Bracke M-36a avec débardeur","PE1","DISP1","H1",null,null,null,null,{"$f":"D4& \" - \"&E4&\" - \"&F4","v":"PE1 - DISP1 - H1"}]
["PE1 - DISP1 - H1","Préparation de terrain","Bracke M-36a avec porteur","PE1","DISP1","H1",null,null,null,null,{"$f":"D5& \" - \"&E5&\" - \"&F5","v":"PE1 - DISP1 - H1"}]
["PA0 - PA1 - PE1 - DISP1 - H1","Préparation de terrain","Bracke T-26 avec débardeur","PA0","PA1","PE1","DISP1","H1",null,null,{"$f":"D6& \" - \"&E6&\" - \"&F6&\" - \"&G6&\" - \"&H6","v":"PA0 - PA1 - PE1 - DISP1 - H1"}]
["PA0 - PA1 - PE1 - DISP1 - H1","Préparation de terrain","Bracke T-26 avec porteur","PA0","PA1","PE1","DISP1","H1",null,null,{"$f":"D7& \" - \"&E7&\" - \"&F7&\" - \"&G7&\" - \"&H7","v":"PA0 - PA1 - PE1 - DISP1 - H1"}]
["H1","Préparation de terrain","Drainage sylvicole en milieu boisé","H1",null,null,null,null,null,null,{"$f":"D8","v":"H1"}]
["H1","Préparation de terrain","Drainage sylvicole en milieu dénudé","H1",null,null,null,null,null,null,{"$f":"D9","v":"H1"}]
["PA2 - PE2 - DISP1 - H1","Préparation de terrain","Herses forestières","PA2","PE2","DISP1","H1",null,null,null,{"$f":"D10& \" - \"&E10&\" - \"&F10&\" - \"&G10","v":"PA2 - PE2 - DISP1 - H1"}]
["PE2 - DISP2 - H1","Préparation de terrain","Rouleau écraseur et scarificateur à disques passifs","PE2","DISP2","H1",null,null,null,null,{"$f":"D11& \" - \"&E11&\" - \"&F11","v":"PE2 - DISP2 - H1"}]
["H1 - D200","Préparation de terrain","Taupe ou pioche forestière","H1","D200",null,null,null,null,null,{"$f":"D12& \" - \"&E12","v":"H1 - D200"}]
["PA0 - PA1 - PE1 - DISP1 - H1","Préparation de terrain","Types TTS passifs, Equisyl","PA0","PA1","PE1","DISP1","H1",null,null,{"$f":"D13& \" - \"&E13&\" - \"&F13&\" - \"&G13&\" - \"&H13","v":"PA0 - PA1 - PE1 - DISP1 - H1"}]
["PA0 - PA1 - PE1 - DISP1 - H1","Préparation de terrain","Types TTS hydrauliques, Donaren ou Requin","PA0","PA1","PE1","DISP1","H1",null,null,{"$f":"D14& \" - \"&E14&\" - \"&F14&\" - \"&G14&\" - \"&H14","v":"PA0 - PA1 - PE1 - DISP1 - H1"}]
["PA0 - PA1 - PE1 - DISP1 - H1","Préparation de terrain","Wadell","PA0","PA1","PE1","DISP1","H1",null,null,{"$f":"D15& \" - \"&E15&\" - \"&F15&\" - \"&G15&\" - \"&H15","v":"PA0 - PA1 - PE1 - DISP1 - H1"}]
[{"$f":"K16","v":"PE2 ou PE3 - DISP2 - H1"},"Préparation de terrain","Excavatrice","PE2","PE3","DISP2","H1",null,null,null,{"$f":"D16& \" ou \"&E16&\" - \"&F16&\" - \"&G16","v":"PE2 ou PE3 - DISP2 - H1"}]
["PE2 ou PE3 - DISP2 - H1","Préparation de terrain","Excavatrice ou débusqueuse ou abatteuse","PE2","PE3","DISP2","H1",null,null,null,{"$f":"D17& \" ou \"&E17&\" - \"&F17&\" - \"&G17","v":"PE2 ou PE3 - DISP2 - H1"}]
[{"$f":"K18","v":"PE2 - H4 - D200"},"Éducation de peuplement","Dégagement mécanique","PE2","H4","D200",null,null,null,null,{"$f":"D18&\" - \"&E18&\" - \"&F18","v":"PE2 - H4 - D200"}]
["PE2 - H4 - D200","Éducation de peuplement","Élagage Qualité","PE2","H4","D200",null,null,null,null,"PE2 - H4 - D200"]
["PE2 - H4 - D200","Éducation de peuplement","EPC Puit lumière","PE2","H4","D200",null,null,null,null,"PE2 - H4 - D200"]
["PE2 - H4 - D200","Éducation de peuplement","Gaulis I","PE2","H4","D200",null,null,null,null,"PE2 - H4 - D200"]
["PE2 - H4 - D200","Éducation de peuplement","Gaulis II","PE2","H4","D200",null,null,null,null,"PE2 - H4 - D200"]
["PE2 - H4 - D200","Éducation de peuplement","Taille Phytosanitaire","PE2","H4","D200",null,null,null,null,"PE2 - H4 - D200"]
["H2 - D200 - TRA","Régénération artificielle","Plantation uniforme et regarni en plein manuel sauf PEH","H2","D200","TRA",null,null,null,null,"H2 - D200 - TRA"]
["H2 - D200 - TRA","Régénération artificielle","Regarni de sentier et enrichissement manuel sauf PEH","H2","D200","TRA",null,null,null,null,"H2 - D200 - TRA"]
["H2 - D200 - TRA","Régénération artificielle","Plantation uniforme et regarni en plein manuel sentier préparé sauf PEH","H2","D200","TRA",null,null,null,null,"H2 - D200 - TRA"]
["H2 - D200 - TRA","Régénération artificielle","Plantation uniforme PEH","H2","D200","TRA",null,null,null,null,"H2 - D200 - TRA"]
["H2 - TRA","Régénération artificielle","Plantation uniforme et regarni mécanique (Scarificateur-planteur Bracke P-11a)","H2","TRA",null,null,null,null,null,{"$f":"D28&\" - \"&E28","v":"H2 - TRA"}]
["PE2 - H2 - D200","Régénération artificielle","Ensemencement terrestre manuel","PE2","H2","D200",null,null,null,null,{"$f":"D29&\" - \"&E29&\" - \"&F29","v":"PE2 - H2 - D200"}]
["PE2 - RUB1 - MAN - H5","Éclaircie commerciale EAF","Éclaircie commerciale EAF","PE2","RUB1","MAN","H5",null,null,null,{"$f":"D30&\" - \"&E30&\" - \"&F30&\" - \"&G30","v":"PE2 - RUB1 - MAN - H5"}]
["H3 - D200","Martelage","Martelage","H3","D200",null,null,null,null,null,{"$f":"D31&\" - \"&E31","v":"H3 - D200"}]
["H3 - D200","Martelage positif - EC (résineux ou mixte résineux)","Martelage positif - EC (résineux ou mixte résineux)","H3","D200",null,null,null,null,null,{"$f":"D32&\" - \"&E32","v":"H3 - D200"}]
["H3 - D200","Martelage négatif - EC (résineux ou mixte résineux)","Martelage négatif - EC (résineux ou mixte résineux)","H3","D200",null,null,null,null,null,{"$f":"D33&\" - \"&E33","v":"H3 - D200"}]